Service Heads (T),Executive (T),Director (T),Service Managers (T),Cost centre,Cost centre (T),Account,Account (T),Transaction number,Transaction Date,Period,Amount,Customer/supplier ID,Customer/supplier Name
AD Regulated Provision,Revenue Budgets,Childrens Services,CS Commissioning Service,A1767,Looked After Chld Travel Costs,A32040,Childrens Social Care Transport,30192380,23/05/2022,202312,"10,220.00",1009166,Durham County Council
AD Regulated Provision,Revenue Budgets,Childrens Services,CS Commissioning Service,A0492,Independent Foster Agencies,A56000,Other Establishments,30190798,18/04/2023,202312,"3,627.03",112225,The National Fostering Agency
AD Regulated Provision,Revenue Budgets,Childrens Services,CS Commissioning Service,A0492,Independent Foster Agencies,A56000,Other Establishments,30193294,10/07/2023,202312,"5,166.64",1007402,Ivy House Fostering Agency
AD Regulated Provision,Revenue Budgets,Childrens Services,CS Commissioning Service,A0492,Independent Foster Agencies,A56000,Other Establishments,30193295,10/07/2023,202312,"5,166.64",1007402,Ivy House Fostering Agency
AD Regulated Provision,Revenue Budgets,Childrens Services,Fostering and Adoption,A0489,Adoption Support,A49105,Other Supplies & Services,30199413,01/08/2023,202312,"1,826.00",124922,North Yorkshire Council
AD Regulated Provision,Revenue Budgets,Childrens Services,CS Commissioning Service,A0492,Independent Foster Agencies,A56000,Other Establishments,30194359,01/10/2023,202312,"3,985.71",1002661,Shining Stars Fostering Agency
AD Regulated Provision,Revenue Budgets,Childrens Services,CS Commissioning Service,A0273,External Residential,A56000,Other Establishments,30192367,01/11/2023,202312,"3,214.20",142624,Compass Childrens Homes Ltd
AD Regulated Provision,Revenue Budgets,Childrens Services,CS Commissioning Service,A0273,External Residential,A56000,Other Establishments,30192482,01/11/2023,202312,"29,089.20",142624,Compass Childrens Homes Ltd
AD Regulated Provision,Revenue Budgets,Childrens Services,Children in Care Disability,A0511,Care Leavers Allowances,A61152,Leaving Care Grant,30185946,29/11/2023,202312,460.00,103262,Carpets Galore
AD Regulated Provision,Revenue Budgets,Childrens Services,CS Commissioning Service,A0492,Independent Foster Agencies,A56000,Other Establishments,30188816,30/11/2023,202312,"3,936.17",132099,Five Rivers Childcare Ltd
AD Regulated Provision,Revenue Budgets,Childrens Services,Fostering and Adoption,A1603,Adoption Support Fund,A49105,Other Supplies & Services,30194522,11/12/2023,202312,480.00,1009160,Futureminds Psychology Services Ltd
AD Regulated Provision,Revenue Budgets,Childrens Services,Fostering and Adoption,A0489,Adoption Support,A49105,Other Supplies & Services,30199256,29/12/2023,202312,"3,377.50",144362,Family Action - Pac-Uk
AD Regulated Provision,Revenue Budgets,Childrens Services,CS Commissioning Service,A0273,External Residential,A56000,Other Establishments,30194349,31/12/2023,202312,"30,594.58",1002458,Witherslack Group Limited
AD Regulated Provision,Revenue Budgets,Childrens Services,CS Commissioning Service,A0273,External Residential,A56000,Other Establishments,30175756,01/01/2024,202312,"44,064.33",142624,Compass Childrens Homes Ltd
AD Regulated Provision,Revenue Budgets,Childrens Services,CS Commissioning Service,A0273,External Residential,A56000,Other Establishments,30198190,01/01/2024,202312,"30,058.84",142624,Compass Childrens Homes Ltd
AD Regulated Provision,Revenue Budgets,Childrens Services,CS Commissioning Service,A0273,External Residential,A56000,Other Establishments,30198278,01/01/2024,202312,"3,321.34",142624,Compass Childrens Homes Ltd
AD Regulated Provision,Revenue Budgets,Childrens Services,CS Residential Homes,A1757,PETTY CASH,A40920,Purchase of Equipment,30192091,15/01/2024,202312,427.34,PETTY CASH,PETTY CASH
AD Regulated Provision,Revenue Budgets,Childrens Services,CS Residential Homes,A1757,PETTY CASH,A44030,Provisions,30192091,15/01/2024,202312,271.98,PETTY CASH,PETTY CASH
AD Regulated Provision,Revenue Budgets,Childrens Services,CS Residential Homes,A1718,PETTY CASH,A44030,Provisions,30192091,15/01/2024,202312,285.99,PETTY CASH,PETTY CASH
AD Regulated Provision,Revenue Budgets,Childrens Services,Children in Care Disability,A0511,Care Leavers Allowances,A61163,Driving Lessons,30193146,18/01/2024,202312,295.00,1005601,Anderby Driving Centre Ltd
AD Regulated Provision,Revenue Budgets,Childrens Services,Fostering and Adoption,A0490,Fostering And Adoption Team,A11005,Agency Supply Staff,30196089,18/01/2024,202312,"1,725.00",120715,Nonstop Consulting Limited
AD Regulated Provision,Revenue Budgets,Childrens Services,Head Of Corporate Parenting,A0506,Head Of Service Resources,A44025,Legal Expenses,30192313,24/01/2024,202312,"3,600.00",109470,Wilkin Chapman Llp Solicitors
AD Regulated Provision,Revenue Budgets,Childrens Services,CS Commissioning Service,A0273,External Residential,A56000,Other Establishments,30194331,31/01/2024,202312,"30,594.58",1002458,Witherslack Group Limited
AD Regulated Provision,Revenue Budgets,Childrens Services,CS Commissioning Service,A0273,External Residential,A56000,Other Establishments,30183644,01/02/2024,202312,"41,221.47",142624,Compass Childrens Homes Ltd
AD Regulated Provision,Revenue Budgets,Childrens Services,CS Commissioning Service,A0273,External Residential,A56000,Other Establishments,30183673,01/02/2024,202312,"26,315.29",100406,Kisimul School
AD Regulated Provision,Revenue Budgets,Childrens Services,CS Commissioning Service,A0492,Independent Foster Agencies,A56000,Other Establishments,30187457,01/02/2024,202312,"4,794.57",144562,Unity Foster Care Ltd
AD Regulated Provision,Revenue Budgets,Childrens Services,CS Commissioning Service,A0273,External Residential,A56000,Other Establishments,30190356,01/02/2024,202312,"28,119.56",142624,Compass Childrens Homes Ltd
AD Regulated Provision,Revenue Budgets,Childrens Services,CS Commissioning Service,A0273,External Residential,A56000,Other Establishments,30190359,01/02/2024,202312,"58,000.00",1008950,Changing Lives Care Group Ltd
AD Regulated Provision,Revenue Budgets,Childrens Services,CS Commissioning Service,A0273,External Residential,A56000,Other Establishments,30190365,01/02/2024,202312,"43,500.00",1008950,Changing Lives Care Group Ltd
AD Regulated Provision,Revenue Budgets,Childrens Services,Children's Disability Service,A0517,Direct Payments Scheme,A61135,Direct Payments,30191746,01/02/2024,202312,264.00,102688,Mark Bates Ltd
AD Regulated Provision,Revenue Budgets,Childrens Services,CS Commissioning Service,A0492,Independent Foster Agencies,A56000,Other Establishments,30192097,01/02/2024,202312,"3,861.67",1006055,Star Fostering Ltd
AD Regulated Provision,Revenue Budgets,Childrens Services,CS Commissioning Service,A0492,Independent Foster Agencies,A56000,Other Establishments,30192109,01/02/2024,202312,"4,058.21",1006055,Star Fostering Ltd
AD Regulated Provision,Revenue Budgets,Childrens Services,CS Commissioning Service,A0492,Independent Foster Agencies,A56000,Other Establishments,30196462,01/02/2024,202312,"1,719.90",1006055,Star Fostering Ltd
AD Regulated Provision,Revenue Budgets,Childrens Services,CS Commissioning Service,A0273,External Residential,A56000,Other Establishments,30190868,02/02/2024,202312,"20,704.55",146328,Hexagon Care Services Ltd
AD Regulated Provision,Revenue Budgets,Childrens Services,Children's Disability Service,A0517,Direct Payments Scheme,A61135,Direct Payments,30198200,06/02/2024,202312,"1,888.00",1000106,Gravity Red Inspires
AD Regulated Provision,Revenue Budgets,Childrens Services,Children's Disability Service,A0515,Childrens Disability Team,A56000,Other Establishments,30191745,07/02/2024,202312,855.80,1007689,VCare Alliance Ltd
AD Regulated Provision,Revenue Budgets,Childrens Services,CS Commissioning Service,A0273,External Residential,A56000,Other Establishments,30191606,09/02/2024,202312,"2,100.00",142624,Compass Childrens Homes Ltd
AD Regulated Provision,Revenue Budgets,Childrens Services,CS Commissioning Service,A0273,External Residential,A56000,Other Establishments,30196004,11/02/2024,202312,"83,097.67",1008596,Flourish Children's Services Ltd
AD Regulated Provision,Revenue Budgets,Childrens Services,Fostering and Adoption,A1603,Adoption Support Fund,A49105,Other Supplies & Services,30200194,11/02/2024,202312,960.00,1009160,Futureminds Psychology Services Ltd
AD Regulated Provision,Revenue Budgets,Childrens Services,Children's Disability Service,A0515,Childrens Disability Team,A56000,Other Establishments,30191749,14/02/2024,202312,467.60,1007689,VCare Alliance Ltd
AD Regulated Provision,Revenue Budgets,Childrens Services,CS Commissioning Service,A0273,External Residential,A56000,Other Establishments,30195966,14/02/2024,202312,"23,530.68",1009041,Esland North Ltd
AD Regulated Provision,Revenue Budgets,Childrens Services,CS Commissioning Service,A0492,Independent Foster Agencies,A56000,Other Establishments,30187533,15/02/2024,202312,"3,850.91",145485,Fosterplus Ltd
AD Regulated Provision,Revenue Budgets,Childrens Services,CS Commissioning Service,A0492,Independent Foster Agencies,A56000,Other Establishments,30187544,15/02/2024,202312,"3,532.89",145485,Fosterplus Ltd
AD Regulated Provision,Revenue Budgets,Childrens Services,CS Commissioning Service,A0492,Independent Foster Agencies,A56000,Other Establishments,30187573,15/02/2024,202312,"3,648.20",135118,Orange Grove Fostercare Ltd
AD Regulated Provision,Revenue Budgets,Childrens Services,CS Commissioning Service,A0492,Independent Foster Agencies,A56000,Other Establishments,30187579,15/02/2024,202312,"3,739.84",135118,Orange Grove Fostercare Ltd
AD Regulated Provision,Revenue Budgets,Childrens Services,CS Commissioning Service,A0492,Independent Foster Agencies,A56000,Other Establishments,30187580,15/02/2024,202312,"4,564.89",135118,Orange Grove Fostercare Ltd
AD Regulated Provision,Revenue Budgets,Childrens Services,CS Commissioning Service,A0273,External Residential,A56000,Other Establishments,30191611,16/02/2024,202312,300.00,142624,Compass Childrens Homes Ltd
AD Regulated Provision,Revenue Budgets,Childrens Services,CS Commissioning Service,A0273,External Residential,A56000,Other Establishments,30191607,17/02/2024,202312,"5,452.80",142624,Compass Childrens Homes Ltd
AD Regulated Provision,Revenue Budgets,Childrens Services,CS Commissioning Service,A0273,External Residential,A56000,Other Establishments,30191613,17/02/2024,202312,"-18,478.59",142624,Compass Childrens Homes Ltd
AD Regulated Provision,Revenue Budgets,Childrens Services,CS Commissioning Service,A0492,Independent Foster Agencies,A56000,Other Establishments,30191164,21/02/2024,202312,"1,162.71",1007260,Capstone Foster Care Ltd (North)
AD Regulated Provision,Revenue Budgets,Childrens Services,CS Commissioning Service,A0492,Independent Foster Agencies,A56000,Other Establishments,30191167,21/02/2024,202312,"1,162.71",1007260,Capstone Foster Care Ltd (North)
AD Regulated Provision,Revenue Budgets,Childrens Services,Children's Disability Service,A0515,Childrens Disability Team,A56000,Other Establishments,30196123,21/02/2024,202312,574.49,1007689,VCare Alliance Ltd
AD Regulated Provision,Revenue Budgets,Childrens Services,CS Commissioning Service,A0492,Independent Foster Agencies,A56000,Other Establishments,30189605,22/02/2024,202312,"-1,132.20",135118,Orange Grove Fostercare Ltd
AD Regulated Provision,Revenue Budgets,Childrens Services,CS Residential Homes,A0499,REDACTED PERSONAL INFORMATION,A20005,"Property Repairs, Maintenance & Alterations",30191076,22/02/2024,202312,577.50,133267,Equans Services Ltd
AD Regulated Provision,Revenue Budgets,Childrens Services,CS Residential Homes,A1757,REDACTED PERSONAL INFORMATION,A20005,"Property Repairs, Maintenance & Alterations",30191145,22/02/2024,202312,272.00,133267,Equans Services Ltd
AD Regulated Provision,Revenue Budgets,Childrens Services,CS Commissioning Service,A0273,External Residential,A56000,Other Establishments,30189825,26/02/2024,202312,"20,252.98",145195,Keys Pce Limited
AD Regulated Provision,Revenue Budgets,Childrens Services,CS Commissioning Service,A0273,External Residential,A56000,Other Establishments,30189843,26/02/2024,202312,"20,252.98",145195,Keys Pce Limited
AD Regulated Provision,Revenue Budgets,Childrens Services,CS Commissioning Service,A1789,Supported Accommodation,A56000,Other Establishments,30190200,27/02/2024,202312,"42,042.86",145195,Keys Pce Limited
AD Regulated Provision,Revenue Budgets,Childrens Services,CS Commissioning Service,A0492,Independent Foster Agencies,A56000,Other Establishments,30190589,27/02/2024,202312,"3,571.06",150831,Affinity Fostering
AD Regulated Provision,Revenue Budgets,Childrens Services,CS Commissioning Service,A0492,Independent Foster Agencies,A56000,Other Establishments,30191504,28/02/2024,202312,"4,400.38",122809,Barnardos
AD Regulated Provision,Revenue Budgets,Childrens Services,CS Residential Homes,A0504,PETTY CASH,A40920,Purchase of Equipment,30191517,28/02/2024,202312,953.09,PETTY CASH,PETTY CASH
AD Regulated Provision,Revenue Budgets,Childrens Services,CS Residential Homes,A0504,PETTY CASH,A44030,Provisions,30191517,28/02/2024,202312,346.65,PETTY CASH,PETTY CASH
AD Regulated Provision,Revenue Budgets,Childrens Services,CS Residential Homes,A0504,PETTY CASH,A49107,Activities - Service Users,30191517,28/02/2024,202312,848.16,PETTY CASH,PETTY CASH
AD Regulated Provision,Revenue Budgets,Childrens Services,CS Commissioning Service,A1789,Supported Accommodation,A56000,Other Establishments,30189799,29/02/2024,202312,"6,193.57",1003795,Upwards Care Solutions Ltd
AD Regulated Provision,Revenue Budgets,Childrens Services,CS Commissioning Service,A0492,Independent Foster Agencies,A56000,Other Establishments,30190797,29/02/2024,202312,"3,627.03",112225,The National Fostering Agency
AD Regulated Provision,Revenue Budgets,Childrens Services,CS Commissioning Service,A0492,Independent Foster Agencies,A56000,Other Establishments,30190801,29/02/2024,202312,"3,524.97",112225,The National Fostering Agency
AD Regulated Provision,Revenue Budgets,Childrens Services,CS Commissioning Service,A0492,Independent Foster Agencies,A56000,Other Establishments,30190802,29/02/2024,202312,"3,454.36",112225,The National Fostering Agency
AD Regulated Provision,Revenue Budgets,Childrens Services,CS Commissioning Service,A0492,Independent Foster Agencies,A56000,Other Establishments,30190805,29/02/2024,202312,"3,627.03",112225,The National Fostering Agency
AD Regulated Provision,Revenue Budgets,Childrens Services,CS Commissioning Service,A0492,Independent Foster Agencies,A56000,Other Establishments,30190806,29/02/2024,202312,"3,303.02",112225,The National Fostering Agency
AD Regulated Provision,Revenue Budgets,Childrens Services,CS Commissioning Service,A0492,Independent Foster Agencies,A56000,Other Establishments,30190808,29/02/2024,202312,"3,370.54",112225,The National Fostering Agency
AD Regulated Provision,Revenue Budgets,Childrens Services,CS Commissioning Service,A0492,Independent Foster Agencies,A56000,Other Establishments,30190809,29/02/2024,202312,"3,627.03",112225,The National Fostering Agency
AD Regulated Provision,Revenue Budgets,Childrens Services,CS Commissioning Service,A0492,Independent Foster Agencies,A56000,Other Establishments,30190810,29/02/2024,202312,"3,627.03",112225,The National Fostering Agency
AD Regulated Provision,Revenue Budgets,Childrens Services,CS Commissioning Service,A0492,Independent Foster Agencies,A56000,Other Establishments,30190811,29/02/2024,202312,"3,370.38",112225,The National Fostering Agency
AD Regulated Provision,Revenue Budgets,Childrens Services,CS Commissioning Service,A0492,Independent Foster Agencies,A56000,Other Establishments,30190813,29/02/2024,202312,"3,627.03",112225,The National Fostering Agency
AD Regulated Provision,Revenue Budgets,Childrens Services,CS Commissioning Service,A0492,Independent Foster Agencies,A56000,Other Establishments,30190814,29/02/2024,202312,"3,459.15",112225,The National Fostering Agency
AD Regulated Provision,Revenue Budgets,Childrens Services,CS Commissioning Service,A0492,Independent Foster Agencies,A56000,Other Establishments,30190816,29/02/2024,202312,"3,627.03",112225,The National Fostering Agency
AD Regulated Provision,Revenue Budgets,Childrens Services,CS Commissioning Service,A0492,Independent Foster Agencies,A56000,Other Establishments,30190819,29/02/2024,202312,"3,445.68",112225,The National Fostering Agency
AD Regulated Provision,Revenue Budgets,Childrens Services,CS Commissioning Service,A0492,Independent Foster Agencies,A56000,Other Establishments,30190820,29/02/2024,202312,"3,445.68",112225,The National Fostering Agency
AD Regulated Provision,Revenue Budgets,Childrens Services,CS Commissioning Service,A0492,Independent Foster Agencies,A56000,Other Establishments,30190822,29/02/2024,202312,"3,627.03",112225,The National Fostering Agency
AD Regulated Provision,Revenue Budgets,Childrens Services,CS Commissioning Service,A0492,Independent Foster Agencies,A56000,Other Establishments,30190823,29/02/2024,202312,"4,660.59",1000346,Brighter Futures Foster Care
AD Regulated Provision,Revenue Budgets,Childrens Services,CS Commissioning Service,A0492,Independent Foster Agencies,A56000,Other Establishments,30190824,29/02/2024,202312,"1,669.87",112225,The National Fostering Agency
AD Regulated Provision,Revenue Budgets,Childrens Services,CS Commissioning Service,A0273,External Residential,A56000,Other Establishments,30190913,29/02/2024,202312,"24,617.53",100406,Kisimul School
AD Regulated Provision,Revenue Budgets,Childrens Services,CS Commissioning Service,A0492,Independent Foster Agencies,A56000,Other Establishments,30191002,29/02/2024,202312,"1,096.76",150830,Sunbeam Fostering Agency Ltd
AD Regulated Provision,Revenue Budgets,Childrens Services,CS Commissioning Service,A0492,Independent Foster Agencies,A56000,Other Establishments,30191011,29/02/2024,202312,"3,691.70",132099,Five Rivers Childcare Ltd
AD Regulated Provision,Revenue Budgets,Childrens Services,CS Commissioning Service,A0492,Independent Foster Agencies,A56000,Other Establishments,30191014,29/02/2024,202312,"3,804.80",132099,Five Rivers Childcare Ltd
AD Regulated Provision,Revenue Budgets,Childrens Services,CS Commissioning Service,A0492,Independent Foster Agencies,A56000,Other Establishments,30191015,29/02/2024,202312,"1,096.76",150830,Sunbeam Fostering Agency Ltd
AD Regulated Provision,Revenue Budgets,Childrens Services,CS Commissioning Service,A0492,Independent Foster Agencies,A56000,Other Establishments,30191016,29/02/2024,202312,"3,804.97",132099,Five Rivers Childcare Ltd
AD Regulated Provision,Revenue Budgets,Childrens Services,CS Commissioning Service,A0492,Independent Foster Agencies,A56000,Other Establishments,30191017,29/02/2024,202312,"3,804.80",132099,Five Rivers Childcare Ltd
AD Regulated Provision,Revenue Budgets,Childrens Services,CS Commissioning Service,A0492,Independent Foster Agencies,A56000,Other Establishments,30191019,29/02/2024,202312,"3,870.30",132099,Five Rivers Childcare Ltd
AD Regulated Provision,Revenue Budgets,Childrens Services,CS Commissioning Service,A0492,Independent Foster Agencies,A56000,Other Establishments,30191047,29/02/2024,202312,"2,846.06",101150,Tree House Care Fostering Solutions Ltd
AD Regulated Provision,Revenue Budgets,Childrens Services,CS Commissioning Service,A0492,Independent Foster Agencies,A56000,Other Establishments,30191063,29/02/2024,202312,"5,724.31",101150,Tree House Care Fostering Solutions Ltd
AD Regulated Provision,Revenue Budgets,Childrens Services,CS Commissioning Service,A0492,Independent Foster Agencies,A56000,Other Establishments,30191073,29/02/2024,202312,"3,247.71",101150,Tree House Care Fostering Solutions Ltd
AD Regulated Provision,Revenue Budgets,Childrens Services,CS Commissioning Service,A0492,Independent Foster Agencies,A56000,Other Establishments,30191075,29/02/2024,202312,"3,277.58",101150,Tree House Care Fostering Solutions Ltd
AD Regulated Provision,Revenue Budgets,Childrens Services,CS Commissioning Service,A0492,Independent Foster Agencies,A56000,Other Establishments,30191085,29/02/2024,202312,"3,323.69",101150,Tree House Care Fostering Solutions Ltd
AD Regulated Provision,Revenue Budgets,Childrens Services,CS Commissioning Service,A0492,Independent Foster Agencies,A56000,Other Establishments,30191087,29/02/2024,202312,"3,409.82",101150,Tree House Care Fostering Solutions Ltd
AD Regulated Provision,Revenue Budgets,Childrens Services,CS Commissioning Service,A0492,Independent Foster Agencies,A56000,Other Establishments,30191090,29/02/2024,202312,"4,781.81",101150,Tree House Care Fostering Solutions Ltd
AD Regulated Provision,Revenue Budgets,Childrens Services,CS Commissioning Service,A0492,Independent Foster Agencies,A56000,Other Establishments,30191099,29/02/2024,202312,"3,540.98",132099,Five Rivers Childcare Ltd
AD Regulated Provision,Revenue Budgets,Childrens Services,CS Commissioning Service,A0492,Independent Foster Agencies,A56000,Other Establishments,30191101,29/02/2024,202312,"1,348.93",101150,Tree House Care Fostering Solutions Ltd
AD Regulated Provision,Revenue Budgets,Childrens Services,CS Commissioning Service,A0492,Independent Foster Agencies,A56000,Other Establishments,30191102,29/02/2024,202312,"3,116.92",101150,Tree House Care Fostering Solutions Ltd
AD Regulated Provision,Revenue Budgets,Childrens Services,CS Commissioning Service,A0492,Independent Foster Agencies,A56000,Other Establishments,30191104,29/02/2024,202312,"3,247.71",101150,Tree House Care Fostering Solutions Ltd
AD Regulated Provision,Revenue Budgets,Childrens Services,CS Commissioning Service,A0492,Independent Foster Agencies,A56000,Other Establishments,30191106,29/02/2024,202312,"3,348.34",101150,Tree House Care Fostering Solutions Ltd
AD Regulated Provision,Revenue Budgets,Childrens Services,CS Commissioning Service,A0492,Independent Foster Agencies,A56000,Other Establishments,30191116,29/02/2024,202312,"3,177.24",101150,Tree House Care Fostering Solutions Ltd
AD Regulated Provision,Revenue Budgets,Childrens Services,CS Commissioning Service,A0492,Independent Foster Agencies,A56000,Other Establishments,30191119,29/02/2024,202312,"3,177.24",101150,Tree House Care Fostering Solutions Ltd
AD Regulated Provision,Revenue Budgets,Childrens Services,CS Commissioning Service,A0492,Independent Foster Agencies,A56000,Other Establishments,30191126,29/02/2024,202312,"5,889.32",101150,Tree House Care Fostering Solutions Ltd
AD Regulated Provision,Revenue Budgets,Childrens Services,CS Commissioning Service,A0492,Independent Foster Agencies,A56000,Other Establishments,30191134,29/02/2024,202312,"3,323.69",101150,Tree House Care Fostering Solutions Ltd
AD Regulated Provision,Revenue Budgets,Childrens Services,CS Commissioning Service,A0492,Independent Foster Agencies,A56000,Other Establishments,30191143,29/02/2024,202312,"3,116.92",101150,Tree House Care Fostering Solutions Ltd
AD Regulated Provision,Revenue Budgets,Childrens Services,CS Commissioning Service,A0273,External Residential,A56000,Other Establishments,30191507,29/02/2024,202312,"24,608.57",1003502,Pebbles Care Ltd
AD Regulated Provision,Revenue Budgets,Childrens Services,Children's Disability Service,A0515,Childrens Disability Team,A56000,Other Establishments,30191744,29/02/2024,202312,530.49,1007689,VCare Alliance Ltd
AD Regulated Provision,Revenue Budgets,Childrens Services,CS Commissioning Service,A0492,Independent Foster Agencies,A56000,Other Establishments,30191843,29/02/2024,202312,"3,509.00",129923,The Adolescent & Childrens Trust
AD Regulated Provision,Revenue Budgets,Childrens Services,CS Commissioning Service,A0492,Independent Foster Agencies,A56000,Other Establishments,30192126,29/02/2024,202312,"3,509.00",129923,The Adolescent & Childrens Trust
AD Regulated Provision,Revenue Budgets,Childrens Services,CS Residential Homes,A1718,REDACTED PERSONAL INFORMATION,A46050,Conference Expenses,30192609,29/02/2024,202312,"4,185.00",1006125,Dialogue
AD Regulated Provision,Revenue Budgets,Childrens Services,CS Commissioning Service,A0273,External Residential,A56000,Other Establishments,30193200,29/02/2024,202312,"30,594.58",1002458,Witherslack Group Limited
AD Regulated Provision,Revenue Budgets,Childrens Services,CS Commissioning Service,A0273,External Residential,A56000,Other Establishments,30193224,29/02/2024,202312,"41,428.57",1002153,Prosperity Children's Services
AD Regulated Provision,Revenue Budgets,Childrens Services,CS Commissioning Service,A1789,Supported Accommodation,A56000,Other Establishments,30193226,29/02/2024,202312,"30,342.41",1006289,Rossie Young Peoples Trust
AD Regulated Provision,Revenue Budgets,Childrens Services,CS Commissioning Service,A0492,Independent Foster Agencies,A56000,Other Establishments,30193858,29/02/2024,202312,"3,900.50",1002663,Banya Family Placement Agency Limited
AD Regulated Provision,Revenue Budgets,Childrens Services,CS Commissioning Service,A0492,Independent Foster Agencies,A56000,Other Establishments,30194208,29/02/2024,202312,"3,451.00",145801,Young People At Heart
AD Regulated Provision,Revenue Budgets,Childrens Services,CS Commissioning Service,A0492,Independent Foster Agencies,A56000,Other Establishments,30194214,29/02/2024,202312,"3,538.00",145801,Young People At Heart
AD Regulated Provision,Revenue Budgets,Childrens Services,CS Commissioning Service,A0492,Independent Foster Agencies,A56000,Other Establishments,30194220,29/02/2024,202312,"3,451.00",145801,Young People At Heart
AD Regulated Provision,Revenue Budgets,Childrens Services,CS Commissioning Service,A0492,Independent Foster Agencies,A56000,Other Establishments,30194231,29/02/2024,202312,"3,451.00",145801,Young People At Heart
AD Regulated Provision,Revenue Budgets,Childrens Services,CS Commissioning Service,A0492,Independent Foster Agencies,A56000,Other Establishments,30194234,29/02/2024,202312,"3,538.00",145801,Young People At Heart
AD Regulated Provision,Revenue Budgets,Childrens Services,CS Commissioning Service,A0492,Independent Foster Agencies,A56000,Other Establishments,30194235,29/02/2024,202312,"3,538.00",145801,Young People At Heart
AD Regulated Provision,Revenue Budgets,Childrens Services,CS Commissioning Service,A1767,Looked After Chld Travel Costs,A33005,Public Transport - Non Staff,30195314,29/02/2024,202312,635.00,100546,Links Taxis
AD Regulated Provision,Revenue Budgets,Childrens Services,CS Commissioning Service,A0492,Independent Foster Agencies,A56000,Other Establishments,30195568,29/02/2024,202312,"4,971.47",1004631,Integrated Fostering Services Ltd
AD Regulated Provision,Revenue Budgets,Childrens Services,CS Commissioning Service,A0492,Independent Foster Agencies,A56000,Other Establishments,30195577,29/02/2024,202312,"3,248.00",1004631,Integrated Fostering Services Ltd
AD Regulated Provision,Revenue Budgets,Childrens Services,CS Commissioning Service,A0492,Independent Foster Agencies,A56000,Other Establishments,30195583,29/02/2024,202312,"3,397.06",1004631,Integrated Fostering Services Ltd
AD Regulated Provision,Revenue Budgets,Childrens Services,Children in Care Disability,A0509,Unaccomp Childr Asylum Seekers,A44050,Translating & Interpreter Services,30196681,29/02/2024,202312,434.04,148993,Clear Voice Interpreting Services
AD Regulated Provision,Revenue Budgets,Childrens Services,Fostering and Adoption,A1603,Adoption Support Fund,A49105,Other Supplies & Services,30199274,29/02/2024,202312,750.00,120445,Fortis Therapy & Training
AD Regulated Provision,Revenue Budgets,Childrens Services,CS Commissioning Service,A0492,Independent Foster Agencies,A56000,Other Establishments,30191175,01/03/2024,202312,"3,748.21",143409,Family Fostercare Ltd
AD Regulated Provision,Revenue Budgets,Childrens Services,CS Commissioning Service,A0492,Independent Foster Agencies,A56000,Other Establishments,30191177,01/03/2024,202312,"7,882.99",1007260,Capstone Foster Care Ltd (North)
AD Regulated Provision,Revenue Budgets,Childrens Services,CS Commissioning Service,A0492,Independent Foster Agencies,A56000,Other Establishments,30191178,01/03/2024,202312,"4,004.89",1007260,Capstone Foster Care Ltd (North)
AD Regulated Provision,Revenue Budgets,Childrens Services,CS Commissioning Service,A0492,Independent Foster Agencies,A56000,Other Establishments,30191185,01/03/2024,202312,"3,567.48",143409,Family Fostercare Ltd
AD Regulated Provision,Revenue Budgets,Childrens Services,CS Commissioning Service,A0492,Independent Foster Agencies,A56000,Other Establishments,30191186,01/03/2024,202312,"7,882.99",1007260,Capstone Foster Care Ltd (North)
AD Regulated Provision,Revenue Budgets,Childrens Services,CS Commissioning Service,A0492,Independent Foster Agencies,A56000,Other Establishments,30191192,01/03/2024,202312,"3,382.72",143409,Family Fostercare Ltd
AD Regulated Provision,Revenue Budgets,Childrens Services,CS Commissioning Service,A0492,Independent Foster Agencies,A56000,Other Establishments,30191200,01/03/2024,202312,"3,728.57",1008629,Connect Fostering Services Ltd
AD Regulated Provision,Revenue Budgets,Childrens Services,CS Commissioning Service,A0492,Independent Foster Agencies,A56000,Other Establishments,30191223,01/03/2024,202312,"4,210.95",146086,Fusion Fostering Ltd
AD Regulated Provision,Revenue Budgets,Childrens Services,CS Commissioning Service,A0492,Independent Foster Agencies,A56000,Other Establishments,30191365,01/03/2024,202312,"3,608.76",145652,Parallel Parents
AD Regulated Provision,Revenue Budgets,Childrens Services,CS Commissioning Service,A0492,Independent Foster Agencies,A56000,Other Establishments,30191376,01/03/2024,202312,"4,000.41",148494,By The Bridge Northwest Ltd
AD Regulated Provision,Revenue Budgets,Childrens Services,CS Commissioning Service,A0492,Independent Foster Agencies,A56000,Other Establishments,30191377,01/03/2024,202312,"3,722.73",145652,Parallel Parents
AD Regulated Provision,Revenue Budgets,Childrens Services,CS Commissioning Service,A0492,Independent Foster Agencies,A56000,Other Establishments,30191459,01/03/2024,202312,"5,600.48",145652,Parallel Parents
AD Regulated Provision,Revenue Budgets,Childrens Services,CS Commissioning Service,A0492,Independent Foster Agencies,A56000,Other Establishments,30191463,01/03/2024,202312,905.45,145652,Parallel Parents
AD Regulated Provision,Revenue Budgets,Childrens Services,CS Commissioning Service,A0273,External Residential,A56000,Other Establishments,30191499,01/03/2024,202312,"22,785.59",1007585,Friends Together Care Homes Ltd
AD Regulated Provision,Revenue Budgets,Childrens Services,CS Commissioning Service,A0273,External Residential,A56000,Other Establishments,30191602,01/03/2024,202312,"29,178.75",142624,Compass Childrens Homes Ltd
AD Regulated Provision,Revenue Budgets,Childrens Services,CS Commissioning Service,A0492,Independent Foster Agencies,A56000,Other Establishments,30192059,01/03/2024,202312,"3,796.39",1006055,Star Fostering Ltd
AD Regulated Provision,Revenue Budgets,Childrens Services,CS Commissioning Service,A0492,Independent Foster Agencies,A56000,Other Establishments,30192062,01/03/2024,202312,"3,612.53",1006055,Star Fostering Ltd
AD Regulated Provision,Revenue Budgets,Childrens Services,CS Commissioning Service,A0492,Independent Foster Agencies,A56000,Other Establishments,30192074,01/03/2024,202312,"5,314.33",1000540,Chrysalis Consortium Ltd
AD Regulated Provision,Revenue Budgets,Childrens Services,CS Commissioning Service,A0492,Independent Foster Agencies,A56000,Other Establishments,30192092,01/03/2024,202312,"3,692.41",128844,Compass Fostering North Limited
AD Regulated Provision,Revenue Budgets,Childrens Services,CS Commissioning Service,A0492,Independent Foster Agencies,A56000,Other Establishments,30192117,01/03/2024,202312,"3,646.84",128844,Compass Fostering North Limited
AD Regulated Provision,Revenue Budgets,Childrens Services,CS Commissioning Service,A0492,Independent Foster Agencies,A56000,Other Establishments,30192122,01/03/2024,202312,"3,740.46",128844,Compass Fostering North Limited
AD Regulated Provision,Revenue Budgets,Childrens Services,CS Commissioning Service,A0492,Independent Foster Agencies,A56000,Other Establishments,30192129,01/03/2024,202312,"3,769.91",128844,Compass Fostering North Limited
AD Regulated Provision,Revenue Budgets,Childrens Services,CS Commissioning Service,A0492,Independent Foster Agencies,A56000,Other Establishments,30192134,01/03/2024,202312,"3,852.68",128844,Compass Fostering North Limited
AD Regulated Provision,Revenue Budgets,Childrens Services,CS Commissioning Service,A0492,Independent Foster Agencies,A56000,Other Establishments,30192136,01/03/2024,202312,"3,780.14",128844,Compass Fostering North Limited
AD Regulated Provision,Revenue Budgets,Childrens Services,CS Commissioning Service,A0273,External Residential,A56000,Other Establishments,30192517,01/03/2024,202312,"16,177.94",1000488,Care Today Childrens Services Ltd
AD Regulated Provision,Revenue Budgets,Childrens Services,CS Commissioning Service,A0492,Independent Foster Agencies,A56000,Other Establishments,30193123,01/03/2024,202312,"3,681.25",128418,Nexus Fostering Ltd
AD Regulated Provision,Revenue Budgets,Childrens Services,CS Commissioning Service,A0492,Independent Foster Agencies,A56000,Other Establishments,30193128,01/03/2024,202312,"3,960.25",128418,Nexus Fostering Ltd
AD Regulated Provision,Revenue Budgets,Childrens Services,CS Commissioning Service,A0492,Independent Foster Agencies,A56000,Other Establishments,30193130,01/03/2024,202312,"6,479.00",128418,Nexus Fostering Ltd
AD Regulated Provision,Revenue Budgets,Childrens Services,CS Commissioning Service,A0273,External Residential,A56000,Other Establishments,30193187,01/03/2024,202312,"18,352.85",1008594,Total Care Matters Ltd
AD Regulated Provision,Revenue Budgets,Childrens Services,CS Commissioning Service,A0273,External Residential,A56000,Other Establishments,30193201,01/03/2024,202312,"4,563.44",1007093,Hennessy Living Group Ltd
AD Regulated Provision,Revenue Budgets,Childrens Services,CS Commissioning Service,A0492,Independent Foster Agencies,A56000,Other Establishments,30193485,01/03/2024,202312,"3,351.22",144562,Unity Foster Care Ltd
AD Regulated Provision,Revenue Budgets,Childrens Services,CS Commissioning Service,A0492,Independent Foster Agencies,A56000,Other Establishments,30193489,01/03/2024,202312,"5,125.23",144562,Unity Foster Care Ltd
AD Regulated Provision,Revenue Budgets,Childrens Services,CS Commissioning Service,A0492,Independent Foster Agencies,A56000,Other Establishments,30194131,01/03/2024,202312,"4,004.89",1007260,Capstone Foster Care Ltd (North)
AD Regulated Provision,Revenue Budgets,Childrens Services,CS Commissioning Service,A0273,External Residential,A56000,Other Establishments,30194311,01/03/2024,202312,"30,058.84",142624,Compass Childrens Homes Ltd
AD Regulated Provision,Revenue Budgets,Childrens Services,CS Commissioning Service,A0273,External Residential,A56000,Other Establishments,30194362,01/03/2024,202312,"21,301.34",1006597,Woodlands Ty Pont
AD Regulated Provision,Revenue Budgets,Childrens Services,Children's Disability Service,A0517,Direct Payments Scheme,A61135,Direct Payments,30194388,01/03/2024,202312,352.00,102688,Mark Bates Ltd
AD Regulated Provision,Revenue Budgets,Childrens Services,CS Commissioning Service,A0273,External Residential,A56000,Other Establishments,30195180,01/03/2024,202312,"23,250.00",1002134,Your Chapter Limited
AD Regulated Provision,Revenue Budgets,Childrens Services,CS Commissioning Service,A0273,External Residential,A56000,Other Establishments,30195954,01/03/2024,202312,"23,604.02",1001521,Shore care Services
AD Regulated Provision,Revenue Budgets,Childrens Services,CS Commissioning Service,A0273,External Residential,A56000,Other Establishments,30195963,01/03/2024,202312,"23,604.02",1001521,Shore care Services
AD Regulated Provision,Revenue Budgets,Childrens Services,CS Commissioning Service,A0273,External Residential,A56000,Other Establishments,30196010,01/03/2024,202312,"3,321.34",142624,Compass Childrens Homes Ltd
AD Regulated Provision,Revenue Budgets,Childrens Services,CS Commissioning Service,A0273,External Residential,A56000,Other Establishments,30196256,01/03/2024,202312,"23,250.00",1000494,New Horizons - (Stockport) Ltd
AD Regulated Provision,Revenue Budgets,Childrens Services,CS Commissioning Service,A0492,Independent Foster Agencies,A56000,Other Establishments,30198809,01/03/2024,202312,"3,985.71",1002661,Shining Stars Fostering Agency
AD Regulated Provision,Revenue Budgets,Childrens Services,Children in Care Disability,A0511,Care Leavers Allowances,A61165,Housing Benefit,42292096,01/03/2024,202312,257.00,REDACTED PERSONAL INFORMATION,REDACTED PERSONAL INFORMATION
AD Regulated Provision,Revenue Budgets,Childrens Services,Children in Care Disability,A0509,Unaccomp Childr Asylum Seekers,A61165,Housing Benefit,42292097,01/03/2024,202312,257.00,REDACTED PERSONAL INFORMATION,REDACTED PERSONAL INFORMATION
AD Regulated Provision,Revenue Budgets,Childrens Services,Children in Care Disability,A0511,Care Leavers Allowances,A61165,Housing Benefit,42292099,01/03/2024,202312,257.00,REDACTED PERSONAL INFORMATION,REDACTED PERSONAL INFORMATION
AD Regulated Provision,Revenue Budgets,Childrens Services,Children in Care Disability,A0511,Care Leavers Allowances,A61165,Housing Benefit,42292100,01/03/2024,202312,257.00,REDACTED PERSONAL INFORMATION,REDACTED PERSONAL INFORMATION
AD Regulated Provision,Revenue Budgets,Childrens Services,Children in Care Disability,A0511,Care Leavers Allowances,A61165,Housing Benefit,42292103,01/03/2024,202312,257.00,REDACTED PERSONAL INFORMATION,REDACTED PERSONAL INFORMATION
AD Regulated Provision,Revenue Budgets,Childrens Services,Children in Care Disability,A0511,Care Leavers Allowances,A61165,Housing Benefit,42292105,01/03/2024,202312,257.00,REDACTED PERSONAL INFORMATION,REDACTED PERSONAL INFORMATION
AD Regulated Provision,Revenue Budgets,Childrens Services,Children in Care Disability,A0511,Care Leavers Allowances,A61165,Housing Benefit,42292106,01/03/2024,202312,257.00,REDACTED PERSONAL INFORMATION,REDACTED PERSONAL INFORMATION
AD Regulated Provision,Revenue Budgets,Childrens Services,Children in Care Disability,A0511,Care Leavers Allowances,A61165,Housing Benefit,42292109,01/03/2024,202312,257.00,REDACTED PERSONAL INFORMATION,REDACTED PERSONAL INFORMATION
AD Regulated Provision,Revenue Budgets,Childrens Services,Children in Care Disability,A0511,Care Leavers Allowances,A61165,Housing Benefit,42292110,01/03/2024,202312,257.00,REDACTED PERSONAL INFORMATION,REDACTED PERSONAL INFORMATION
AD Regulated Provision,Revenue Budgets,Childrens Services,Children in Care Disability,A0511,Care Leavers Allowances,A61165,Housing Benefit,42292111,01/03/2024,202312,257.00,REDACTED PERSONAL INFORMATION,REDACTED PERSONAL INFORMATION
AD Regulated Provision,Revenue Budgets,Childrens Services,Children in Care Disability,A0509,Unaccomp Childr Asylum Seekers,A61165,Housing Benefit,42292113,01/03/2024,202312,292.00,REDACTED PERSONAL INFORMATION,REDACTED PERSONAL INFORMATION
AD Regulated Provision,Revenue Budgets,Childrens Services,Children in Care Disability,A0511,Care Leavers Allowances,A61165,Housing Benefit,42292114,01/03/2024,202312,257.00,REDACTED PERSONAL INFORMATION,REDACTED PERSONAL INFORMATION
AD Regulated Provision,Revenue Budgets,Childrens Services,Children in Care Disability,A0509,Unaccomp Childr Asylum Seekers,A61165,Housing Benefit,42292116,01/03/2024,202312,257.00,REDACTED PERSONAL INFORMATION,REDACTED PERSONAL INFORMATION
AD Regulated Provision,Revenue Budgets,Childrens Services,Children in Care Disability,A0509,Unaccomp Childr Asylum Seekers,A61152,Leaving Care Grant,42292160,01/03/2024,202312,312.72,REDACTED PERSONAL INFORMATION,REDACTED PERSONAL INFORMATION
AD Regulated Provision,Revenue Budgets,Childrens Services,Children in Care,A0514,Children in Care,A61156,Section 17,42292179,01/03/2024,202312,354.00,REDACTED PERSONAL INFORMATION,REDACTED PERSONAL INFORMATION
AD Regulated Provision,Revenue Budgets,Childrens Services,Children's Disability Service,A0517,Direct Payments Scheme,A56000,Other Establishments,42292189,01/03/2024,202312,261.69,REDACTED PERSONAL INFORMATION,REDACTED PERSONAL INFORMATION
AD Regulated Provision,Revenue Budgets,Childrens Services,Children's Disability Service,A0517,Direct Payments Scheme,A56000,Other Establishments,42292198,01/03/2024,202312,384.45,REDACTED PERSONAL INFORMATION,REDACTED PERSONAL INFORMATION
AD Regulated Provision,Revenue Budgets,Childrens Services,Children's Disability Service,A0517,Direct Payments Scheme,A56000,Other Establishments,42292198,01/03/2024,202312,572.24,REDACTED PERSONAL INFORMATION,REDACTED PERSONAL INFORMATION
AD Regulated Provision,Revenue Budgets,Childrens Services,Children's Disability Service,A0517,Direct Payments Scheme,A56000,Other Establishments,42292198,01/03/2024,202312,"1,004.69",REDACTED PERSONAL INFORMATION,REDACTED PERSONAL INFORMATION
AD Regulated Provision,Revenue Budgets,Childrens Services,Fostering and Adoption,A0484,Mainstream Carer Payments,A61166,Contract Plus,42292217,01/03/2024,202312,315.00,REDACTED PERSONAL INFORMATION,REDACTED PERSONAL INFORMATION
AD Regulated Provision,Revenue Budgets,Childrens Services,Fostering and Adoption,A0489,Adoption Support,A61120,Adoptions Allowances,42292221,01/03/2024,202312,370.74,REDACTED PERSONAL INFORMATION,REDACTED PERSONAL INFORMATION
AD Regulated Provision,Revenue Budgets,Childrens Services,Fostering and Adoption,A0489,Adoption Support,A61120,Adoptions Allowances,42292221,01/03/2024,202312,370.74,REDACTED PERSONAL INFORMATION,REDACTED PERSONAL INFORMATION
AD Regulated Provision,Revenue Budgets,Childrens Services,Fostering and Adoption,A0484,Mainstream Carer Payments,A61166,Contract Plus,42292223,01/03/2024,202312,315.00,REDACTED PERSONAL INFORMATION,REDACTED PERSONAL INFORMATION
AD Regulated Provision,Revenue Budgets,Childrens Services,Fostering and Adoption,A0484,Mainstream Carer Payments,A61166,Contract Plus,42292286,01/03/2024,202312,315.00,REDACTED PERSONAL INFORMATION,REDACTED PERSONAL INFORMATION
AD Regulated Provision,Revenue Budgets,Childrens Services,Fostering and Adoption,A0486,Residence  Or Special G'Ship,A61015,Fostering and Guardianship Allowances,42292362,01/03/2024,202312,364.08,REDACTED PERSONAL INFORMATION,REDACTED PERSONAL INFORMATION
AD Regulated Provision,Revenue Budgets,Childrens Services,Fostering and Adoption,A0486,Residence  Or Special G'Ship,A61015,Fostering and Guardianship Allowances,42292362,01/03/2024,202312,364.08,REDACTED PERSONAL INFORMATION,REDACTED PERSONAL INFORMATION
AD Regulated Provision,Revenue Budgets,Childrens Services,Fostering and Adoption,A0484,Mainstream Carer Payments,A61166,Contract Plus,42292366,01/03/2024,202312,315.00,REDACTED PERSONAL INFORMATION,REDACTED PERSONAL INFORMATION
AD Regulated Provision,Revenue Budgets,Childrens Services,Fostering and Adoption,A0484,Mainstream Carer Payments,A61166,Contract Plus,42292383,01/03/2024,202312,315.00,REDACTED PERSONAL INFORMATION,REDACTED PERSONAL INFORMATION
AD Regulated Provision,Revenue Budgets,Childrens Services,Fostering and Adoption,A0484,Mainstream Carer Payments,A61166,Contract Plus,42292384,01/03/2024,202312,315.00,REDACTED PERSONAL INFORMATION,REDACTED PERSONAL INFORMATION
AD Regulated Provision,Revenue Budgets,Childrens Services,Fostering and Adoption,A0484,Mainstream Carer Payments,A57205,Child Care Payments,42292385,01/03/2024,202312,711.58,REDACTED PERSONAL INFORMATION,REDACTED PERSONAL INFORMATION
AD Regulated Provision,Revenue Budgets,Childrens Services,Fostering and Adoption,A0484,Mainstream Carer Payments,A61166,Contract Plus,42292386,01/03/2024,202312,315.00,REDACTED PERSONAL INFORMATION,REDACTED PERSONAL INFORMATION
AD Regulated Provision,Revenue Budgets,Childrens Services,Fostering and Adoption,A0484,Mainstream Carer Payments,A61166,Contract Plus,42292387,01/03/2024,202312,315.00,REDACTED PERSONAL INFORMATION,REDACTED PERSONAL INFORMATION
AD Regulated Provision,Revenue Budgets,Childrens Services,Fostering and Adoption,A0484,Mainstream Carer Payments,A61166,Contract Plus,42292388,01/03/2024,202312,315.00,REDACTED PERSONAL INFORMATION,REDACTED PERSONAL INFORMATION
AD Regulated Provision,Revenue Budgets,Childrens Services,Fostering and Adoption,A0484,Mainstream Carer Payments,A61166,Contract Plus,42292416,01/03/2024,202312,315.00,REDACTED PERSONAL INFORMATION,REDACTED PERSONAL INFORMATION
AD Regulated Provision,Revenue Budgets,Childrens Services,Fostering and Adoption,A0484,Mainstream Carer Payments,A61166,Contract Plus,42292419,01/03/2024,202312,315.00,REDACTED PERSONAL INFORMATION,REDACTED PERSONAL INFORMATION
AD Regulated Provision,Revenue Budgets,Childrens Services,Fostering and Adoption,A0484,Mainstream Carer Payments,A61166,Contract Plus,42292421,01/03/2024,202312,315.00,REDACTED PERSONAL INFORMATION,REDACTED PERSONAL INFORMATION
AD Regulated Provision,Revenue Budgets,Childrens Services,Fostering and Adoption,A0489,Adoption Support,A61120,Adoptions Allowances,42292424,01/03/2024,202312,559.44,REDACTED PERSONAL INFORMATION,REDACTED PERSONAL INFORMATION
AD Regulated Provision,Revenue Budgets,Childrens Services,Fostering and Adoption,A0484,Mainstream Carer Payments,A61166,Contract Plus,42292429,01/03/2024,202312,315.00,REDACTED PERSONAL INFORMATION,REDACTED PERSONAL INFORMATION
AD Regulated Provision,Revenue Budgets,Childrens Services,Fostering and Adoption,A0484,Mainstream Carer Payments,A61166,Contract Plus,42292430,01/03/2024,202312,315.00,REDACTED PERSONAL INFORMATION,REDACTED PERSONAL INFORMATION
AD Regulated Provision,Revenue Budgets,Childrens Services,Fostering and Adoption,A0486,Residence  Or Special G'Ship,A61015,Fostering and Guardianship Allowances,42292434,01/03/2024,202312,357.00,REDACTED PERSONAL INFORMATION,REDACTED PERSONAL INFORMATION
AD Regulated Provision,Revenue Budgets,Childrens Services,Fostering and Adoption,A0486,Residence  Or Special G'Ship,A61015,Fostering and Guardianship Allowances,42292434,01/03/2024,202312,365.10,REDACTED PERSONAL INFORMATION,REDACTED PERSONAL INFORMATION
AD Regulated Provision,Revenue Budgets,Childrens Services,Fostering and Adoption,A0489,Adoption Support,A61120,Adoptions Allowances,42292460,01/03/2024,202312,886.58,REDACTED PERSONAL INFORMATION,REDACTED PERSONAL INFORMATION
AD Regulated Provision,Revenue Budgets,Childrens Services,Fostering and Adoption,A0484,Mainstream Carer Payments,A61166,Contract Plus,42292492,01/03/2024,202312,315.00,REDACTED PERSONAL INFORMATION,REDACTED PERSONAL INFORMATION
AD Regulated Provision,Revenue Budgets,Childrens Services,Fostering and Adoption,A0484,Mainstream Carer Payments,A61166,Contract Plus,42292492,01/03/2024,202312,315.00,REDACTED PERSONAL INFORMATION,REDACTED PERSONAL INFORMATION
AD Regulated Provision,Revenue Budgets,Childrens Services,Fostering and Adoption,A0486,Residence  Or Special G'Ship,A61015,Fostering and Guardianship Allowances,42292569,01/03/2024,202312,357.00,REDACTED PERSONAL INFORMATION,REDACTED PERSONAL INFORMATION
AD Regulated Provision,Revenue Budgets,Childrens Services,Fostering and Adoption,A0486,Residence  Or Special G'Ship,A61015,Fostering and Guardianship Allowances,42292569,01/03/2024,202312,357.00,REDACTED PERSONAL INFORMATION,REDACTED PERSONAL INFORMATION
AD Regulated Provision,Revenue Budgets,Childrens Services,Fostering and Adoption,A0486,Residence  Or Special G'Ship,A61015,Fostering and Guardianship Allowances,42292581,01/03/2024,202312,466.00,REDACTED PERSONAL INFORMATION,REDACTED PERSONAL INFORMATION
AD Regulated Provision,Revenue Budgets,Childrens Services,Fostering and Adoption,A0486,Residence  Or Special G'Ship,A61015,Fostering and Guardianship Allowances,42292582,01/03/2024,202312,357.00,REDACTED PERSONAL INFORMATION,REDACTED PERSONAL INFORMATION
AD Regulated Provision,Revenue Budgets,Childrens Services,Fostering and Adoption,A0486,Residence  Or Special G'Ship,A61015,Fostering and Guardianship Allowances,42292588,01/03/2024,202312,333.00,REDACTED PERSONAL INFORMATION,REDACTED PERSONAL INFORMATION
AD Regulated Provision,Revenue Budgets,Childrens Services,Fostering and Adoption,A0486,Residence  Or Special G'Ship,A61015,Fostering and Guardianship Allowances,42292649,01/03/2024,202312,325.10,REDACTED PERSONAL INFORMATION,REDACTED PERSONAL INFORMATION
AD Regulated Provision,Revenue Budgets,Childrens Services,Fostering and Adoption,A0486,Residence  Or Special G'Ship,A61015,Fostering and Guardianship Allowances,42292649,01/03/2024,202312,333.00,REDACTED PERSONAL INFORMATION,REDACTED PERSONAL INFORMATION
AD Regulated Provision,Revenue Budgets,Childrens Services,Fostering and Adoption,A0489,Adoption Support,A61120,Adoptions Allowances,42292656,01/03/2024,202312,500.00,REDACTED PERSONAL INFORMATION,REDACTED PERSONAL INFORMATION
AD Regulated Provision,Revenue Budgets,Childrens Services,Children in Care Disability,A0509,Unaccomp Childr Asylum Seekers,A56000,Other Establishments,30196629,02/03/2024,202312,"8,934.83",REDACTED PERSONAL INFORMATION,REDACTED PERSONAL INFORMATION
AD Regulated Provision,Revenue Budgets,Childrens Services,CS Commissioning Service,A0273,External Residential,A56000,Other Establishments,30195312,03/03/2024,202312,"22,580.00",REDACTED PERSONAL INFORMATION,REDACTED PERSONAL INFORMATION
AD Regulated Provision,Revenue Budgets,Childrens Services,CS Residential Homes,A0502,PETTY CASH,A40920,Purchase of Equipment,30191552,04/03/2024,202312,288.40,PETTY CASH,PETTY CASH
AD Regulated Provision,Revenue Budgets,Childrens Services,CS Residential Homes,A0502,PETTY CASH,A44030,Provisions,30191552,04/03/2024,202312,286.70,PETTY CASH,PETTY CASH
AD Regulated Provision,Revenue Budgets,Childrens Services,CS Residential Homes,A0501,PETTY CASH,A44030,Provisions,30191554,04/03/2024,202312,916.10,PETTY CASH,PETTY CASH
AD Regulated Provision,Revenue Budgets,Childrens Services,CS Commissioning Service,A0492,Independent Foster Agencies,A56000,Other Establishments,30191592,04/03/2024,202312,"3,776.54",REDACTED PERSONAL INFORMATION,REDACTED PERSONAL INFORMATION
AD Regulated Provision,Revenue Budgets,Childrens Services,CS Commissioning Service,A0492,Independent Foster Agencies,A56000,Other Establishments,30191595,04/03/2024,202312,"4,116.49",REDACTED PERSONAL INFORMATION,REDACTED PERSONAL INFORMATION
AD Regulated Provision,Revenue Budgets,Childrens Services,CS Commissioning Service,A0492,Independent Foster Agencies,A56000,Other Establishments,30191600,04/03/2024,202312,"3,853.61",REDACTED PERSONAL INFORMATION,REDACTED PERSONAL INFORMATION
AD Regulated Provision,Revenue Budgets,Childrens Services,CS Commissioning Service,A0492,Independent Foster Agencies,A56000,Other Establishments,30191608,04/03/2024,202312,"3,997.45",REDACTED PERSONAL INFORMATION,REDACTED PERSONAL INFORMATION
AD Regulated Provision,Revenue Budgets,Childrens Services,CS Commissioning Service,A0492,Independent Foster Agencies,A56000,Other Establishments,30191610,04/03/2024,202312,"3,997.76",REDACTED PERSONAL INFORMATION,REDACTED PERSONAL INFORMATION
AD Regulated Provision,Revenue Budgets,Childrens Services,CS Commissioning Service,A0492,Independent Foster Agencies,A56000,Other Establishments,30191614,04/03/2024,202312,"3,782.24",REDACTED PERSONAL INFORMATION,REDACTED PERSONAL INFORMATION
AD Regulated Provision,Revenue Budgets,Childrens Services,CS Commissioning Service,A0492,Independent Foster Agencies,A56000,Other Establishments,30191616,04/03/2024,202312,"4,879.71",REDACTED PERSONAL INFORMATION,REDACTED PERSONAL INFORMATION
AD Regulated Provision,Revenue Budgets,Childrens Services,CS Commissioning Service,A0492,Independent Foster Agencies,A56000,Other Establishments,30193129,04/03/2024,202312,"3,346.00",REDACTED PERSONAL INFORMATION,REDACTED PERSONAL INFORMATION
AD Regulated Provision,Revenue Budgets,Childrens Services,Children's Disability Service,A0517,Direct Payments Scheme,A56000,Other Establishments,30193188,04/03/2024,202312,"1,808.00",REDACTED PERSONAL INFORMATION,REDACTED PERSONAL INFORMATION
AD Regulated Provision,Revenue Budgets,Childrens Services,CS Residential Homes,A1718,REDACTED PERSONAL INFORMATION,A46050,Conference Expenses,30193921,04/03/2024,202312,"4,480.00",REDACTED PERSONAL INFORMATION,REDACTED PERSONAL INFORMATION
AD Regulated Provision,Revenue Budgets,Childrens Services,CS Commissioning Service,A0273,External Residential,A56000,Other Establishments,30193205,05/03/2024,202312,"77,736.53",REDACTED PERSONAL INFORMATION,REDACTED PERSONAL INFORMATION
AD Regulated Provision,Revenue Budgets,Childrens Services,Fostering and Adoption,A0490,Fostering And Adoption Team,A47010,Subscriptions (non staff),30196854,05/03/2024,202312,"1,933.56",REDACTED PERSONAL INFORMATION,REDACTED PERSONAL INFORMATION
AD Regulated Provision,Revenue Budgets,Childrens Services,Children's Disability Service,A0515,Childrens Disability Team,A56000,Other Establishments,30196126,07/03/2024,202312,383.56,REDACTED PERSONAL INFORMATION,REDACTED PERSONAL INFORMATION
AD Regulated Provision,Revenue Budgets,Childrens Services,Children in Care Disability,A0511,Care Leavers Allowances,A61165,Housing Benefit,42293525,07/03/2024,202312,257.00,REDACTED PERSONAL INFORMATION,REDACTED PERSONAL INFORMATION
AD Regulated Provision,Revenue Budgets,Childrens Services,Children in Care Disability,A0511,Care Leavers Allowances,A61165,Housing Benefit,42293527,07/03/2024,202312,257.00,REDACTED PERSONAL INFORMATION,REDACTED PERSONAL INFORMATION
AD Regulated Provision,Revenue Budgets,Childrens Services,Children in Care Disability,A0511,Care Leavers Allowances,A61165,Housing Benefit,42293528,07/03/2024,202312,257.00,REDACTED PERSONAL INFORMATION,REDACTED PERSONAL INFORMATION
AD Regulated Provision,Revenue Budgets,Childrens Services,Children in Care Disability,A0511,Care Leavers Allowances,A61165,Housing Benefit,42293531,07/03/2024,202312,257.00,REDACTED PERSONAL INFORMATION,REDACTED PERSONAL INFORMATION
AD Regulated Provision,Revenue Budgets,Childrens Services,Children in Care Disability,A0511,Care Leavers Allowances,A61165,Housing Benefit,42293533,07/03/2024,202312,257.00,REDACTED PERSONAL INFORMATION,REDACTED PERSONAL INFORMATION
AD Regulated Provision,Revenue Budgets,Childrens Services,Children in Care Disability,A0509,Unaccomp Childr Asylum Seekers,A61165,Housing Benefit,42293534,07/03/2024,202312,257.00,REDACTED PERSONAL INFORMATION,REDACTED PERSONAL INFORMATION
AD Regulated Provision,Revenue Budgets,Childrens Services,Children in Care Disability,A0511,Care Leavers Allowances,A61165,Housing Benefit,42293535,07/03/2024,202312,257.00,REDACTED PERSONAL INFORMATION,REDACTED PERSONAL INFORMATION
AD Regulated Provision,Revenue Budgets,Childrens Services,Children in Care Disability,A0511,Care Leavers Allowances,A61165,Housing Benefit,42293537,07/03/2024,202312,257.00,REDACTED PERSONAL INFORMATION,REDACTED PERSONAL INFORMATION
AD Regulated Provision,Revenue Budgets,Childrens Services,Children in Care Disability,A0511,Care Leavers Allowances,A61165,Housing Benefit,42293538,07/03/2024,202312,257.00,REDACTED PERSONAL INFORMATION,REDACTED PERSONAL INFORMATION
AD Regulated Provision,Revenue Budgets,Childrens Services,Children in Care Disability,A0509,Unaccomp Childr Asylum Seekers,A61165,Housing Benefit,42293540,07/03/2024,202312,292.00,REDACTED PERSONAL INFORMATION,REDACTED PERSONAL INFORMATION
AD Regulated Provision,Revenue Budgets,Childrens Services,Children in Care Disability,A0511,Care Leavers Allowances,A61165,Housing Benefit,42293541,07/03/2024,202312,257.00,REDACTED PERSONAL INFORMATION,REDACTED PERSONAL INFORMATION
AD Regulated Provision,Revenue Budgets,Childrens Services,Children in Care Disability,A0509,Unaccomp Childr Asylum Seekers,A61165,Housing Benefit,42293543,07/03/2024,202312,386.60,REDACTED PERSONAL INFORMATION,REDACTED PERSONAL INFORMATION
AD Regulated Provision,Revenue Budgets,Childrens Services,Children in Care Disability,A0511,Care Leavers Allowances,A61165,Housing Benefit,42293545,07/03/2024,202312,257.00,REDACTED PERSONAL INFORMATION,REDACTED PERSONAL INFORMATION
AD Regulated Provision,Revenue Budgets,Childrens Services,Children in Care,A0514,Children in Care,A61156,Section 17,42293559,07/03/2024,202312,354.00,REDACTED PERSONAL INFORMATION,REDACTED PERSONAL INFORMATION
AD Regulated Provision,Revenue Budgets,Childrens Services,Children's Disability Service,A0517,Direct Payments Scheme,A56000,Other Establishments,42293574,07/03/2024,202312,305.31,REDACTED PERSONAL INFORMATION,REDACTED PERSONAL INFORMATION
AD Regulated Provision,Revenue Budgets,Childrens Services,Children's Disability Service,A0517,Direct Payments Scheme,A56000,Other Establishments,42293583,07/03/2024,202312,262.00,REDACTED PERSONAL INFORMATION,REDACTED PERSONAL INFORMATION
AD Regulated Provision,Revenue Budgets,Childrens Services,Children's Disability Service,A0517,Direct Payments Scheme,A56000,Other Establishments,42293583,07/03/2024,202312,324.75,REDACTED PERSONAL INFORMATION,REDACTED PERSONAL INFORMATION
AD Regulated Provision,Revenue Budgets,Childrens Services,Children's Disability Service,A0517,Direct Payments Scheme,A56000,Other Establishments,42293583,07/03/2024,202312,329.34,REDACTED PERSONAL INFORMATION,REDACTED PERSONAL INFORMATION
AD Regulated Provision,Revenue Budgets,Childrens Services,Children's Disability Service,A0517,Direct Payments Scheme,A56000,Other Establishments,42293583,07/03/2024,202312,384.45,REDACTED PERSONAL INFORMATION,REDACTED PERSONAL INFORMATION
AD Regulated Provision,Revenue Budgets,Childrens Services,Children's Disability Service,A0517,Direct Payments Scheme,A56000,Other Establishments,42293583,07/03/2024,202312,784.00,REDACTED PERSONAL INFORMATION,REDACTED PERSONAL INFORMATION
AD Regulated Provision,Revenue Budgets,Childrens Services,Children's Disability Service,A0517,Direct Payments Scheme,A56000,Other Establishments,42293583,07/03/2024,202312,876.00,REDACTED PERSONAL INFORMATION,REDACTED PERSONAL INFORMATION
AD Regulated Provision,Revenue Budgets,Childrens Services,Children's Disability Service,A0517,Direct Payments Scheme,A56000,Other Establishments,42293583,07/03/2024,202312,"1,004.69",REDACTED PERSONAL INFORMATION,REDACTED PERSONAL INFORMATION
AD Regulated Provision,Revenue Budgets,Childrens Services,Fostering and Adoption,A0484,Mainstream Carer Payments,A61166,Contract Plus,42293601,07/03/2024,202312,315.00,REDACTED PERSONAL INFORMATION,REDACTED PERSONAL INFORMATION
AD Regulated Provision,Revenue Budgets,Childrens Services,Fostering and Adoption,A0489,Adoption Support,A61120,Adoptions Allowances,42293605,07/03/2024,202312,370.74,REDACTED PERSONAL INFORMATION,REDACTED PERSONAL INFORMATION
AD Regulated Provision,Revenue Budgets,Childrens Services,Fostering and Adoption,A0489,Adoption Support,A61120,Adoptions Allowances,42293605,07/03/2024,202312,370.74,REDACTED PERSONAL INFORMATION,REDACTED PERSONAL INFORMATION
AD Regulated Provision,Revenue Budgets,Childrens Services,Fostering and Adoption,A0484,Mainstream Carer Payments,A61166,Contract Plus,42293607,07/03/2024,202312,315.00,REDACTED PERSONAL INFORMATION,REDACTED PERSONAL INFORMATION
AD Regulated Provision,Revenue Budgets,Childrens Services,Fostering and Adoption,A0484,Mainstream Carer Payments,A61166,Contract Plus,42293670,07/03/2024,202312,315.00,REDACTED PERSONAL INFORMATION,REDACTED PERSONAL INFORMATION
AD Regulated Provision,Revenue Budgets,Childrens Services,Fostering and Adoption,A0486,Residence  Or Special G'Ship,A61015,Fostering and Guardianship Allowances,42293746,07/03/2024,202312,364.08,REDACTED PERSONAL INFORMATION,REDACTED PERSONAL INFORMATION
AD Regulated Provision,Revenue Budgets,Childrens Services,Fostering and Adoption,A0486,Residence  Or Special G'Ship,A61015,Fostering and Guardianship Allowances,42293746,07/03/2024,202312,364.08,REDACTED PERSONAL INFORMATION,REDACTED PERSONAL INFORMATION
AD Regulated Provision,Revenue Budgets,Childrens Services,Fostering and Adoption,A0484,Mainstream Carer Payments,A61166,Contract Plus,42293749,07/03/2024,202312,315.00,REDACTED PERSONAL INFORMATION,REDACTED PERSONAL INFORMATION
AD Regulated Provision,Revenue Budgets,Childrens Services,Fostering and Adoption,A0484,Mainstream Carer Payments,A61166,Contract Plus,42293766,07/03/2024,202312,315.00,REDACTED PERSONAL INFORMATION,REDACTED PERSONAL INFORMATION
AD Regulated Provision,Revenue Budgets,Childrens Services,Fostering and Adoption,A0484,Mainstream Carer Payments,A61166,Contract Plus,42293767,07/03/2024,202312,315.00,REDACTED PERSONAL INFORMATION,REDACTED PERSONAL INFORMATION
AD Regulated Provision,Revenue Budgets,Childrens Services,Fostering and Adoption,A0484,Mainstream Carer Payments,A57205,Child Care Payments,42293768,07/03/2024,202312,711.58,REDACTED PERSONAL INFORMATION,REDACTED PERSONAL INFORMATION
AD Regulated Provision,Revenue Budgets,Childrens Services,Fostering and Adoption,A0484,Mainstream Carer Payments,A61166,Contract Plus,42293769,07/03/2024,202312,315.00,REDACTED PERSONAL INFORMATION,REDACTED PERSONAL INFORMATION
AD Regulated Provision,Revenue Budgets,Childrens Services,Fostering and Adoption,A0484,Mainstream Carer Payments,A61166,Contract Plus,42293770,07/03/2024,202312,315.00,REDACTED PERSONAL INFORMATION,REDACTED PERSONAL INFORMATION
AD Regulated Provision,Revenue Budgets,Childrens Services,Fostering and Adoption,A0484,Mainstream Carer Payments,A61166,Contract Plus,42293771,07/03/2024,202312,315.00,REDACTED PERSONAL INFORMATION,REDACTED PERSONAL INFORMATION
AD Regulated Provision,Revenue Budgets,Childrens Services,Fostering and Adoption,A0484,Mainstream Carer Payments,A61150,Additional Cost,42293790,07/03/2024,202312,350.00,REDACTED PERSONAL INFORMATION,REDACTED PERSONAL INFORMATION
AD Regulated Provision,Revenue Budgets,Childrens Services,Fostering and Adoption,A0484,Mainstream Carer Payments,A61166,Contract Plus,42293800,07/03/2024,202312,315.00,REDACTED PERSONAL INFORMATION,REDACTED PERSONAL INFORMATION
AD Regulated Provision,Revenue Budgets,Childrens Services,Fostering and Adoption,A0484,Mainstream Carer Payments,A61166,Contract Plus,42293803,07/03/2024,202312,315.00,REDACTED PERSONAL INFORMATION,REDACTED PERSONAL INFORMATION
AD Regulated Provision,Revenue Budgets,Childrens Services,Fostering and Adoption,A0484,Mainstream Carer Payments,A61166,Contract Plus,42293805,07/03/2024,202312,315.00,REDACTED PERSONAL INFORMATION,REDACTED PERSONAL INFORMATION
AD Regulated Provision,Revenue Budgets,Childrens Services,Fostering and Adoption,A0489,Adoption Support,A61120,Adoptions Allowances,42293808,07/03/2024,202312,559.44,REDACTED PERSONAL INFORMATION,REDACTED PERSONAL INFORMATION
AD Regulated Provision,Revenue Budgets,Childrens Services,Fostering and Adoption,A0484,Mainstream Carer Payments,A61166,Contract Plus,42293813,07/03/2024,202312,315.00,REDACTED PERSONAL INFORMATION,REDACTED PERSONAL INFORMATION
AD Regulated Provision,Revenue Budgets,Childrens Services,Fostering and Adoption,A0484,Mainstream Carer Payments,A61166,Contract Plus,42293814,07/03/2024,202312,315.00,REDACTED PERSONAL INFORMATION,REDACTED PERSONAL INFORMATION
AD Regulated Provision,Revenue Budgets,Childrens Services,Fostering and Adoption,A0486,Residence  Or Special G'Ship,A61015,Fostering and Guardianship Allowances,42293818,07/03/2024,202312,357.00,REDACTED PERSONAL INFORMATION,REDACTED PERSONAL INFORMATION
AD Regulated Provision,Revenue Budgets,Childrens Services,Fostering and Adoption,A0486,Residence  Or Special G'Ship,A61015,Fostering and Guardianship Allowances,42293818,07/03/2024,202312,365.10,REDACTED PERSONAL INFORMATION,REDACTED PERSONAL INFORMATION
AD Regulated Provision,Revenue Budgets,Childrens Services,Fostering and Adoption,A0489,Adoption Support,A61120,Adoptions Allowances,42293844,07/03/2024,202312,886.58,REDACTED PERSONAL INFORMATION,REDACTED PERSONAL INFORMATION
AD Regulated Provision,Revenue Budgets,Childrens Services,Fostering and Adoption,A0484,Mainstream Carer Payments,A61166,Contract Plus,42293876,07/03/2024,202312,315.00,REDACTED PERSONAL INFORMATION,REDACTED PERSONAL INFORMATION
AD Regulated Provision,Revenue Budgets,Childrens Services,Fostering and Adoption,A0484,Mainstream Carer Payments,A61166,Contract Plus,42293876,07/03/2024,202312,315.00,REDACTED PERSONAL INFORMATION,REDACTED PERSONAL INFORMATION
AD Regulated Provision,Revenue Budgets,Childrens Services,Fostering and Adoption,A0486,Residence  Or Special G'Ship,A61015,Fostering and Guardianship Allowances,42293953,07/03/2024,202312,357.00,REDACTED PERSONAL INFORMATION,REDACTED PERSONAL INFORMATION
AD Regulated Provision,Revenue Budgets,Childrens Services,Fostering and Adoption,A0486,Residence  Or Special G'Ship,A61015,Fostering and Guardianship Allowances,42293953,07/03/2024,202312,357.00,REDACTED PERSONAL INFORMATION,REDACTED PERSONAL INFORMATION
AD Regulated Provision,Revenue Budgets,Childrens Services,Fostering and Adoption,A0486,Residence  Or Special G'Ship,A61015,Fostering and Guardianship Allowances,42293965,07/03/2024,202312,466.00,REDACTED PERSONAL INFORMATION,REDACTED PERSONAL INFORMATION
AD Regulated Provision,Revenue Budgets,Childrens Services,Fostering and Adoption,A0486,Residence  Or Special G'Ship,A61015,Fostering and Guardianship Allowances,42293966,07/03/2024,202312,357.00,REDACTED PERSONAL INFORMATION,REDACTED PERSONAL INFORMATION
AD Regulated Provision,Revenue Budgets,Childrens Services,Fostering and Adoption,A0486,Residence  Or Special G'Ship,A61015,Fostering and Guardianship Allowances,42293972,07/03/2024,202312,333.00,REDACTED PERSONAL INFORMATION,REDACTED PERSONAL INFORMATION
AD Regulated Provision,Revenue Budgets,Childrens Services,Fostering and Adoption,A0484,Mainstream Carer Payments,A61115,Holiday Allowances,42293997,07/03/2024,202312,350.00,REDACTED PERSONAL INFORMATION,REDACTED PERSONAL INFORMATION
AD Regulated Provision,Revenue Budgets,Childrens Services,Fostering and Adoption,A0484,Mainstream Carer Payments,A61115,Holiday Allowances,42293997,07/03/2024,202312,350.00,REDACTED PERSONAL INFORMATION,REDACTED PERSONAL INFORMATION
AD Regulated Provision,Revenue Budgets,Childrens Services,Fostering and Adoption,A0486,Residence  Or Special G'Ship,A61015,Fostering and Guardianship Allowances,42294031,07/03/2024,202312,325.10,REDACTED PERSONAL INFORMATION,REDACTED PERSONAL INFORMATION
AD Regulated Provision,Revenue Budgets,Childrens Services,Fostering and Adoption,A0486,Residence  Or Special G'Ship,A61015,Fostering and Guardianship Allowances,42294031,07/03/2024,202312,333.00,REDACTED PERSONAL INFORMATION,REDACTED PERSONAL INFORMATION
AD Regulated Provision,Revenue Budgets,Childrens Services,Fostering and Adoption,A0489,Adoption Support,A61120,Adoptions Allowances,42294038,07/03/2024,202312,500.00,REDACTED PERSONAL INFORMATION,REDACTED PERSONAL INFORMATION
AD Regulated Provision,Revenue Budgets,Childrens Services,Fostering and Adoption,A0489,Adoption Support,A61148,Setting Up,42294039,07/03/2024,202312,350.00,REDACTED PERSONAL INFORMATION,REDACTED PERSONAL INFORMATION
AD Regulated Provision,Revenue Budgets,Childrens Services,Head Of Corporate Parenting,A0506,Head Of Service Resources,A56000,Other Establishments,30194081,08/03/2024,202312,"2,100.00",1005418,E.B.I.S.W Ltd
AD Regulated Provision,Revenue Budgets,Childrens Services,Children in Care Disability,A0509,Unaccomp Childr Asylum Seekers,A61152,Leaving Care Grant,30194550,08/03/2024,202312,350.00,116266,B & M Retail Limited
AD Regulated Provision,Revenue Budgets,Childrens Services,Children in Care Disability,A0511,Care Leavers Allowances,A61163,Driving Lessons,30197868,08/03/2024,202312,295.00,1005601,Anderby Driving Centre Ltd
AD Regulated Provision,Revenue Budgets,Childrens Services,CS Commissioning Service,A0492,Independent Foster Agencies,A56000,Other Establishments,30194249,11/03/2024,202312,"4,067.38",132099,Five Rivers Childcare Ltd
AD Regulated Provision,Revenue Budgets,Childrens Services,Children in Care Disability,A0509,Unaccomp Childr Asylum Seekers,A61152,Leaving Care Grant,30196347,11/03/2024,202312,358.80,1005699,Alexandra Beds
AD Regulated Provision,Revenue Budgets,Childrens Services,Children in Care Disability,A0509,Unaccomp Childr Asylum Seekers,A61152,Leaving Care Grant,30196350,11/03/2024,202312,299.04,1005699,Alexandra Beds
AD Regulated Provision,Revenue Budgets,Childrens Services,CS Commissioning Service,A0273,External Residential,A56000,Other Establishments,30198228,11/03/2024,202312,"26,000.00",1002901,Safe Haven Adolescent Care Group Ltd
AD Regulated Provision,Revenue Budgets,Childrens Services,Children in Care Disability,A0509,Unaccomp Childr Asylum Seekers,A61152,Leaving Care Grant,30194535,12/03/2024,202312,516.67,103262,Carpets Galore
AD Regulated Provision,Revenue Budgets,Childrens Services,CS Commissioning Service,A0492,Independent Foster Agencies,A56000,Other Establishments,30194981,13/03/2024,202312,"3,915.61",101455,Foster Care Associates Limited
AD Regulated Provision,Revenue Budgets,Childrens Services,CS Commissioning Service,A0492,Independent Foster Agencies,A56000,Other Establishments,30194985,13/03/2024,202312,"3,915.61",101455,Foster Care Associates Limited
AD Regulated Provision,Revenue Budgets,Childrens Services,CS Commissioning Service,A0492,Independent Foster Agencies,A56000,Other Establishments,30194987,13/03/2024,202312,"4,089.21",101455,Foster Care Associates Limited
AD Regulated Provision,Revenue Budgets,Childrens Services,CS Commissioning Service,A0492,Independent Foster Agencies,A56000,Other Establishments,30194992,13/03/2024,202312,"4,005.20",101455,Foster Care Associates Limited
AD Regulated Provision,Revenue Budgets,Childrens Services,CS Commissioning Service,A0492,Independent Foster Agencies,A56000,Other Establishments,30194995,13/03/2024,202312,"4,089.21",101455,Foster Care Associates Limited
AD Regulated Provision,Revenue Budgets,Childrens Services,CS Commissioning Service,A0492,Independent Foster Agencies,A56000,Other Establishments,30195000,13/03/2024,202312,"3,915.61",101455,Foster Care Associates Limited
AD Regulated Provision,Revenue Budgets,Childrens Services,CS Commissioning Service,A0492,Independent Foster Agencies,A56000,Other Establishments,30195007,13/03/2024,202312,"4,661.51",101455,Foster Care Associates Limited
AD Regulated Provision,Revenue Budgets,Childrens Services,CS Commissioning Service,A0492,Independent Foster Agencies,A56000,Other Establishments,30195015,13/03/2024,202312,"4,089.21",101455,Foster Care Associates Limited
AD Regulated Provision,Revenue Budgets,Childrens Services,CS Commissioning Service,A0492,Independent Foster Agencies,A56000,Other Establishments,30195021,13/03/2024,202312,"3,915.61",101455,Foster Care Associates Limited
AD Regulated Provision,Revenue Budgets,Childrens Services,CS Commissioning Service,A0492,Independent Foster Agencies,A56000,Other Establishments,30195023,13/03/2024,202312,"3,915.61",101455,Foster Care Associates Limited
AD Regulated Provision,Revenue Budgets,Childrens Services,CS Commissioning Service,A0492,Independent Foster Agencies,A56000,Other Establishments,30195025,13/03/2024,202312,"4,089.21",101455,Foster Care Associates Limited
AD Regulated Provision,Revenue Budgets,Childrens Services,CS Commissioning Service,A0492,Independent Foster Agencies,A56000,Other Establishments,30195028,13/03/2024,202312,"3,915.61",101455,Foster Care Associates Limited
AD Regulated Provision,Revenue Budgets,Childrens Services,CS Commissioning Service,A0492,Independent Foster Agencies,A56000,Other Establishments,30195030,13/03/2024,202312,"3,598.81",101455,Foster Care Associates Limited
AD Regulated Provision,Revenue Budgets,Childrens Services,CS Commissioning Service,A0492,Independent Foster Agencies,A56000,Other Establishments,30195035,13/03/2024,202312,"4,089.21",101455,Foster Care Associates Limited
AD Regulated Provision,Revenue Budgets,Childrens Services,CS Commissioning Service,A0492,Independent Foster Agencies,A56000,Other Establishments,30195100,13/03/2024,202312,"4,202.36",101455,Foster Care Associates Limited
AD Regulated Provision,Revenue Budgets,Childrens Services,CS Commissioning Service,A0492,Independent Foster Agencies,A56000,Other Establishments,30195103,13/03/2024,202312,"3,762.78",101455,Foster Care Associates Limited
AD Regulated Provision,Revenue Budgets,Childrens Services,CS Commissioning Service,A0492,Independent Foster Agencies,A56000,Other Establishments,30195108,13/03/2024,202312,"4,089.21",101455,Foster Care Associates Limited
AD Regulated Provision,Revenue Budgets,Childrens Services,CS Commissioning Service,A0492,Independent Foster Agencies,A56000,Other Establishments,30195110,13/03/2024,202312,"4,202.36",101455,Foster Care Associates Limited
AD Regulated Provision,Revenue Budgets,Childrens Services,CS Commissioning Service,A0492,Independent Foster Agencies,A56000,Other Establishments,30195112,13/03/2024,202312,"4,202.05",101455,Foster Care Associates Limited
AD Regulated Provision,Revenue Budgets,Childrens Services,CS Commissioning Service,A0492,Independent Foster Agencies,A56000,Other Establishments,30195114,13/03/2024,202312,"4,202.36",101455,Foster Care Associates Limited
AD Regulated Provision,Revenue Budgets,Childrens Services,CS Commissioning Service,A0492,Independent Foster Agencies,A56000,Other Establishments,30195115,13/03/2024,202312,"4,856.15",101455,Foster Care Associates Limited
AD Regulated Provision,Revenue Budgets,Childrens Services,CS Commissioning Service,A0492,Independent Foster Agencies,A56000,Other Establishments,30195116,13/03/2024,202312,"4,005.20",101455,Foster Care Associates Limited
AD Regulated Provision,Revenue Budgets,Childrens Services,CS Commissioning Service,A0492,Independent Foster Agencies,A56000,Other Establishments,30195120,13/03/2024,202312,"4,202.36",101455,Foster Care Associates Limited
AD Regulated Provision,Revenue Budgets,Childrens Services,CS Commissioning Service,A0492,Independent Foster Agencies,A56000,Other Establishments,30195123,13/03/2024,202312,"4,005.20",101455,Foster Care Associates Limited
AD Regulated Provision,Revenue Budgets,Childrens Services,CS Commissioning Service,A0273,External Residential,A56000,Other Establishments,30195998,13/03/2024,202312,"83,097.67",1008596,Flourish Children's Services Ltd
AD Regulated Provision,Revenue Budgets,Childrens Services,Children in Care,A0514,Children in Care,A61156,Section 17,30196786,13/03/2024,202312,"2,450.00",1009545,Cityred Limited T/A Cityred Properties
AD Regulated Provision,Revenue Budgets,Childrens Services,Children's Disability Service,A0515,Childrens Disability Team,A56000,Other Establishments,30199035,13/03/2024,202312,354.57,1007689,VCare Alliance Ltd
AD Regulated Provision,Revenue Budgets,Childrens Services,CS Residential Homes,A0501,PETTY CASH,A40920,Purchase of Equipment,30199406,13/03/2024,202312,343.77,PETTY CASH,PETTY CASH
AD Regulated Provision,Revenue Budgets,Childrens Services,CS Residential Homes,A0501,PETTY CASH,A44030,Provisions,30199406,13/03/2024,202312,"1,160.89",PETTY CASH,PETTY CASH
AD Regulated Provision,Revenue Budgets,Childrens Services,CS Commissioning Service,A0492,Independent Foster Agencies,A56000,Other Establishments,30195916,14/03/2024,202312,"3,963.57",151029,Rainbow Fostering Services Ltd
AD Regulated Provision,Revenue Budgets,Childrens Services,CS Commissioning Service,A0273,External Residential,A56000,Other Establishments,30195961,14/03/2024,202312,"25,153.49",1009041,Esland North Ltd
AD Regulated Provision,Revenue Budgets,Childrens Services,Children in Care Disability,A0511,PETTY CASH,A61045,Personal Allowance,30195989,14/03/2024,202312,269.60,PETTY CASH,PETTY CASH
AD Regulated Provision,Revenue Budgets,Childrens Services,Children in Care Disability,A0511,PETTY CASH,A61045,Personal Allowance,30195989,14/03/2024,202312,674.00,PETTY CASH,PETTY CASH
AD Regulated Provision,Revenue Budgets,Childrens Services,CS Residential Homes,A0499,PETTY CASH,A20005,"Property Repairs, Maintenance & Alterations",30197994,14/03/2024,202312,"1,363.57",PETTY CASH,PETTY CASH
AD Regulated Provision,Revenue Budgets,Childrens Services,CS Residential Homes,A0499,PETTY CASH,A44030,Provisions,30197994,14/03/2024,202312,720.67,PETTY CASH,PETTY CASH
AD Regulated Provision,Revenue Budgets,Childrens Services,CS Residential Homes,A0499,PETTY CASH,A49107,Activities - Service Users,30197994,14/03/2024,202312,555.45,PETTY CASH,PETTY CASH
AD Regulated Provision,Revenue Budgets,Childrens Services,CS Residential Homes,A0499,PETTY CASH,A61110,Birthday Allowances,30197994,14/03/2024,202312,341.80,PETTY CASH,PETTY CASH
AD Regulated Provision,Revenue Budgets,Childrens Services,CS Residential Homes,A0499,PETTY CASH,A61147,Christmas,30197994,14/03/2024,202312,403.61,PETTY CASH,PETTY CASH
AD Regulated Provision,Revenue Budgets,Childrens Services,CS Residential Homes,A0499,PETTY CASH,A61151,Personal Items,30197994,14/03/2024,202312,268.67,PETTY CASH,PETTY CASH
AD Regulated Provision,Revenue Budgets,Childrens Services,Children's Disability Service,A0515,Childrens Disability Team,A61156,Section 17,30199033,14/03/2024,202312,298.88,111643,Living Ambitions Ltd
AD Regulated Provision,Revenue Budgets,Childrens Services,Children in Care Disability,A0511,Care Leavers Allowances,A61165,Housing Benefit,42294897,14/03/2024,202312,257.00,REDACTED PERSONAL INFORMATION,REDACTED PERSONAL INFORMATION
AD Regulated Provision,Revenue Budgets,Childrens Services,Children in Care Disability,A0511,Care Leavers Allowances,A61165,Housing Benefit,42294899,14/03/2024,202312,257.00,REDACTED PERSONAL INFORMATION,REDACTED PERSONAL INFORMATION
AD Regulated Provision,Revenue Budgets,Childrens Services,Children in Care Disability,A0511,Care Leavers Allowances,A61165,Housing Benefit,42294900,14/03/2024,202312,257.00,REDACTED PERSONAL INFORMATION,REDACTED PERSONAL INFORMATION
AD Regulated Provision,Revenue Budgets,Childrens Services,Children in Care Disability,A0511,Care Leavers Allowances,A61165,Housing Benefit,42294903,14/03/2024,202312,257.00,REDACTED PERSONAL INFORMATION,REDACTED PERSONAL INFORMATION
AD Regulated Provision,Revenue Budgets,Childrens Services,Children in Care Disability,A0511,Care Leavers Allowances,A61165,Housing Benefit,42294907,14/03/2024,202312,257.00,REDACTED PERSONAL INFORMATION,REDACTED PERSONAL INFORMATION
AD Regulated Provision,Revenue Budgets,Childrens Services,Children in Care Disability,A0511,Care Leavers Allowances,A61165,Housing Benefit,42294908,14/03/2024,202312,257.00,REDACTED PERSONAL INFORMATION,REDACTED PERSONAL INFORMATION
AD Regulated Provision,Revenue Budgets,Childrens Services,Children in Care Disability,A0509,Unaccomp Childr Asylum Seekers,A61165,Housing Benefit,42294911,14/03/2024,202312,292.00,REDACTED PERSONAL INFORMATION,REDACTED PERSONAL INFORMATION
AD Regulated Provision,Revenue Budgets,Childrens Services,Children in Care Disability,A0511,Care Leavers Allowances,A61165,Housing Benefit,42294912,14/03/2024,202312,257.00,REDACTED PERSONAL INFORMATION,REDACTED PERSONAL INFORMATION
AD Regulated Provision,Revenue Budgets,Childrens Services,Children in Care Disability,A0511,Care Leavers Allowances,A61165,Housing Benefit,42294913,14/03/2024,202312,257.00,REDACTED PERSONAL INFORMATION,REDACTED PERSONAL INFORMATION
AD Regulated Provision,Revenue Budgets,Childrens Services,Children in Care Disability,A0511,Care Leavers Allowances,A61165,Housing Benefit,42294914,14/03/2024,202312,257.00,REDACTED PERSONAL INFORMATION,REDACTED PERSONAL INFORMATION
AD Regulated Provision,Revenue Budgets,Childrens Services,Children in Care Disability,A0509,Unaccomp Childr Asylum Seekers,A61165,Housing Benefit,42294916,14/03/2024,202312,386.60,REDACTED PERSONAL INFORMATION,REDACTED PERSONAL INFORMATION
AD Regulated Provision,Revenue Budgets,Childrens Services,Children in Care Disability,A0509,Unaccomp Childr Asylum Seekers,A61165,Housing Benefit,42294917,14/03/2024,202312,257.00,REDACTED PERSONAL INFORMATION,REDACTED PERSONAL INFORMATION
AD Regulated Provision,Revenue Budgets,Childrens Services,Children in Care Disability,A0511,Care Leavers Allowances,A61165,Housing Benefit,42294919,14/03/2024,202312,257.00,REDACTED PERSONAL INFORMATION,REDACTED PERSONAL INFORMATION
AD Regulated Provision,Revenue Budgets,Childrens Services,Children in Care Disability,A0509,Unaccomp Childr Asylum Seekers,A61165,Housing Benefit,42294920,14/03/2024,202312,400.00,REDACTED PERSONAL INFORMATION,REDACTED PERSONAL INFORMATION
AD Regulated Provision,Revenue Budgets,Childrens Services,Children in Care Disability,A0509,Unaccomp Childr Asylum Seekers,A61165,Housing Benefit,42294920,14/03/2024,202312,"3,600.00",REDACTED PERSONAL INFORMATION,REDACTED PERSONAL INFORMATION
AD Regulated Provision,Revenue Budgets,Childrens Services,Children's Disability Service,A0517,Direct Payments Scheme,A56000,Other Establishments,42294929,14/03/2024,202312,305.31,REDACTED PERSONAL INFORMATION,REDACTED PERSONAL INFORMATION
AD Regulated Provision,Revenue Budgets,Childrens Services,Children in Care,A0514,Children in Care,A61156,Section 17,42294934,14/03/2024,202312,354.00,REDACTED PERSONAL INFORMATION,REDACTED PERSONAL INFORMATION
AD Regulated Provision,Revenue Budgets,Childrens Services,Children in Care Disability,A0511,Care Leavers Allowances,A61165,Housing Benefit,42294935,14/03/2024,202312,257.00,REDACTED PERSONAL INFORMATION,REDACTED PERSONAL INFORMATION
AD Regulated Provision,Revenue Budgets,Childrens Services,Children's Disability Service,A0517,Direct Payments Scheme,A56000,Other Establishments,42294941,14/03/2024,202312,262.00,REDACTED PERSONAL INFORMATION,REDACTED PERSONAL INFORMATION
AD Regulated Provision,Revenue Budgets,Childrens Services,Children's Disability Service,A0517,Direct Payments Scheme,A56000,Other Establishments,42294941,14/03/2024,202312,324.75,REDACTED PERSONAL INFORMATION,REDACTED PERSONAL INFORMATION
AD Regulated Provision,Revenue Budgets,Childrens Services,Children's Disability Service,A0517,Direct Payments Scheme,A56000,Other Establishments,42294941,14/03/2024,202312,384.45,REDACTED PERSONAL INFORMATION,REDACTED PERSONAL INFORMATION
AD Regulated Provision,Revenue Budgets,Childrens Services,Children's Disability Service,A0517,Direct Payments Scheme,A56000,Other Establishments,42294941,14/03/2024,202312,"1,004.69",REDACTED PERSONAL INFORMATION,REDACTED PERSONAL INFORMATION
AD Regulated Provision,Revenue Budgets,Childrens Services,Children's Disability Service,A0517,Direct Payments Scheme,A56000,Other Establishments,42294941,14/03/2024,202312,"1,488.92",REDACTED PERSONAL INFORMATION,REDACTED PERSONAL INFORMATION
AD Regulated Provision,Revenue Budgets,Childrens Services,Fostering and Adoption,A0484,Mainstream Carer Payments,A61166,Contract Plus,42294959,14/03/2024,202312,315.00,REDACTED PERSONAL INFORMATION,REDACTED PERSONAL INFORMATION
AD Regulated Provision,Revenue Budgets,Childrens Services,Fostering and Adoption,A0489,Adoption Support,A61120,Adoptions Allowances,42294963,14/03/2024,202312,370.74,REDACTED PERSONAL INFORMATION,REDACTED PERSONAL INFORMATION
AD Regulated Provision,Revenue Budgets,Childrens Services,Fostering and Adoption,A0489,Adoption Support,A61120,Adoptions Allowances,42294963,14/03/2024,202312,370.74,REDACTED PERSONAL INFORMATION,REDACTED PERSONAL INFORMATION
AD Regulated Provision,Revenue Budgets,Childrens Services,Fostering and Adoption,A0484,Mainstream Carer Payments,A61166,Contract Plus,42294965,14/03/2024,202312,315.00,REDACTED PERSONAL INFORMATION,REDACTED PERSONAL INFORMATION
AD Regulated Provision,Revenue Budgets,Childrens Services,Fostering and Adoption,A0484,Mainstream Carer Payments,A61166,Contract Plus,42295029,14/03/2024,202312,315.00,REDACTED PERSONAL INFORMATION,REDACTED PERSONAL INFORMATION
AD Regulated Provision,Revenue Budgets,Childrens Services,Fostering and Adoption,A0486,Residence  Or Special G'Ship,A61015,Fostering and Guardianship Allowances,42295104,14/03/2024,202312,364.08,REDACTED PERSONAL INFORMATION,REDACTED PERSONAL INFORMATION
AD Regulated Provision,Revenue Budgets,Childrens Services,Fostering and Adoption,A0486,Residence  Or Special G'Ship,A61015,Fostering and Guardianship Allowances,42295104,14/03/2024,202312,364.08,REDACTED PERSONAL INFORMATION,REDACTED PERSONAL INFORMATION
AD Regulated Provision,Revenue Budgets,Childrens Services,Fostering and Adoption,A0484,Mainstream Carer Payments,A61166,Contract Plus,42295107,14/03/2024,202312,315.00,REDACTED PERSONAL INFORMATION,REDACTED PERSONAL INFORMATION
AD Regulated Provision,Revenue Budgets,Childrens Services,Fostering and Adoption,A0484,Mainstream Carer Payments,A61166,Contract Plus,42295124,14/03/2024,202312,315.00,REDACTED PERSONAL INFORMATION,REDACTED PERSONAL INFORMATION
AD Regulated Provision,Revenue Budgets,Childrens Services,Fostering and Adoption,A0484,Mainstream Carer Payments,A61166,Contract Plus,42295125,14/03/2024,202312,315.00,REDACTED PERSONAL INFORMATION,REDACTED PERSONAL INFORMATION
AD Regulated Provision,Revenue Budgets,Childrens Services,Fostering and Adoption,A0484,Mainstream Carer Payments,A57205,Child Care Payments,42295126,14/03/2024,202312,711.58,REDACTED PERSONAL INFORMATION,REDACTED PERSONAL INFORMATION
AD Regulated Provision,Revenue Budgets,Childrens Services,Fostering and Adoption,A0484,Mainstream Carer Payments,A61166,Contract Plus,42295127,14/03/2024,202312,315.00,REDACTED PERSONAL INFORMATION,REDACTED PERSONAL INFORMATION
AD Regulated Provision,Revenue Budgets,Childrens Services,Fostering and Adoption,A0484,Mainstream Carer Payments,A61166,Contract Plus,42295128,14/03/2024,202312,315.00,REDACTED PERSONAL INFORMATION,REDACTED PERSONAL INFORMATION
AD Regulated Provision,Revenue Budgets,Childrens Services,Fostering and Adoption,A0484,Mainstream Carer Payments,A61166,Contract Plus,42295129,14/03/2024,202312,315.00,REDACTED PERSONAL INFORMATION,REDACTED PERSONAL INFORMATION
AD Regulated Provision,Revenue Budgets,Childrens Services,Fostering and Adoption,A0484,Mainstream Carer Payments,A61166,Contract Plus,42295158,14/03/2024,202312,315.00,REDACTED PERSONAL INFORMATION,REDACTED PERSONAL INFORMATION
AD Regulated Provision,Revenue Budgets,Childrens Services,Fostering and Adoption,A0484,Mainstream Carer Payments,A61166,Contract Plus,42295161,14/03/2024,202312,315.00,REDACTED PERSONAL INFORMATION,REDACTED PERSONAL INFORMATION
AD Regulated Provision,Revenue Budgets,Childrens Services,Fostering and Adoption,A0484,Mainstream Carer Payments,A61166,Contract Plus,42295163,14/03/2024,202312,315.00,REDACTED PERSONAL INFORMATION,REDACTED PERSONAL INFORMATION
AD Regulated Provision,Revenue Budgets,Childrens Services,Fostering and Adoption,A0489,Adoption Support,A61120,Adoptions Allowances,42295166,14/03/2024,202312,559.44,REDACTED PERSONAL INFORMATION,REDACTED PERSONAL INFORMATION
AD Regulated Provision,Revenue Budgets,Childrens Services,Fostering and Adoption,A0484,Mainstream Carer Payments,A61166,Contract Plus,42295171,14/03/2024,202312,315.00,REDACTED PERSONAL INFORMATION,REDACTED PERSONAL INFORMATION
AD Regulated Provision,Revenue Budgets,Childrens Services,Fostering and Adoption,A0484,Mainstream Carer Payments,A61166,Contract Plus,42295172,14/03/2024,202312,315.00,REDACTED PERSONAL INFORMATION,REDACTED PERSONAL INFORMATION
AD Regulated Provision,Revenue Budgets,Childrens Services,Fostering and Adoption,A0486,Residence  Or Special G'Ship,A61015,Fostering and Guardianship Allowances,42295176,14/03/2024,202312,357.00,REDACTED PERSONAL INFORMATION,REDACTED PERSONAL INFORMATION
AD Regulated Provision,Revenue Budgets,Childrens Services,Fostering and Adoption,A0486,Residence  Or Special G'Ship,A61015,Fostering and Guardianship Allowances,42295176,14/03/2024,202312,365.10,REDACTED PERSONAL INFORMATION,REDACTED PERSONAL INFORMATION
AD Regulated Provision,Revenue Budgets,Childrens Services,Fostering and Adoption,A0489,Adoption Support,A61120,Adoptions Allowances,42295200,14/03/2024,202312,886.58,REDACTED PERSONAL INFORMATION,REDACTED PERSONAL INFORMATION
AD Regulated Provision,Revenue Budgets,Childrens Services,Fostering and Adoption,A0484,Mainstream Carer Payments,A61166,Contract Plus,42295232,14/03/2024,202312,315.00,REDACTED PERSONAL INFORMATION,REDACTED PERSONAL INFORMATION
AD Regulated Provision,Revenue Budgets,Childrens Services,Fostering and Adoption,A0484,Mainstream Carer Payments,A61166,Contract Plus,42295232,14/03/2024,202312,315.00,REDACTED PERSONAL INFORMATION,REDACTED PERSONAL INFORMATION
AD Regulated Provision,Revenue Budgets,Childrens Services,Fostering and Adoption,A0484,Mainstream Carer Payments,A61115,Holiday Allowances,42295279,14/03/2024,202312,318.00,REDACTED PERSONAL INFORMATION,REDACTED PERSONAL INFORMATION
AD Regulated Provision,Revenue Budgets,Childrens Services,Fostering and Adoption,A0486,Residence  Or Special G'Ship,A61015,Fostering and Guardianship Allowances,42295311,14/03/2024,202312,357.00,REDACTED PERSONAL INFORMATION,REDACTED PERSONAL INFORMATION
AD Regulated Provision,Revenue Budgets,Childrens Services,Fostering and Adoption,A0486,Residence  Or Special G'Ship,A61015,Fostering and Guardianship Allowances,42295311,14/03/2024,202312,357.00,REDACTED PERSONAL INFORMATION,REDACTED PERSONAL INFORMATION
AD Regulated Provision,Revenue Budgets,Childrens Services,Fostering and Adoption,A0486,Residence  Or Special G'Ship,A61015,Fostering and Guardianship Allowances,42295323,14/03/2024,202312,466.00,REDACTED PERSONAL INFORMATION,REDACTED PERSONAL INFORMATION
AD Regulated Provision,Revenue Budgets,Childrens Services,Fostering and Adoption,A0486,Residence  Or Special G'Ship,A61015,Fostering and Guardianship Allowances,42295324,14/03/2024,202312,357.00,REDACTED PERSONAL INFORMATION,REDACTED PERSONAL INFORMATION
AD Regulated Provision,Revenue Budgets,Childrens Services,Fostering and Adoption,A0486,Residence  Or Special G'Ship,A61015,Fostering and Guardianship Allowances,42295330,14/03/2024,202312,333.00,REDACTED PERSONAL INFORMATION,REDACTED PERSONAL INFORMATION
AD Regulated Provision,Revenue Budgets,Childrens Services,Fostering and Adoption,A0486,Residence  Or Special G'Ship,A61015,Fostering and Guardianship Allowances,42295390,14/03/2024,202312,325.10,REDACTED PERSONAL INFORMATION,REDACTED PERSONAL INFORMATION
AD Regulated Provision,Revenue Budgets,Childrens Services,Fostering and Adoption,A0486,Residence  Or Special G'Ship,A61015,Fostering and Guardianship Allowances,42295390,14/03/2024,202312,333.00,REDACTED PERSONAL INFORMATION,REDACTED PERSONAL INFORMATION
AD Regulated Provision,Revenue Budgets,Childrens Services,Fostering and Adoption,A0489,Adoption Support,A61120,Adoptions Allowances,42295397,14/03/2024,202312,500.00,REDACTED PERSONAL INFORMATION,REDACTED PERSONAL INFORMATION
AD Regulated Provision,Revenue Budgets,Childrens Services,Fostering and Adoption,A0489,Adoption Support,A61148,Setting Up,42295402,14/03/2024,202312,350.00,REDACTED PERSONAL INFORMATION,REDACTED PERSONAL INFORMATION
AD Regulated Provision,Revenue Budgets,Childrens Services,CS Commissioning Service,A0492,Independent Foster Agencies,A56000,Other Establishments,30196273,15/03/2024,202312,"4,276.29",148494,By The Bridge Northwest Ltd
AD Regulated Provision,Revenue Budgets,Childrens Services,Children in Care Disability,A0509,Unaccomp Childr Asylum Seekers,A61152,Leaving Care Grant,30197958,15/03/2024,202312,396.11,103262,Carpets Galore
AD Regulated Provision,Revenue Budgets,Childrens Services,Fostering and Adoption,A1603,Adoption Support Fund,A49105,Other Supplies & Services,30199272,15/03/2024,202312,330.00,140435,Time To Listen Limited
AD Regulated Provision,Revenue Budgets,Childrens Services,CS Residential Homes,A1757,REDACTED PERSONAL INFORMATION,A20005,"Property Repairs, Maintenance & Alterations",30199575,15/03/2024,202312,"1,080.00",1009656,RSC Joinery Ltd
AD Regulated Provision,Revenue Budgets,Childrens Services,CS Commissioning Service,A0273,External Residential,A56000,Other Establishments,30196599,18/03/2024,202312,"21,649.74",145195,Keys Pce Limited
AD Regulated Provision,Revenue Budgets,Childrens Services,CS Commissioning Service,A0273,External Residential,A56000,Other Establishments,30196601,18/03/2024,202312,"21,649.74",145195,Keys Pce Limited
AD Regulated Provision,Revenue Budgets,Childrens Services,CS Commissioning Service,A0273,External Residential,A56000,Other Establishments,30196608,18/03/2024,202312,"21,649.74",145195,Keys Pce Limited
AD Regulated Provision,Revenue Budgets,Childrens Services,Children in Care Disability,A0509,Unaccomp Childr Asylum Seekers,A56000,Other Establishments,30198602,20/03/2024,202312,"8,934.83",144120,Learning4life-Gy-Cic
AD Regulated Provision,Revenue Budgets,Childrens Services,Shortbreaks,A0483,PETTY CASH,A49107,Activities - Service Users,30198881,20/03/2024,202312,253.11,PETTY CASH,PETTY CASH
AD Regulated Provision,Revenue Budgets,Childrens Services,Shortbreaks,A0483,PETTY CASH,A49107,Activities - Service Users,30198881,20/03/2024,202312,364.01,PETTY CASH,PETTY CASH
AD Regulated Provision,Revenue Budgets,Childrens Services,CS Commissioning Service,A0273,External Residential,A56000,Other Establishments,30199367,20/03/2024,202312,"12,766.45",1000489,Acorn Care & Education Ltd (Sales)
AD Regulated Provision,Revenue Budgets,Childrens Services,CS Commissioning Service,A0273,External Residential,A56000,Other Establishments,30199382,20/03/2024,202312,"13,646.90",1000489,Acorn Care & Education Ltd (Sales)
AD Regulated Provision,Revenue Budgets,Childrens Services,CS Commissioning Service,A0273,External Residential,A56000,Other Establishments,30199974,20/03/2024,202312,"23,267.76",1000489,Acorn Care & Education Ltd (Sales)
AD Regulated Provision,Revenue Budgets,Childrens Services,CS Commissioning Service,A0273,External Residential,A56000,Other Establishments,30199979,20/03/2024,202312,"23,267.76",1000489,Acorn Care & Education Ltd (Sales)
AD Regulated Provision,Revenue Budgets,Childrens Services,CS Commissioning Service,A0273,External Residential,A56000,Other Establishments,30199981,20/03/2024,202312,"21,766.61",1000489,Acorn Care & Education Ltd (Sales)
AD Regulated Provision,Revenue Budgets,Childrens Services,CS Residential Homes,A0504,REDACTED PERSONAL INFORMATION,A20011,Premises External Maintenance,30199684,21/03/2024,202312,298.10,133267,Equans Services Ltd
AD Regulated Provision,Revenue Budgets,Childrens Services,CS Residential Homes,A0504,REDACTED PERSONAL INFORMATION,A20005,"Property Repairs, Maintenance & Alterations",30199705,21/03/2024,202312,289.30,133267,Equans Services Ltd
AD Regulated Provision,Revenue Budgets,Childrens Services,Children in Care Disability,A0509,Unaccomp Childr Asylum Seekers,A61165,Housing Benefit,42296393,21/03/2024,202312,342.86,REDACTED PERSONAL INFORMATION,REDACTED PERSONAL INFORMATION
AD Regulated Provision,Revenue Budgets,Childrens Services,Children in Care Disability,A0509,Unaccomp Childr Asylum Seekers,A61165,Housing Benefit,42296409,21/03/2024,202312,250.29,REDACTED PERSONAL INFORMATION,REDACTED PERSONAL INFORMATION
AD Regulated Provision,Revenue Budgets,Childrens Services,Children in Care Disability,A0509,Unaccomp Childr Asylum Seekers,A61165,Housing Benefit,42296411,21/03/2024,202312,331.37,REDACTED PERSONAL INFORMATION,REDACTED PERSONAL INFORMATION
AD Regulated Provision,Revenue Budgets,Childrens Services,Children in Care Disability,A0511,Care Leavers Allowances,A61165,Housing Benefit,42296415,21/03/2024,202312,257.00,REDACTED PERSONAL INFORMATION,REDACTED PERSONAL INFORMATION
AD Regulated Provision,Revenue Budgets,Childrens Services,Children in Care Disability,A0509,Unaccomp Childr Asylum Seekers,A61152,Leaving Care Grant,42296454,21/03/2024,202312,255.00,REDACTED PERSONAL INFORMATION,REDACTED PERSONAL INFORMATION
AD Regulated Provision,Revenue Budgets,Childrens Services,Children's Disability Service,A0517,Direct Payments Scheme,A56000,Other Establishments,42296475,21/03/2024,202312,331.15,REDACTED PERSONAL INFORMATION,REDACTED PERSONAL INFORMATION
AD Regulated Provision,Revenue Budgets,Childrens Services,Children's Disability Service,A0517,Direct Payments Scheme,A56000,Other Establishments,42296483,21/03/2024,202312,302.36,REDACTED PERSONAL INFORMATION,REDACTED PERSONAL INFORMATION
AD Regulated Provision,Revenue Budgets,Childrens Services,Children's Disability Service,A0517,Direct Payments Scheme,A56000,Other Establishments,42296483,21/03/2024,202312,357.39,REDACTED PERSONAL INFORMATION,REDACTED PERSONAL INFORMATION
AD Regulated Provision,Revenue Budgets,Childrens Services,Children's Disability Service,A0517,Direct Payments Scheme,A56000,Other Establishments,42296483,21/03/2024,202312,957.27,REDACTED PERSONAL INFORMATION,REDACTED PERSONAL INFORMATION
AD Regulated Provision,Revenue Budgets,Childrens Services,Fostering and Adoption,A0484,Mainstream Carer Payments,A61166,Contract Plus,42296505,21/03/2024,202312,315.00,REDACTED PERSONAL INFORMATION,REDACTED PERSONAL INFORMATION
AD Regulated Provision,Revenue Budgets,Childrens Services,Fostering and Adoption,A0489,Adoption Support,A61120,Adoptions Allowances,42296509,21/03/2024,202312,370.74,REDACTED PERSONAL INFORMATION,REDACTED PERSONAL INFORMATION
AD Regulated Provision,Revenue Budgets,Childrens Services,Fostering and Adoption,A0489,Adoption Support,A61120,Adoptions Allowances,42296509,21/03/2024,202312,370.74,REDACTED PERSONAL INFORMATION,REDACTED PERSONAL INFORMATION
AD Regulated Provision,Revenue Budgets,Childrens Services,Fostering and Adoption,A0484,Mainstream Carer Payments,A61166,Contract Plus,42296511,21/03/2024,202312,315.00,REDACTED PERSONAL INFORMATION,REDACTED PERSONAL INFORMATION
AD Regulated Provision,Revenue Budgets,Childrens Services,Fostering and Adoption,A0484,Mainstream Carer Payments,A61166,Contract Plus,42296575,21/03/2024,202312,315.00,REDACTED PERSONAL INFORMATION,REDACTED PERSONAL INFORMATION
AD Regulated Provision,Revenue Budgets,Childrens Services,Fostering and Adoption,A0489,Adoption Support,A61120,Adoptions Allowances,42296594,21/03/2024,202312,435.69,REDACTED PERSONAL INFORMATION,REDACTED PERSONAL INFORMATION
AD Regulated Provision,Revenue Budgets,Childrens Services,Fostering and Adoption,A0486,Residence  Or Special G'Ship,A61015,Fostering and Guardianship Allowances,42296650,21/03/2024,202312,364.08,REDACTED PERSONAL INFORMATION,REDACTED PERSONAL INFORMATION
AD Regulated Provision,Revenue Budgets,Childrens Services,Fostering and Adoption,A0486,Residence  Or Special G'Ship,A61015,Fostering and Guardianship Allowances,42296650,21/03/2024,202312,364.08,REDACTED PERSONAL INFORMATION,REDACTED PERSONAL INFORMATION
AD Regulated Provision,Revenue Budgets,Childrens Services,Fostering and Adoption,A0484,Mainstream Carer Payments,A61166,Contract Plus,42296653,21/03/2024,202312,315.00,REDACTED PERSONAL INFORMATION,REDACTED PERSONAL INFORMATION
AD Regulated Provision,Revenue Budgets,Childrens Services,Fostering and Adoption,A0484,Mainstream Carer Payments,A61166,Contract Plus,42296670,21/03/2024,202312,315.00,REDACTED PERSONAL INFORMATION,REDACTED PERSONAL INFORMATION
AD Regulated Provision,Revenue Budgets,Childrens Services,Fostering and Adoption,A0484,Mainstream Carer Payments,A61166,Contract Plus,42296671,21/03/2024,202312,315.00,REDACTED PERSONAL INFORMATION,REDACTED PERSONAL INFORMATION
AD Regulated Provision,Revenue Budgets,Childrens Services,Fostering and Adoption,A0484,Mainstream Carer Payments,A57205,Child Care Payments,42296672,21/03/2024,202312,711.58,REDACTED PERSONAL INFORMATION,REDACTED PERSONAL INFORMATION
AD Regulated Provision,Revenue Budgets,Childrens Services,Fostering and Adoption,A0484,Mainstream Carer Payments,A61166,Contract Plus,42296673,21/03/2024,202312,315.00,REDACTED PERSONAL INFORMATION,REDACTED PERSONAL INFORMATION
AD Regulated Provision,Revenue Budgets,Childrens Services,Fostering and Adoption,A0484,Mainstream Carer Payments,A61166,Contract Plus,42296674,21/03/2024,202312,315.00,REDACTED PERSONAL INFORMATION,REDACTED PERSONAL INFORMATION
AD Regulated Provision,Revenue Budgets,Childrens Services,Fostering and Adoption,A0484,Mainstream Carer Payments,A61166,Contract Plus,42296675,21/03/2024,202312,315.00,REDACTED PERSONAL INFORMATION,REDACTED PERSONAL INFORMATION
AD Regulated Provision,Revenue Budgets,Childrens Services,Fostering and Adoption,A0484,Mainstream Carer Payments,A61166,Contract Plus,42296704,21/03/2024,202312,315.00,REDACTED PERSONAL INFORMATION,REDACTED PERSONAL INFORMATION
AD Regulated Provision,Revenue Budgets,Childrens Services,Fostering and Adoption,A0484,Mainstream Carer Payments,A61166,Contract Plus,42296707,21/03/2024,202312,315.00,REDACTED PERSONAL INFORMATION,REDACTED PERSONAL INFORMATION
AD Regulated Provision,Revenue Budgets,Childrens Services,Fostering and Adoption,A0484,Mainstream Carer Payments,A61166,Contract Plus,42296709,21/03/2024,202312,315.00,REDACTED PERSONAL INFORMATION,REDACTED PERSONAL INFORMATION
AD Regulated Provision,Revenue Budgets,Childrens Services,Fostering and Adoption,A0489,Adoption Support,A61120,Adoptions Allowances,42296712,21/03/2024,202312,559.44,REDACTED PERSONAL INFORMATION,REDACTED PERSONAL INFORMATION
AD Regulated Provision,Revenue Budgets,Childrens Services,Fostering and Adoption,A0484,Mainstream Carer Payments,A61166,Contract Plus,42296717,21/03/2024,202312,315.00,REDACTED PERSONAL INFORMATION,REDACTED PERSONAL INFORMATION
AD Regulated Provision,Revenue Budgets,Childrens Services,Fostering and Adoption,A0486,Residence  Or Special G'Ship,A61015,Fostering and Guardianship Allowances,42296721,21/03/2024,202312,357.00,REDACTED PERSONAL INFORMATION,REDACTED PERSONAL INFORMATION
AD Regulated Provision,Revenue Budgets,Childrens Services,Fostering and Adoption,A0486,Residence  Or Special G'Ship,A61015,Fostering and Guardianship Allowances,42296721,21/03/2024,202312,365.10,REDACTED PERSONAL INFORMATION,REDACTED PERSONAL INFORMATION
AD Regulated Provision,Revenue Budgets,Childrens Services,Fostering and Adoption,A0489,Adoption Support,A61120,Adoptions Allowances,42296745,21/03/2024,202312,886.58,REDACTED PERSONAL INFORMATION,REDACTED PERSONAL INFORMATION
AD Regulated Provision,Revenue Budgets,Childrens Services,Fostering and Adoption,A0484,Mainstream Carer Payments,A61166,Contract Plus,42296777,21/03/2024,202312,315.00,REDACTED PERSONAL INFORMATION,REDACTED PERSONAL INFORMATION
AD Regulated Provision,Revenue Budgets,Childrens Services,Fostering and Adoption,A0484,Mainstream Carer Payments,A61166,Contract Plus,42296777,21/03/2024,202312,315.00,REDACTED PERSONAL INFORMATION,REDACTED PERSONAL INFORMATION
AD Regulated Provision,Revenue Budgets,Childrens Services,Fostering and Adoption,A0486,Residence  Or Special G'Ship,A61015,Fostering and Guardianship Allowances,42296854,21/03/2024,202312,357.00,REDACTED PERSONAL INFORMATION,REDACTED PERSONAL INFORMATION
AD Regulated Provision,Revenue Budgets,Childrens Services,Fostering and Adoption,A0486,Residence  Or Special G'Ship,A61015,Fostering and Guardianship Allowances,42296854,21/03/2024,202312,357.00,REDACTED PERSONAL INFORMATION,REDACTED PERSONAL INFORMATION
AD Regulated Provision,Revenue Budgets,Childrens Services,Fostering and Adoption,A0486,Residence  Or Special G'Ship,A61015,Fostering and Guardianship Allowances,42296866,21/03/2024,202312,466.00,REDACTED PERSONAL INFORMATION,REDACTED PERSONAL INFORMATION
AD Regulated Provision,Revenue Budgets,Childrens Services,Fostering and Adoption,A0486,Residence  Or Special G'Ship,A61015,Fostering and Guardianship Allowances,42296867,21/03/2024,202312,357.00,REDACTED PERSONAL INFORMATION,REDACTED PERSONAL INFORMATION
AD Regulated Provision,Revenue Budgets,Childrens Services,Fostering and Adoption,A0486,Residence  Or Special G'Ship,A61015,Fostering and Guardianship Allowances,42296873,21/03/2024,202312,333.00,REDACTED PERSONAL INFORMATION,REDACTED PERSONAL INFORMATION
AD Regulated Provision,Revenue Budgets,Childrens Services,Fostering and Adoption,A0486,Residence  Or Special G'Ship,A61015,Fostering and Guardianship Allowances,42296932,21/03/2024,202312,325.10,REDACTED PERSONAL INFORMATION,REDACTED PERSONAL INFORMATION
AD Regulated Provision,Revenue Budgets,Childrens Services,Fostering and Adoption,A0486,Residence  Or Special G'Ship,A61015,Fostering and Guardianship Allowances,42296932,21/03/2024,202312,333.00,REDACTED PERSONAL INFORMATION,REDACTED PERSONAL INFORMATION
AD Regulated Provision,Revenue Budgets,Childrens Services,Fostering and Adoption,A0489,Adoption Support,A61120,Adoptions Allowances,42296939,21/03/2024,202312,500.00,REDACTED PERSONAL INFORMATION,REDACTED PERSONAL INFORMATION
AD Regulated Provision,Revenue Budgets,Childrens Services,Fostering and Adoption,A0484,Mainstream Carer Payments,A57205,Child Care Payments,42296946,21/03/2024,202312,398.00,REDACTED PERSONAL INFORMATION,REDACTED PERSONAL INFORMATION
AD Regulated Provision,Revenue Budgets,Childrens Services,CS Residential Homes,A1713,REDACTED PERSONAL INFORMATION,A20005,"Property Repairs, Maintenance & Alterations",30198944,22/03/2024,202312,670.00,1006641,Woodlandz Furnishing's Gy Ltd
AD Regulated Provision,Revenue Budgets,Childrens Services,CS Commissioning Service,A0492,Independent Foster Agencies,A56000,Other Establishments,30198895,25/03/2024,202312,"-1,654.08",101455,Foster Care Associates Limited
AD Regulated Provision,Revenue Budgets,Childrens Services,CS Residential Homes,A0501,PETTY CASH,A44030,Provisions,30199525,26/03/2024,202312,632.89,PETTY CASH,PETTY CASH
AD Regulated Provision,Revenue Budgets,Childrens Services,CS Residential Homes,A0501,PETTY CASH,A61145,Clothing,30199525,26/03/2024,202312,352.99,PETTY CASH,PETTY CASH
AD Regulated Provision,Revenue Budgets,Childrens Services,CS Commissioning Service,A0273,External Residential,A56000,Other Establishments,30200307,27/03/2024,202312,"26,315.29",100406,Kisimul School
AD Regulated Provision,Revenue Budgets,Childrens Services,CS Commissioning Service,A0492,Independent Foster Agencies,A56000,Other Establishments,30195900,31/03/2024,202312,"3,692.60",112225,The National Fostering Agency
AD Regulated Provision,Revenue Budgets,Childrens Services,CS Commissioning Service,A0492,Independent Foster Agencies,A56000,Other Establishments,30195912,31/03/2024,202312,"3,602.82",112225,The National Fostering Agency
AD Regulated Provision,Revenue Budgets,Childrens Services,CS Commissioning Service,A0492,Independent Foster Agencies,A56000,Other Establishments,30195914,31/03/2024,202312,"3,877.17",112225,The National Fostering Agency
AD Regulated Provision,Revenue Budgets,Childrens Services,CS Commissioning Service,A0492,Independent Foster Agencies,A56000,Other Establishments,30195919,31/03/2024,202312,"3,697.71",112225,The National Fostering Agency
AD Regulated Provision,Revenue Budgets,Childrens Services,CS Commissioning Service,A0492,Independent Foster Agencies,A56000,Other Establishments,30195920,31/03/2024,202312,"3,602.99",112225,The National Fostering Agency
AD Regulated Provision,Revenue Budgets,Childrens Services,CS Commissioning Service,A0492,Independent Foster Agencies,A56000,Other Establishments,30195925,31/03/2024,202312,"3,877.17",112225,The National Fostering Agency
AD Regulated Provision,Revenue Budgets,Childrens Services,CS Commissioning Service,A0492,Independent Foster Agencies,A56000,Other Establishments,30195926,31/03/2024,202312,"4,982.01",1000346,Brighter Futures Foster Care
AD Regulated Provision,Revenue Budgets,Childrens Services,CS Commissioning Service,A0492,Independent Foster Agencies,A56000,Other Establishments,30195928,31/03/2024,202312,"3,683.31",112225,The National Fostering Agency
AD Regulated Provision,Revenue Budgets,Childrens Services,CS Commissioning Service,A0492,Independent Foster Agencies,A56000,Other Establishments,30195929,31/03/2024,202312,"3,683.31",112225,The National Fostering Agency
AD Regulated Provision,Revenue Budgets,Childrens Services,CS Commissioning Service,A0492,Independent Foster Agencies,A56000,Other Establishments,30195930,31/03/2024,202312,"3,768.07",112225,The National Fostering Agency
AD Regulated Provision,Revenue Budgets,Childrens Services,CS Commissioning Service,A0492,Independent Foster Agencies,A56000,Other Establishments,30195931,31/03/2024,202312,"3,602.99",112225,The National Fostering Agency
AD Regulated Provision,Revenue Budgets,Childrens Services,CS Commissioning Service,A0492,Independent Foster Agencies,A56000,Other Establishments,30195932,31/03/2024,202312,"3,530.82",112225,The National Fostering Agency
AD Regulated Provision,Revenue Budgets,Childrens Services,CS Commissioning Service,A0492,Independent Foster Agencies,A56000,Other Establishments,30195934,31/03/2024,202312,"3,877.17",112225,The National Fostering Agency
AD Regulated Provision,Revenue Budgets,Childrens Services,CS Commissioning Service,A0492,Independent Foster Agencies,A56000,Other Establishments,30195936,31/03/2024,202312,"3,877.17",112225,The National Fostering Agency
AD Regulated Provision,Revenue Budgets,Childrens Services,CS Commissioning Service,A0492,Independent Foster Agencies,A56000,Other Establishments,30195941,31/03/2024,202312,"3,877.17",112225,The National Fostering Agency
AD Regulated Provision,Revenue Budgets,Childrens Services,CS Commissioning Service,A0492,Independent Foster Agencies,A56000,Other Establishments,30195943,31/03/2024,202312,"3,877.17",112225,The National Fostering Agency
AD Regulated Provision,Revenue Budgets,Childrens Services,CS Commissioning Service,A0492,Independent Foster Agencies,A56000,Other Establishments,30195946,31/03/2024,202312,"3,877.17",112225,The National Fostering Agency
AD Regulated Provision,Revenue Budgets,Childrens Services,CS Commissioning Service,A0492,Independent Foster Agencies,A56000,Other Establishments,30195948,31/03/2024,202312,"3,877.17",112225,The National Fostering Agency
AD Regulated Provision,Revenue Budgets,Childrens Services,CS Commissioning Service,A0273,External Residential,A56000,Other Establishments,30196007,31/03/2024,202312,"-22,785.59",1007585,Friends Together Care Homes Ltd
AD Regulated Provision,Revenue Budgets,Childrens Services,CS Commissioning Service,A0273,External Residential,A56000,Other Establishments,30196007,31/03/2024,202312,"22,785.59",1007585,Friends Together Care Homes Ltd
AD Regulated Provision,Revenue Budgets,Childrens Services,CS Commissioning Service,A0273,External Residential,A56000,Other Establishments,30196007,31/03/2024,202312,"24,357.01",1007585,Friends Together Care Homes Ltd
AD Regulated Provision,Revenue Budgets,Childrens Services,CS Commissioning Service,A0273,External Residential,A56000,Other Establishments,30196463,31/03/2024,202312,"26,305.71",1003502,Pebbles Care Ltd
AD Regulated Provision,Revenue Budgets,Childrens Services,CS Commissioning Service,A0273,External Residential,A56000,Other Establishments,30198239,31/03/2024,202312,"44,285.71",1002153,Prosperity Children's Services
AD Regulated Provision,Revenue Budgets,Childrens Services,CS Commissioning Service,A0492,Independent Foster Agencies,A56000,Other Establishments,30199010,31/03/2024,202312,"5,473.67",112225,The National Fostering Agency
AD Regulated Provision,Revenue Budgets,Childrens Services,CS Commissioning Service,A1789,Supported Accommodation,A56000,Other Establishments,30199263,31/03/2024,202312,"6,620.71",1003795,Upwards Care Solutions Ltd
Adult Services,Revenue Budgets,Adult Services,Director Of Adult Services,A1445,Director Of Adult Services,A44065,Consultancy Services,30191483,01/02/2024,202312,"6,500.00",1009135,Venita Kanwar
Adult Services,Revenue Budgets,Adult Services,Assisted Living Centre,A0764,Assisted Living Centre,A40005,Equipment & Materials Learning,30190070,27/02/2024,202312,824.80,101070,Smitcare Ltd
Adult Services,Revenue Budgets,Adult Services,Assisted Living Centre,A0764,Assisted Living Centre,A40080,Health & Safety Equipment,30190297,27/02/2024,202312,"1,500.00",101715,Nottingham Rehab Limited
Adult Services,Revenue Budgets,Adult Services,Assisted Living Centre,A0764,Assisted Living Centre,A40005,Equipment & Materials Learning,30190300,27/02/2024,202312,"3,157.00",101710,Etac Limited
Adult Services,Revenue Budgets,Adult Services,Assisted Living Centre,A0764,Assisted Living Centre,A40005,Equipment & Materials Learning,30190320,27/02/2024,202312,"2,856.00",1000851,James Leckey Design LTD
Adult Services,Revenue Budgets,Adult Services,Assisted Living Centre,A0764,Assisted Living Centre,A40005,Equipment & Materials Learning,30190850,27/02/2024,202312,"1,195.98",101627,Drive Devilbiss Healthcare Ltd
Adult Services,Revenue Budgets,Adult Services,Assisted Living Centre,A0764,Assisted Living Centre,A40005,Equipment & Materials Learning,30190595,28/02/2024,202312,257.00,136642,Care & Independence Ltd
Adult Services,Revenue Budgets,Adult Services,Adult Social Care,A0172,Adult Social Care,A56000,Other Establishments,30190821,28/02/2024,202312,"2,493.00",1000177,Access UK Ltd
Adult Services,Revenue Budgets,Adult Services,Assisted Living Centre,A0764,Assisted Living Centre,A40005,Equipment & Materials Learning,30191105,29/02/2024,202312,738.80,139266,Frontier Therapeutics
Adult Services,Revenue Budgets,Adult Services,Assisted Living Centre,A0764,Assisted Living Centre,A40005,Equipment & Materials Learning,30191182,29/02/2024,202312,909.00,101134,The Helping Hand Company (Ledbury) Ltd
Adult Services,Revenue Budgets,Adult Services,Assisted Living Centre,A0764,Assisted Living Centre,A40005,Equipment & Materials Learning,30191193,29/02/2024,202312,304.00,102678,Direct Healthcare
Adult Services,Revenue Budgets,Adult Services,Assisted Living Centre,A0764,Assisted Living Centre,A40005,Equipment & Materials Learning,30191194,29/02/2024,202312,551.60,101792,Viking Hardware Ltd
Adult Services,Revenue Budgets,Adult Services,Assisted Living Centre,A0764,Assisted Living Centre,A40005,Equipment & Materials Learning,30191194,29/02/2024,202312,551.60,101792,Viking Hardware Ltd
Adult Services,Revenue Budgets,Adult Services,Assisted Living Centre,A0764,Assisted Living Centre,A40005,Equipment & Materials Learning,30191194,29/02/2024,202312,765.00,101792,Viking Hardware Ltd
Adult Services,Revenue Budgets,Adult Services,Assisted Living Centre,A0764,Assisted Living Centre,A40005,Equipment & Materials Learning,30191194,29/02/2024,202312,855.00,101792,Viking Hardware Ltd
Adult Services,Revenue Budgets,Adult Services,Assisted Living Centre,A0764,Assisted Living Centre,A40005,Equipment & Materials Learning,30191340,29/02/2024,202312,920.00,101785,Lisclare Ltd
Adult Services,Revenue Budgets,Adult Services,Assisted Living Centre,A0764,Assisted Living Centre,A40005,Equipment & Materials Learning,30191368,01/03/2024,202312,"4,320.00",101134,The Helping Hand Company (Ledbury) Ltd
Adult Services,Revenue Budgets,Adult Services,Director Of Adult Services,A1593,Safeguarding Adult Board,A56000,Other Establishments,30191612,04/03/2024,202312,"6,000.00",148498,The Maddocks Consultancy Ltd
Adult Services,Revenue Budgets,Adult Services,Assisted Living Centre,A0764,Assisted Living Centre,A40005,Equipment & Materials Learning,30192060,05/03/2024,202312,"6,932.00",1004653,Neater Solutions Ltd.
Adult Services,Revenue Budgets,Adult Services,Assisted Living Centre,A0764,Assisted Living Centre,A40005,Equipment & Materials Learning,30192716,06/03/2024,202312,"3,409.00",1008291,Primacare Ltd
Adult Services,Revenue Budgets,Adult Services,Adult Social Care,A0172,Adult Social Care,A22010,Hire of Rooms,30193125,06/03/2024,202312,357.56,1001349,Grimsby Central Hall Trust
Adult Services,Revenue Budgets,Adult Services,Assisted Living Centre,A0764,Assisted Living Centre,A40005,Equipment & Materials Learning,30194540,06/03/2024,202312,300.00,139289,Sumed International Uk Ltd
Adult Services,Revenue Budgets,Adult Services,Assisted Living Centre,A0764,Assisted Living Centre,A40005,Equipment & Materials Learning,30193795,07/03/2024,202312,"1,439.00",101715,Nottingham Rehab Limited
Adult Services,Revenue Budgets,Adult Services,Assisted Living Centre,A0764,Assisted Living Centre,A40005,Equipment & Materials Learning,30194202,11/03/2024,202312,484.00,101710,Etac Limited
Adult Services,Revenue Budgets,Adult Services,Assisted Living Centre,A0764,Assisted Living Centre,A40005,Equipment & Materials Learning,30194218,11/03/2024,202312,"3,089.00",101710,Etac Limited
Adult Services,Revenue Budgets,Adult Services,Assisted Living Centre,A0764,Assisted Living Centre,A40005,Equipment & Materials Learning,30194423,11/03/2024,202312,274.00,1008595,Jenx Limited TA Jiraffe
Adult Services,Revenue Budgets,Adult Services,Assisted Living Centre,A0764,Assisted Living Centre,A40005,Equipment & Materials Learning,30195570,13/03/2024,202312,794.40,101715,Nottingham Rehab Limited
Adult Services,Revenue Budgets,Adult Services,Assisted Living Centre,A0764,Assisted Living Centre,A40005,Equipment & Materials Learning,30195570,13/03/2024,202312,866.60,101715,Nottingham Rehab Limited
Adult Services,Revenue Budgets,Adult Services,Assisted Living Centre,A0764,Assisted Living Centre,A40005,Equipment & Materials Learning,30195570,13/03/2024,202312,910.00,101715,Nottingham Rehab Limited
Adult Services,Revenue Budgets,Adult Services,Assisted Living Centre,A0764,Assisted Living Centre,A40005,Equipment & Materials Learning,30195570,13/03/2024,202312,980.00,101715,Nottingham Rehab Limited
Adult Services,Revenue Budgets,Adult Services,Assisted Living Centre,A0764,Assisted Living Centre,A40005,Equipment & Materials Learning,30195570,13/03/2024,202312,"1,120.00",101715,Nottingham Rehab Limited
Adult Services,Revenue Budgets,Adult Services,Assisted Living Centre,A0764,Assisted Living Centre,A40005,Equipment & Materials Learning,30195570,13/03/2024,202312,"2,000.00",101715,Nottingham Rehab Limited
Adult Services,Revenue Budgets,Adult Services,Assisted Living Centre,A0764,Assisted Living Centre,A40005,Equipment & Materials Learning,30196671,14/03/2024,202312,"3,250.00",139289,Sumed International Uk Ltd
Adult Services,Revenue Budgets,Adult Services,Assisted Living Centre,A0764,Assisted Living Centre,A40080,Health & Safety Equipment,30196285,15/03/2024,202312,378.08,101627,Drive Devilbiss Healthcare Ltd
Adult Services,Revenue Budgets,Adult Services,Assisted Living Centre,A0764,Assisted Living Centre,A40005,Equipment & Materials Learning,30196678,19/03/2024,202312,734.94,101710,Etac Limited
Adult Services,Revenue Budgets,Adult Services,Assisted Living Centre,A0764,Assisted Living Centre,A40005,Equipment & Materials Learning,30196678,19/03/2024,202312,"1,135.92",101710,Etac Limited
Adult Services,Revenue Budgets,Adult Services,Assisted Living Centre,A0764,Assisted Living Centre,A40005,Equipment & Materials Learning,30196678,19/03/2024,202312,"6,420.00",101710,Etac Limited
Adult Services,Revenue Budgets,Adult Services,Assisted Living Centre,A0764,Assisted Living Centre,A40005,Equipment & Materials Learning,30196966,19/03/2024,202312,360.00,101785,Lisclare Ltd
Adult Services,Revenue Budgets,Adult Services,Assisted Living Centre,A0764,Assisted Living Centre,A40005,Equipment & Materials Learning,30197688,20/03/2024,202312,629.60,101710,Etac Limited
Adult Services,Revenue Budgets,Adult Services,Assisted Living Centre,A0764,Assisted Living Centre,A40005,Equipment & Materials Learning,30197953,20/03/2024,202312,340.00,1003791,Trulife Limited
Adult Services,Revenue Budgets,Adult Services,Assisted Living Centre,A0764,Assisted Living Centre,A40005,Equipment & Materials Learning,30197953,20/03/2024,202312,970.00,1003791,Trulife Limited
Adult Services,Revenue Budgets,Adult Services,Assisted Living Centre,A0764,Assisted Living Centre,A40005,Equipment & Materials Learning,30200285,28/03/2024,202312,"7,980.00",1004009,Accora Ltd
Adult Services,Revenue Budgets,Adult Services,Assisted Living Centre,A0764,Assisted Living Centre,A40005,Equipment & Materials Learning,30200291,28/03/2024,202312,"7,625.00",1004009,Accora Ltd
Assistant Chief Executive,Revenue Budgets,Resources,Elections Team,A0219,Elections,A22005,Building Rents,30191379,13/05/2023,202312,325.00,109912,Algeco UK Ltd
Assistant Chief Executive,Revenue Budgets,Resources,Elections Team,A1880,Electoral Integrity Programme New Burdens Funding,A40920,Purchase of Equipment,30193282,20/02/2024,202312,300.00,100561,Shaw & Sons Ltd
Assistant Chief Executive,Revenue Budgets,Resources,Elections Team,A1880,Electoral Integrity Programme New Burdens Funding,A40920,Purchase of Equipment,30193282,20/02/2024,202312,407.88,100561,Shaw & Sons Ltd
Assistant Chief Executive,Revenue Budgets,Resources,Elections Team,A1880,Electoral Integrity Programme New Burdens Funding,A40920,Purchase of Equipment,30193282,20/02/2024,202312,"1,020.00",100561,Shaw & Sons Ltd
Assistant Chief Executive,Revenue Budgets,Resources,Elections Team,A0219,Elections,A49105,Other Supplies & Services,30193282,20/02/2024,202312,798.00,100561,Shaw & Sons Ltd
Assistant Chief Executive,Revenue Budgets,Resources,Elections Team,A0219,Elections,A49105,Other Supplies & Services,30193282,20/02/2024,202312,"2,217.60",100561,Shaw & Sons Ltd
Assistant Chief Executive,Revenue Budgets,Resources,Elections Team,A0219,Elections,A40100,Books,30192103,26/02/2024,202312,669.00,101447,Lexisnexis Uk
Assistant Chief Executive,Revenue Budgets,Resources,Registrars & Civic Services,A0222,Civic & Caretaking,A46020,Hospitality,30191445,29/02/2024,202312,710.00,101903,Deli-Licious
Assistant Chief Executive,Revenue Budgets,Resources,Elections Team,A0219,Elections,A45015,Postages,30193147,01/03/2024,202312,"57,661.20",103724,Print Image Network Ltd
Assistant Chief Executive,Revenue Budgets,Resources,Registrars & Civic Services,A0222,Civic & Caretaking,A46020,Hospitality,30197955,01/03/2024,202312,"4,050.00",108412,Abbys Wine Bar & Bistro Ltd
Assistant Chief Executive,Revenue Budgets,Resources,Emergency Planning,A1868,Household Support Fund 4,A47005,"Grants, Contributions & Donations Paid Out",30192365,05/03/2024,202312,"1,000.00",1000935,Care Ltd
Assistant Chief Executive,Revenue Budgets,Resources,Emergency Planning,A1868,Household Support Fund 4,A47005,"Grants, Contributions & Donations Paid Out",30193798,08/03/2024,202312,500.00,HSFGRANT,HSF Grant
Assistant Chief Executive,Revenue Budgets,Resources,Emergency Planning,A1868,Household Support Fund 4,A49105,Other Supplies & Services,30196590,12/03/2024,202312,"1,596.84",112919,Allpay Limited
Assistant Chief Executive,Revenue Budgets,Resources,Elections Team,A0219,Elections,A45015,Postages,30196968,13/03/2024,202312,"4,844.07",103724,Print Image Network Ltd
Assistant Chief Executive,Revenue Budgets,Resources,Asylum & Resettlement,A1857,Ukraine Scheme,A22005,Building Rents,30195633,14/03/2024,202312,"1,336.00",REDACTED PERSONAL INFORMATION,REDACTED PERSONAL INFORMATION
Assistant Chief Executive,Revenue Budgets,Resources,Elections Team,A1880,Electoral Integrity Programme New Burdens Funding,A40920,Purchase of Equipment,30195806,14/03/2024,202312,"1,000.00",109848,Idox Software Ltd
Assistant Chief Executive,Revenue Budgets,Resources,Asylum & Resettlement,A1857,Ukraine Scheme,A40045,Furniture,30197995,20/03/2024,202312,279.00,1000428,Empower � Employability Mentoring Programme CIC
Assistant Chief Executive,Revenue Budgets,Resources,Asylum & Resettlement,A1857,Ukraine Scheme,A46050,Conference Expenses,30198168,21/03/2024,202312,"5,810.00",134087,Our Big Picture Ltd
Assistant Chief Executive,Revenue Budgets,Resources,Asylum & Resettlement,A1857,Ukraine Scheme,A61163,Driving Lessons,30199515,25/03/2024,202312,375.00,1006352,Proactive Driving
Assistant Chief Executive,Revenue Budgets,Resources,Emergency Planning,A1868,Household Support Fund 4,A47005,"Grants, Contributions & Donations Paid Out",30199388,26/03/2024,202312,"5,715.00",HSFGRANT,HSF Grant
Assistant Chief Executive,Revenue Budgets,Resources,Emergency Planning,A1868,Household Support Fund 4,A47005,"Grants, Contributions & Donations Paid Out",30199388,26/03/2024,202312,"5,715.00",HSFGRANT,HSF Grant
Assistant Chief Executive,Revenue Budgets,Resources,Emergency Planning,A1868,Household Support Fund 4,A47005,"Grants, Contributions & Donations Paid Out",30199388,26/03/2024,202312,"5,715.00",HSFGRANT,HSF Grant
Assistant Chief Executive,Revenue Budgets,Resources,Emergency Planning,A1868,Household Support Fund 4,A47005,"Grants, Contributions & Donations Paid Out",30199388,26/03/2024,202312,"5,715.00",HSFGRANT,HSF Grant
Assistant Chief Executive,Revenue Budgets,Resources,Emergency Planning,A1868,Household Support Fund 4,A47005,"Grants, Contributions & Donations Paid Out",30199388,26/03/2024,202312,"5,715.00",HSFGRANT,HSF Grant
Assistant Chief Executive,Revenue Budgets,Resources,Emergency Planning,A1868,Household Support Fund 4,A47005,"Grants, Contributions & Donations Paid Out",30199388,26/03/2024,202312,"5,715.00",HSFGRANT,HSF Grant
Assistant Chief Executive,Revenue Budgets,Resources,Emergency Planning,A1868,Household Support Fund 4,A47005,"Grants, Contributions & Donations Paid Out",30199388,26/03/2024,202312,"5,715.00",HSFGRANT,HSF Grant
Assistant Chief Executive,Revenue Budgets,Resources,Emergency Planning,A1868,Household Support Fund 4,A47005,"Grants, Contributions & Donations Paid Out",30199389,26/03/2024,202312,"2,735.00",HSFGRANT,HSF Grant
Assistant Chief Executive,Revenue Budgets,Resources,Emergency Planning,A1868,Household Support Fund 4,A47005,"Grants, Contributions & Donations Paid Out",30199389,26/03/2024,202312,"3,565.00",HSFGRANT,HSF Grant
Assistant Chief Executive,Revenue Budgets,Resources,Emergency Planning,A1868,Household Support Fund 4,A47005,"Grants, Contributions & Donations Paid Out",30199389,26/03/2024,202312,"4,580.00",HSFGRANT,HSF Grant
Assistant Chief Executive,Revenue Budgets,Resources,Emergency Planning,A1868,Household Support Fund 4,A47005,"Grants, Contributions & Donations Paid Out",30199389,26/03/2024,202312,"4,750.00",HSFGRANT,HSF Grant
Assistant Chief Executive,Revenue Budgets,Resources,Emergency Planning,A1868,Household Support Fund 4,A47005,"Grants, Contributions & Donations Paid Out",30199389,26/03/2024,202312,"8,330.00",HSFGRANT,HSF Grant
Assistant Chief Executive,Revenue Budgets,Resources,Asylum & Resettlement,A1857,Ukraine Scheme,A56000,Other Establishments,30199527,27/03/2024,202312,350.00,HFU GRANT,HFU GRANT
Assistant Chief Executive,Revenue Budgets,Resources,Asylum & Resettlement,A1857,Ukraine Scheme,A56000,Other Establishments,30199527,27/03/2024,202312,350.00,HFU GRANT,HFU GRANT
Assistant Chief Executive,Revenue Budgets,Resources,Asylum & Resettlement,A1857,Ukraine Scheme,A56000,Other Establishments,30199527,27/03/2024,202312,350.00,HFU GRANT,HFU GRANT
Assistant Chief Executive,Revenue Budgets,Resources,Asylum & Resettlement,A1857,Ukraine Scheme,A56000,Other Establishments,30199527,27/03/2024,202312,350.00,HFU GRANT,HFU GRANT
Assistant Chief Executive,Revenue Budgets,Resources,Asylum & Resettlement,A1857,Ukraine Scheme,A56000,Other Establishments,30199527,27/03/2024,202312,350.00,HFU GRANT,HFU GRANT
Assistant Chief Executive,Revenue Budgets,Resources,Asylum & Resettlement,A1857,Ukraine Scheme,A56000,Other Establishments,30199527,27/03/2024,202312,500.00,HFU GRANT,HFU GRANT
Assistant Chief Executive,Revenue Budgets,Resources,Asylum & Resettlement,A1857,Ukraine Scheme,A56000,Other Establishments,30199527,27/03/2024,202312,500.00,HFU GRANT,HFU GRANT
Assistant Chief Executive,Revenue Budgets,Resources,Asylum & Resettlement,A1857,Ukraine Scheme,A56000,Other Establishments,30199527,27/03/2024,202312,500.00,HFU GRANT,HFU GRANT
Assistant Chief Executive,Revenue Budgets,Resources,Asylum & Resettlement,A1857,Ukraine Scheme,A56000,Other Establishments,30199527,27/03/2024,202312,500.00,HFU GRANT,HFU GRANT
Assistant Chief Executive,Revenue Budgets,Resources,Asylum & Resettlement,A1857,Ukraine Scheme,A56000,Other Establishments,30199527,27/03/2024,202312,500.00,HFU GRANT,HFU GRANT
Assistant Chief Executive,Revenue Budgets,Resources,Asylum & Resettlement,A1857,Ukraine Scheme,A56000,Other Establishments,30199527,27/03/2024,202312,500.00,HFU GRANT,HFU GRANT
Assistant Chief Executive,Revenue Budgets,Resources,Asylum & Resettlement,A1857,Ukraine Scheme,A56000,Other Establishments,30199527,27/03/2024,202312,500.00,HFU GRANT,HFU GRANT
Assistant Chief Executive,Revenue Budgets,Resources,Asylum & Resettlement,A1857,Ukraine Scheme,A56000,Other Establishments,30199527,27/03/2024,202312,500.00,HFU GRANT,HFU GRANT
Assistant Chief Executive,Revenue Budgets,Resources,Asylum & Resettlement,A1857,Ukraine Scheme,A56000,Other Establishments,30199527,27/03/2024,202312,500.00,HFU GRANT,HFU GRANT
Assistant Chief Executive,Revenue Budgets,Resources,Asylum & Resettlement,A1857,Ukraine Scheme,A56000,Other Establishments,30199527,27/03/2024,202312,500.00,HFU GRANT,HFU GRANT
Assistant Chief Executive,Revenue Budgets,Resources,Asylum & Resettlement,A1857,Ukraine Scheme,A56000,Other Establishments,30199527,27/03/2024,202312,500.00,HFU GRANT,HFU GRANT
Assistant Chief Executive,Revenue Budgets,Resources,Asylum & Resettlement,A1857,Ukraine Scheme,A56000,Other Establishments,30199527,27/03/2024,202312,500.00,HFU GRANT,HFU GRANT
Assistant Chief Executive,Revenue Budgets,Resources,Asylum & Resettlement,A1857,Ukraine Scheme,A56000,Other Establishments,30199527,27/03/2024,202312,500.00,HFU GRANT,HFU GRANT
Assistant Chief Executive,Revenue Budgets,Resources,Asylum & Resettlement,A1857,Ukraine Scheme,A56000,Other Establishments,30199527,27/03/2024,202312,500.00,HFU GRANT,HFU GRANT
Assistant Chief Executive,Revenue Budgets,Resources,Asylum & Resettlement,A1857,Ukraine Scheme,A56000,Other Establishments,30199527,27/03/2024,202312,500.00,HFU GRANT,HFU GRANT
Assistant Chief Executive,Revenue Budgets,Resources,Asylum & Resettlement,A1857,Ukraine Scheme,A56000,Other Establishments,30199527,27/03/2024,202312,500.00,HFU GRANT,HFU GRANT
Assistant Chief Executive,Revenue Budgets,Resources,Asylum & Resettlement,A1857,Ukraine Scheme,A56000,Other Establishments,30199527,27/03/2024,202312,500.00,HFU GRANT,HFU GRANT
Assistant Chief Executive,Revenue Budgets,Resources,Asylum & Resettlement,A1857,Ukraine Scheme,A56000,Other Establishments,30199527,27/03/2024,202312,500.00,HFU GRANT,HFU GRANT
Assistant Chief Executive,Revenue Budgets,Resources,Asylum & Resettlement,A1857,Ukraine Scheme,A56000,Other Establishments,30199527,27/03/2024,202312,500.00,HFU GRANT,HFU GRANT
Assistant Chief Executive,Revenue Budgets,Resources,Asylum & Resettlement,A1857,Ukraine Scheme,A56000,Other Establishments,30199527,27/03/2024,202312,500.00,HFU GRANT,HFU GRANT
Assistant Chief Executive,Revenue Budgets,Resources,Asylum & Resettlement,A1857,Ukraine Scheme,A56000,Other Establishments,30199527,27/03/2024,202312,700.00,HFU GRANT,HFU GRANT
Assistant Chief Executive,Revenue Budgets,Resources,Emergency Planning,A1868,Household Support Fund 4,A47005,"Grants, Contributions & Donations Paid Out",30200297,27/03/2024,202312,"35,930.94",150373,Wonde Ltd
Assistant Chief Executive,Revenue Budgets,Resources,Registrars & Civic Services,A0222,Civic & Caretaking,A40100,Books,30200312,28/03/2024,202312,636.48,101409,Print & Copy Centre
Assistant Chief Executive,Revenue Budgets,Resources,Elections Team,A0219,Elections,A45005,IT Hardware Purchase,30200424,28/03/2024,202312,"3,520.00",141310,Total Computer Networks Ltd
Assistant Director People & Organisation,Revenue Budgets,Resources,People and Culture,A0814,Corporate Training & Devel,A16015,Staff Training Expenses,30194581,29/09/2023,202312,"2,000.00",1001324,City and Guilds Group
Assistant Director People & Organisation,Revenue Budgets,Resources,People and Culture,A1537,P&C - Governance & Workforce,A49080,OBC Holding Account,30193915,22/01/2024,202312,"1,188.50",1002597,AVC Wise Ltd
Assistant Director People & Organisation,Revenue Budgets,Resources,People and Culture,A0814,Corporate Training & Devel,A16015,Staff Training Expenses,30185795,09/02/2024,202312,300.00,1002872,UKHab Ltd
Assistant Director People & Organisation,Revenue Budgets,Resources,People and Culture,A0790,Disclosure Check Pmts,A11005,Agency Supply Staff,30191337,25/02/2024,202312,"86,418.70",145197,Comensura Ltd
Assistant Director People & Organisation,Revenue Budgets,Resources,Business Support,A1442,Postal Services,A45015,Postages,30191353,25/02/2024,202312,"1,980.40",135925,Whistl Uk Ltd
Assistant Director People & Organisation,Revenue Budgets,Resources,Business Support,A1442,Postal Services,A45015,Postages,30191467,25/02/2024,202312,317.92,135925,Whistl Uk Ltd
Assistant Director People & Organisation,Revenue Budgets,Resources,People and Culture,A0790,Disclosure Check Pmts,A16025,Recruitment Expenses,30191235,26/02/2024,202312,816.00,148286,Ucheck
Assistant Director People & Organisation,Revenue Budgets,Resources,Business Support,A0214,Business Support Unit (Sbs),A33005,Public Transport - Non Staff,30196549,29/02/2024,202312,"1,192.98",127476,Click Travel
Assistant Director People & Organisation,Revenue Budgets,Resources,Business Support,A0214,Business Support Unit (Sbs),A33005,Public Transport - Non Staff,30196549,29/02/2024,202312,"2,350.90",127476,Click Travel
Assistant Director People & Organisation,Revenue Budgets,Resources,Business Support,A1442,Postal Services,A45015,Postages,30191589,03/03/2024,202312,"1,073.97",135925,Whistl Uk Ltd
Assistant Director People & Organisation,Revenue Budgets,Resources,Business Support,A1442,Postal Services,A45015,Postages,30191597,03/03/2024,202312,"7,605.80",135925,Whistl Uk Ltd
Assistant Director People & Organisation,Revenue Budgets,Resources,People and Culture,A0790,Disclosure Check Pmts,A11005,Agency Supply Staff,30195017,03/03/2024,202312,"101,760.91",145197,Comensura Ltd
Assistant Director People & Organisation,Revenue Budgets,Resources,Business Support,A1442,Postal Services,A43020,General Office Expenses,30194141,04/03/2024,202312,"1,032.00",100822,Quadient Uk Limited
Assistant Director People & Organisation,Revenue Budgets,Resources,People and Culture,A0790,Disclosure Check Pmts,A16025,Recruitment Expenses,30195033,04/03/2024,202312,322.00,148286,Ucheck
Assistant Director People & Organisation,Revenue Budgets,Resources,People and Culture,A0814,Corporate Training & Devel,A16015,Staff Training Expenses,30193907,05/03/2024,202312,"1,416.64",REDACTED PERSONAL INFORMATION,REDACTED PERSONAL INFORMATION
Assistant Director People & Organisation,Revenue Budgets,Resources,People and Culture,A0814,Corporate Training & Devel,A16015,Staff Training Expenses,30193908,05/03/2024,202312,"1,322.20",REDACTED PERSONAL INFORMATION,REDACTED PERSONAL INFORMATION
Assistant Director People & Organisation,Revenue Budgets,Resources,People and Culture,A0814,Corporate Training & Devel,A16015,Staff Training Expenses,30193909,05/03/2024,202312,"1,322.20",REDACTED PERSONAL INFORMATION,REDACTED PERSONAL INFORMATION
Assistant Director People & Organisation,Revenue Budgets,Resources,People and Culture,A0814,Corporate Training & Devel,A16015,Staff Training Expenses,30193124,06/03/2024,202312,"6,500.00",1000188,Virtual College Limited
Assistant Director People & Organisation,Revenue Budgets,Resources,People and Culture,A1536,P&C - Occup Health & Safety,A16030,Employee Benefits,30195780,08/03/2024,202312,"3,000.00",109880,Dr M R East
Assistant Director People & Organisation,Revenue Budgets,Resources,Business Support,A1442,Postal Services,A45015,Postages,30194487,10/03/2024,202312,"2,938.44",135925,Whistl Uk Ltd
Assistant Director People & Organisation,Revenue Budgets,Resources,People and Culture,A0790,Disclosure Check Pmts,A11005,Agency Supply Staff,30195010,10/03/2024,202312,"104,655.06",145197,Comensura Ltd
Assistant Director People & Organisation,Revenue Budgets,Resources,People and Culture,A0790,Disclosure Check Pmts,A16025,Recruitment Expenses,30194999,11/03/2024,202312,418.00,148286,Ucheck
Assistant Director People & Organisation,Revenue Budgets,Resources,People and Culture,A0798,Leadership Academy,A40920,Purchase of Equipment,30196265,14/03/2024,202312,"3,450.00",1009596,Page Tiger
Assistant Director People & Organisation,Revenue Budgets,Resources,People and Culture,A0798,Leadership Academy,A40920,Purchase of Equipment,30196275,14/03/2024,202312,"1,950.00",1009596,Page Tiger
Assistant Director People & Organisation,Revenue Budgets,Resources,Business Support,A1442,Postal Services,A45015,Postages,30199457,14/03/2024,202312,"5,319.31",135925,Whistl Uk Ltd
Assistant Director People & Organisation,Revenue Budgets,Resources,Business Support,A1442,Postal Services,A45015,Postages,30199468,14/03/2024,202312,499.34,135925,Whistl Uk Ltd
Assistant Director People & Organisation,Revenue Budgets,Resources,People and Culture,A0790,Disclosure Check Pmts,A11005,Agency Supply Staff,30198209,17/03/2024,202312,"94,561.26",145197,Comensura Ltd
Assistant Director People & Organisation,Revenue Budgets,Resources,People and Culture,A1536,P&C - Occup Health & Safety,A40080,Health & Safety Equipment,30196557,18/03/2024,202312,760.00,105501,Forefront Training Ltd
Assistant Director People & Organisation,Revenue Budgets,Resources,People and Culture,A1666,Yhmast Regional Fund,A16015,Staff Training Expenses,30197084,18/03/2024,202312,600.00,101050,Barnardo Services Ltd
Assistant Director People & Organisation,Revenue Budgets,Resources,People and Culture,A0790,Disclosure Check Pmts,A16025,Recruitment Expenses,30200065,18/03/2024,202312,322.00,148286,Ucheck
Assistant Director People & Organisation,Revenue Budgets,Resources,People and Culture,A0798,Leadership Academy,A16015,Staff Training Expenses,30197154,19/03/2024,202312,716.79,109018,The Colour Works International Ltd
Assistant Director People & Organisation,Revenue Budgets,Resources,People and Culture,A0794,Leading Lights,A41905,Catering,30198018,19/03/2024,202312,664.15,101903,Deli-Licious
Assistant Director People & Organisation,Revenue Budgets,Resources,Business Support,A1442,Postal Services,A45015,Postages,30198893,19/03/2024,202312,434.50,101082,Royal Mail Group Plc
Assistant Director People & Organisation,Revenue Budgets,Resources,People and Culture,A1535,P&C - Learning & Develop Team,A45005,IT Hardware Purchase,30198166,20/03/2024,202312,266.76,1000258,Specialist Computer Centres PLC
Assistant Director People & Organisation,Revenue Budgets,Resources,People and Culture,A1537,P&C - Governance & Workforce,A49080,OBC Holding Account,30200039,21/03/2024,202312,"1,068.90",1002597,AVC Wise Ltd
Assistant Director People & Organisation,Revenue Budgets,Resources,Business Support,A1442,Postal Services,A45015,Postages,30199459,24/03/2024,202312,"1,545.00",135925,Whistl Uk Ltd
Assistant Director People & Organisation,Revenue Budgets,Resources,People and Culture,A0790,Disclosure Check Pmts,A16025,Recruitment Expenses,30200063,25/03/2024,202312,512.00,148286,Ucheck
Deputy s151,Revenue Budgets,Resources,Benefit Payments & Subsidy,A0200,Benefits Payments A/C,A91136,Expenditure Recovery,30194101,01/06/2017,202312,263.60,REDACTED PERSONAL INFORMATION,REDACTED PERSONAL INFORMATION
Deputy s151,Revenue Budgets,Resources,Local Taxation & Benefits - Shared,A0187,Debt Collection,A49053,Debt Recovery Costs,30176977,02/01/2024,202312,"-1,648.10",101788,Jacobs Certified Bailiffs
Deputy s151,Revenue Budgets,Resources,Local Taxation & Benefits - Shared,A0187,Debt Collection,A49053,Debt Recovery Costs,30176977,02/01/2024,202312,"1,648.10",101788,Jacobs Certified Bailiffs
Deputy s151,Revenue Budgets,Resources,Local Taxation & Benefits - Shared,A0187,Debt Collection,A49053,Debt Recovery Costs,30194095,29/01/2024,202312,-510.05,101373,Rossendales Ltd
Deputy s151,Revenue Budgets,Resources,Local Taxation & Benefits - Shared,A0187,Debt Collection,A49053,Debt Recovery Costs,30194095,29/01/2024,202312,510.05,101373,Rossendales Ltd
Deputy s151,Revenue Budgets,Resources,Local Taxation & Benefits - Shared,A0187,Debt Collection,A49053,Debt Recovery Costs,30194109,12/02/2024,202312,"-10,344.15",101788,Jacobs Certified Bailiffs
Deputy s151,Revenue Budgets,Resources,Local Taxation & Benefits - Shared,A0187,Debt Collection,A49053,Debt Recovery Costs,30194109,12/02/2024,202312,"10,344.15",101788,Jacobs Certified Bailiffs
Deputy s151,Revenue Budgets,Resources,Local Taxation & Benefits - Shared,A0187,Debt Collection,A49053,Debt Recovery Costs,30194114,12/02/2024,202312,-954.50,101788,Jacobs Certified Bailiffs
Deputy s151,Revenue Budgets,Resources,Local Taxation & Benefits - Shared,A0187,Debt Collection,A49053,Debt Recovery Costs,30194114,12/02/2024,202312,954.50,101788,Jacobs Certified Bailiffs
Deputy s151,Revenue Budgets,Resources,Local Taxation & Benefits - Shared,A0187,Debt Collection,A49053,Debt Recovery Costs,30194093,27/02/2024,202312,"-13,893.00",101788,Jacobs Certified Bailiffs
Deputy s151,Revenue Budgets,Resources,Local Taxation & Benefits - Shared,A0187,Debt Collection,A49053,Debt Recovery Costs,30194093,27/02/2024,202312,"13,893.00",101788,Jacobs Certified Bailiffs
Deputy s151,Revenue Budgets,Resources,Local Taxation & Benefits - Shared,A0187,Debt Collection,A49053,Debt Recovery Costs,30194105,27/02/2024,202312,-592.65,101788,Jacobs Certified Bailiffs
Deputy s151,Revenue Budgets,Resources,Local Taxation & Benefits - Shared,A0187,Debt Collection,A49053,Debt Recovery Costs,30194105,27/02/2024,202312,592.65,101788,Jacobs Certified Bailiffs
Deputy s151,Revenue Budgets,Resources,Local Taxation & Benefits - Shared,A0187,Debt Collection,A49053,Debt Recovery Costs,30194123,28/02/2024,202312,-853.85,101373,Rossendales Ltd
Deputy s151,Revenue Budgets,Resources,Local Taxation & Benefits - Shared,A0187,Debt Collection,A49053,Debt Recovery Costs,30194123,28/02/2024,202312,853.85,101373,Rossendales Ltd
Deputy s151,Revenue Budgets,Resources,Local Taxation & Benefits - Shared,A0187,Debt Collection,A49053,Debt Recovery Costs,30194132,28/02/2024,202312,"-20,814.25",123422,Newlyn
Deputy s151,Revenue Budgets,Resources,Local Taxation & Benefits - Shared,A0187,Debt Collection,A49053,Debt Recovery Costs,30194132,28/02/2024,202312,367.29,123422,Newlyn
Deputy s151,Revenue Budgets,Resources,Local Taxation & Benefits - Shared,A0187,Debt Collection,A49053,Debt Recovery Costs,30194132,28/02/2024,202312,593.00,123422,Newlyn
Deputy s151,Revenue Budgets,Resources,Local Taxation & Benefits - Shared,A0187,Debt Collection,A49053,Debt Recovery Costs,30194132,28/02/2024,202312,"20,814.25",123422,Newlyn
Deputy s151,Revenue Budgets,Resources,Accountancy,A1647,Accountancy -  Non Shared,A47010,Subscriptions (non staff),30196080,28/02/2024,202312,"7,235.00",102338,Cipfa Business Limited
Deputy s151,Revenue Budgets,Resources,Accountancy,A1647,Accountancy -  Non Shared,A16015,Staff Training Expenses,30191836,29/02/2024,202312,420.00,139362,Lavat Consulting Ltd T/A Pstax
Deputy s151,Revenue Budgets,Resources,Accountancy,A1647,Accountancy -  Non Shared,A47010,Subscriptions (non staff),30195746,29/02/2024,202312,"4,442.00",102338,Cipfa Business Limited
Deputy s151,Revenue Budgets,Resources,Local Taxation & Benefits - Shared,A0187,Debt Collection,A49053,Debt Recovery Costs,30194135,04/03/2024,202312,440.00,109470,Wilkin Chapman Llp Solicitors
Deputy s151,Revenue Budgets,Resources,Local Taxation & Benefits - Shared,A0187,Debt Collection,A49053,Debt Recovery Costs,30194135,04/03/2024,202312,933.64,109470,Wilkin Chapman Llp Solicitors
Deputy s151,Revenue Budgets,Resources,Local Taxation & Benefits - Shared,A0187,Debt Collection,A49053,Debt Recovery Costs,30194135,04/03/2024,202312,"1,108.00",109470,Wilkin Chapman Llp Solicitors
Deputy s151,Revenue Budgets,Resources,Accountancy,A1837,Humber Freeport,A44065,Consultancy Services,30193202,06/03/2024,202312,"3,888.75",100785,Solace In Business
Deputy s151,Revenue Budgets,Resources,Local Taxation & Benefits - Shared,A0184,Control & Monitoring,A45040,IT Software Purchase,30194468,07/03/2024,202312,"3,200.00",101841,Nec Software Solutions Uk Ltd
Deputy s151,Revenue Budgets,Resources,Local Taxation & Benefits - Shared,A0184,Control & Monitoring,A45045,IT Software Maintenance,30195747,07/03/2024,202312,"8,966.00",129023,Victoria Solutions (T/A Victoria Forms)
Deputy s151,Revenue Budgets,Resources,Local Taxation & Benefits - Shared,A0184,Control & Monitoring,A45040,IT Software Purchase,30194255,11/03/2024,202312,428.44,101275,Trustmarque Solutions Ltd
Deputy s151,Revenue Budgets,Resources,Local Taxation & Benefits - Shared,A0184,Control & Monitoring,A16015,Staff Training Expenses,30195572,13/03/2024,202312,"1,335.00",1001644,Zebra Training Services Limited
Deputy s151,Revenue Budgets,Resources,Local Taxation & Benefits - Shared,A0184,Control & Monitoring,A45045,IT Software Maintenance,30198089,20/03/2024,202312,421.20,101841,Nec Software Solutions Uk Ltd
Deputy s151,Revenue Budgets,Resources,Local Taxation & Benefits - Shared,A0184,Control & Monitoring,A45045,IT Software Maintenance,30199682,24/03/2024,202312,526.50,101841,Nec Software Solutions Uk Ltd
Deputy s151,Revenue Budgets,Resources,Accountancy,A1647,Accountancy -  Non Shared,A47010,Subscriptions (non staff),30199704,27/03/2024,202312,"2,790.00",139362,Lavat Consulting Ltd T/A Pstax
Deputy s151,Revenue Budgets,Resources,Accountancy,A1647,Accountancy -  Non Shared,A47010,Subscriptions (non staff),30199704,27/03/2024,202312,"2,847.50",139362,Lavat Consulting Ltd T/A Pstax
Deputy s151,Revenue Budgets,Resources,Accountancy,A1837,Humber Freeport,A44065,Consultancy Services,30200300,27/03/2024,202312,"2,287.50",100785,Solace In Business
Director Childrens Services,Revenue Budgets,Childrens Services,Director Children & Fam Serv,A0284,Director Children / Fam Serv,A47005,"Grants, Contributions & Donations Paid Out",30197943,30/11/2023,202312,"5,000.00",1001649,City of York Council
Director Childrens Services,Revenue Budgets,Childrens Services,Director Children & Fam Serv,A0284,Director Children / Fam Serv,A44968,Legal & Conveyancing Charges,30191477,23/02/2024,202312,450.00,1009404,Chris Randall Solicitor
Director Childrens Services,Revenue Budgets,Childrens Services,Director Children & Fam Serv,A0284,Director Children / Fam Serv,A44065,Consultancy Services,30194537,12/03/2024,202312,"2,400.00",1006980,ForeTwo Group Limited
Director Childrens Services,Revenue Budgets,Childrens Services,Director Children & Fam Serv,A0284,Director Children / Fam Serv,A44065,Consultancy Services,30197275,19/03/2024,202312,"2,400.00",1006980,ForeTwo Group Limited
Director Childrens Services,Revenue Budgets,Childrens Services,Director Children & Fam Serv,A0284,Director Children / Fam Serv,A44065,Consultancy Services,30199279,26/03/2024,202312,"2,400.00",1006980,ForeTwo Group Limited
Education and Inclusion,Revenue Budgets,Childrens Services,Sen/Inclusion,A1563,Top Up Funding Post 16,A52005,Payments to Other Local Authorities,30195985,13/01/2023,202312,610.84,1000918,Linkage Community Trust
Education and Inclusion,Revenue Budgets,Childrens Services,Sen/Inclusion,A1563,Top Up Funding Post 16,A52005,Payments to Other Local Authorities,30195992,13/01/2023,202312,610.84,1000918,Linkage Community Trust
Education and Inclusion,Revenue Budgets,Childrens Services,Sen/Inclusion,A1563,Top Up Funding Post 16,A52005,Payments to Other Local Authorities,30195996,13/01/2023,202312,610.84,1000918,Linkage Community Trust
Education and Inclusion,Revenue Budgets,Childrens Services,Sen/Inclusion,A1563,Top Up Funding Post 16,A52005,Payments to Other Local Authorities,30196006,13/01/2023,202312,594.17,1000918,Linkage Community Trust
Education and Inclusion,Revenue Budgets,Childrens Services,Sen/Inclusion,A1563,Top Up Funding Post 16,A52005,Payments to Other Local Authorities,30196011,13/01/2023,202312,"1,766.67",1000918,Linkage Community Trust
Education and Inclusion,Revenue Budgets,Childrens Services,Sen/Inclusion,A1563,Top Up Funding Post 16,A52005,Payments to Other Local Authorities,30196015,13/01/2023,202312,"3,619.17",1000918,Linkage Community Trust
Education and Inclusion,Revenue Budgets,Childrens Services,Sen/Inclusion,A1563,Top Up Funding Post 16,A52005,Payments to Other Local Authorities,30196016,13/01/2023,202312,454.17,1000918,Linkage Community Trust
Education and Inclusion,Revenue Budgets,Childrens Services,Sen/Inclusion,A1563,Top Up Funding Post 16,A52005,Payments to Other Local Authorities,30195993,16/03/2023,202312,"3,619.17",1000918,Linkage Community Trust
Education and Inclusion,Revenue Budgets,Childrens Services,Sen/Inclusion,A1563,Top Up Funding Post 16,A52005,Payments to Other Local Authorities,30195997,16/03/2023,202312,454.17,1000918,Linkage Community Trust
Education and Inclusion,Revenue Budgets,Childrens Services,Sen/Inclusion,A1563,Top Up Funding Post 16,A52005,Payments to Other Local Authorities,30195999,16/03/2023,202312,"1,766.67",1000918,Linkage Community Trust
Education and Inclusion,Revenue Budgets,Childrens Services,Sen/Inclusion,A1563,Top Up Funding Post 16,A52005,Payments to Other Local Authorities,30196000,16/03/2023,202312,610.84,1000918,Linkage Community Trust
Education and Inclusion,Revenue Budgets,Childrens Services,Sen/Inclusion,A1563,Top Up Funding Post 16,A52005,Payments to Other Local Authorities,30196003,16/03/2023,202312,610.84,1000918,Linkage Community Trust
Education and Inclusion,Revenue Budgets,Childrens Services,Sen/Inclusion,A1563,Top Up Funding Post 16,A52005,Payments to Other Local Authorities,30195952,14/04/2023,202312,"6,085.00",1000918,Linkage Community Trust
Education and Inclusion,Revenue Budgets,Childrens Services,Sen/Inclusion,A1563,Top Up Funding Post 16,A52005,Payments to Other Local Authorities,30195957,14/04/2023,202312,610.82,1000918,Linkage Community Trust
Education and Inclusion,Revenue Budgets,Childrens Services,Sen/Inclusion,A1563,Top Up Funding Post 16,A52005,Payments to Other Local Authorities,30195959,14/04/2023,202312,594.16,1000918,Linkage Community Trust
Education and Inclusion,Revenue Budgets,Childrens Services,Sen/Inclusion,A1563,Top Up Funding Post 16,A52005,Payments to Other Local Authorities,30195984,14/04/2023,202312,"1,766.66",1000918,Linkage Community Trust
Education and Inclusion,Revenue Budgets,Childrens Services,Sen/Inclusion,A1563,Top Up Funding Post 16,A52005,Payments to Other Local Authorities,30195990,14/04/2023,202312,610.82,1000918,Linkage Community Trust
Education and Inclusion,Revenue Budgets,Childrens Services,Sen/Inclusion,A1563,Top Up Funding Post 16,A52005,Payments to Other Local Authorities,30195991,14/04/2023,202312,610.82,1000918,Linkage Community Trust
Education and Inclusion,Revenue Budgets,Childrens Services,Sen/Inclusion,A1563,Top Up Funding Post 16,A52005,Payments to Other Local Authorities,30195994,14/04/2023,202312,454.16,1000918,Linkage Community Trust
Education and Inclusion,Revenue Budgets,Childrens Services,Sen/Inclusion,A1563,Top Up Funding Post 16,A52005,Payments to Other Local Authorities,30196001,14/04/2023,202312,"3,619.16",1000918,Linkage Community Trust
Education and Inclusion,Revenue Budgets,Childrens Services,Sen/Inclusion,A1784,Other La Top-Up,A52005,Payments to Other Local Authorities,30194192,30/04/2023,202312,"1,629.00",1009294,Cygnet (NW) Ltd
Education and Inclusion,Revenue Budgets,Childrens Services,Sen/Inclusion,A1784,Other La Top-Up,A52005,Payments to Other Local Authorities,30194197,31/05/2023,202312,"3,077.00",1009294,Cygnet (NW) Ltd
Education and Inclusion,Revenue Budgets,Childrens Services,Sen/Inclusion,A1563,Top Up Funding Post 16,A52005,Payments to Other Local Authorities,30199378,27/06/2023,202312,"-2,957.73",1004626,Care Plus Group Ltd
Education and Inclusion,Revenue Budgets,Childrens Services,Sen/Inclusion,A1784,Other La Top-Up,A52005,Payments to Other Local Authorities,30195031,30/06/2023,202312,"3,620.00",1009294,Cygnet (NW) Ltd
Education and Inclusion,Revenue Budgets,Childrens Services,Sen/Inclusion,A1784,Other La Top-Up,A52005,Payments to Other Local Authorities,30194203,30/09/2023,202312,"3,439.00",1009294,Cygnet (NW) Ltd
Education and Inclusion,Revenue Budgets,Childrens Services,Sen/Inclusion,A1858,Education Other than After Schools,A52005,Payments to Other Local Authorities,30194205,30/09/2023,202312,"1,040.00",146662,Targeted Provision Ltd
Education and Inclusion,Revenue Budgets,Childrens Services,Sen/Inclusion,A1858,Education Other than After Schools,A52005,Payments to Other Local Authorities,30194223,30/09/2023,202312,"3,900.00",146662,Targeted Provision Ltd
Education and Inclusion,Revenue Budgets,Childrens Services,Sen/Inclusion,A1858,Education Other than After Schools,A52005,Payments to Other Local Authorities,30194227,30/09/2023,202312,"2,400.00",146662,Targeted Provision Ltd
Education and Inclusion,Revenue Budgets,Childrens Services,Sen/Inclusion,A1783,Top-Up Non-Maintained & Indepe,A52005,Payments to Other Local Authorities,30194988,31/10/2023,202312,"9,108.90",101268,Doncaster Deaf Trust
Education and Inclusion,Revenue Budgets,Childrens Services,Sen/Inclusion,A1784,Other La Top-Up,A52005,Payments to Other Local Authorities,30194990,31/10/2023,202312,"1,448.00",1009294,Cygnet (NW) Ltd
Education and Inclusion,Revenue Budgets,Childrens Services,Sen/Inclusion,A1783,Top-Up Non-Maintained & Indepe,A52005,Payments to Other Local Authorities,30189820,01/11/2023,202312,"9,890.10",142624,Compass Childrens Homes Ltd
Education and Inclusion,Revenue Budgets,Childrens Services,Sen/Inclusion,A1715,Early Years Inclusion Fund,A16015,Staff Training Expenses,30191236,02/11/2023,202312,590.00,1005423,All Things Autism Ltd
Education and Inclusion,Revenue Budgets,Childrens Services,Sen/Inclusion,A1783,Top-Up Non-Maintained & Indepe,A52005,Payments to Other Local Authorities,30198992,14/11/2023,202312,"10,997.23",1000489,Acorn Care & Education Ltd (Sales)
Education and Inclusion,Revenue Budgets,Childrens Services,Sen/Inclusion,A1563,Top Up Funding Post 16,A52005,Payments to Other Local Authorities,30195965,26/11/2023,202312,"1,600.00",1000918,Linkage Community Trust
Education and Inclusion,Revenue Budgets,Childrens Services,Sen/Inclusion,A1783,Top-Up Non-Maintained & Indepe,A52005,Payments to Other Local Authorities,30188763,27/11/2023,202312,"-3,927.00",145195,Keys Pce Limited
Education and Inclusion,Capital Spend,Childrens Services,Cap Alloc Devolved To Schools,Y0818,Stallingborough Primary Dfcg,C01009,"New Construction, conversion & renovation",30197795,30/11/2023,202312,540.00,101924,Grade 3 Limited
Education and Inclusion,Revenue Budgets,Childrens Services,Sen/Inclusion,A1563,Top Up Funding Post 16,A52005,Payments to Other Local Authorities,30190454,01/01/2024,202312,"1,001.67",1000918,Linkage Community Trust
Education and Inclusion,Revenue Budgets,Childrens Services,Sen/Inclusion,A1563,Top Up Funding Post 16,A52005,Payments to Other Local Authorities,30190461,01/01/2024,202312,418.33,1000918,Linkage Community Trust
Education and Inclusion,Revenue Budgets,Childrens Services,Sen/Inclusion,A1563,Top Up Funding Post 16,A52005,Payments to Other Local Authorities,30190494,01/01/2024,202312,918.33,1000918,Linkage Community Trust
Education and Inclusion,Revenue Budgets,Childrens Services,Sen/Inclusion,A1563,Top Up Funding Post 16,A52005,Payments to Other Local Authorities,30190498,01/01/2024,202312,"2,876.67",1000918,Linkage Community Trust
Education and Inclusion,Revenue Budgets,Childrens Services,Sen/Inclusion,A1563,Top Up Funding Post 16,A52005,Payments to Other Local Authorities,30190500,01/01/2024,202312,998.33,1000918,Linkage Community Trust
Education and Inclusion,Revenue Budgets,Childrens Services,Sen/Inclusion,A1563,Top Up Funding Post 16,A52005,Payments to Other Local Authorities,30190501,01/01/2024,202312,415.00,1000918,Linkage Community Trust
Education and Inclusion,Revenue Budgets,Childrens Services,Sen/Inclusion,A1563,Top Up Funding Post 16,A52005,Payments to Other Local Authorities,30194171,01/01/2024,202312,"3,018.33",1000918,Linkage Community Trust
Education and Inclusion,Revenue Budgets,Childrens Services,Sen/Inclusion,A1563,Top Up Funding Post 16,A52005,Payments to Other Local Authorities,30194209,01/01/2024,202312,915.00,1000918,Linkage Community Trust
Education and Inclusion,Revenue Budgets,Childrens Services,Sen/Inclusion,A1563,Top Up Funding Post 16,A52005,Payments to Other Local Authorities,30194216,01/01/2024,202312,698.33,1000918,Linkage Community Trust
Education and Inclusion,Revenue Budgets,Childrens Services,Sen/Inclusion,A1563,Top Up Funding Post 16,A52005,Payments to Other Local Authorities,30194233,01/01/2024,202312,"3,573.33",1000918,Linkage Community Trust
Education and Inclusion,Revenue Budgets,Childrens Services,Sen/Inclusion,A1563,Top Up Funding Post 16,A52005,Payments to Other Local Authorities,30200160,01/01/2024,202312,665.83,1000918,Linkage Community Trust
Education and Inclusion,Revenue Budgets,Childrens Services,Sen/Inclusion,A1563,Top Up Funding Post 16,A52005,Payments to Other Local Authorities,30200161,01/01/2024,202312,"1,066.67",1000918,Linkage Community Trust
Education and Inclusion,Revenue Budgets,Childrens Services,Sen/Inclusion,A1563,Top Up Funding Post 16,A52005,Payments to Other Local Authorities,30200162,01/01/2024,202312,483.33,1000918,Linkage Community Trust
Education and Inclusion,Revenue Budgets,Childrens Services,Sen/Inclusion,A1563,Top Up Funding Post 16,A52005,Payments to Other Local Authorities,30200170,01/01/2024,202312,594.17,1000918,Linkage Community Trust
Education and Inclusion,Revenue Budgets,Childrens Services,Sen/Inclusion,A1563,Top Up Funding Post 16,A52005,Payments to Other Local Authorities,30200178,01/01/2024,202312,"1,066.67",1000918,Linkage Community Trust
Education and Inclusion,Revenue Budgets,Childrens Services,Sen/Inclusion,A1563,Top Up Funding Post 16,A52005,Payments to Other Local Authorities,30200186,01/01/2024,202312,610.83,1000918,Linkage Community Trust
Education and Inclusion,Revenue Budgets,Childrens Services,Sen/Inclusion,A1563,Top Up Funding Post 16,A52005,Payments to Other Local Authorities,30200191,01/01/2024,202312,610.83,1000918,Linkage Community Trust
Education and Inclusion,Revenue Budgets,Childrens Services,Sen/Inclusion,A1563,Top Up Funding Post 16,A52005,Payments to Other Local Authorities,30200198,01/01/2024,202312,"1,003.67",1000918,Linkage Community Trust
Education and Inclusion,Revenue Budgets,Childrens Services,Sen/Inclusion,A1563,Top Up Funding Post 16,A52005,Payments to Other Local Authorities,30200200,01/01/2024,202312,835.00,1000918,Linkage Community Trust
Education and Inclusion,Revenue Budgets,Childrens Services,Sen/Inclusion,A1563,Top Up Funding Post 16,A52005,Payments to Other Local Authorities,30200204,01/01/2024,202312,"1,665.00",1000918,Linkage Community Trust
Education and Inclusion,Revenue Budgets,Childrens Services,Sen/Inclusion,A1563,Top Up Funding Post 16,A52005,Payments to Other Local Authorities,30200205,01/01/2024,202312,745.83,1000918,Linkage Community Trust
Education and Inclusion,Revenue Budgets,Childrens Services,Sen/Inclusion,A1563,Top Up Funding Post 16,A52005,Payments to Other Local Authorities,30200208,01/01/2024,202312,665.83,1000918,Linkage Community Trust
Education and Inclusion,Revenue Budgets,Childrens Services,Sen/Inclusion,A1563,Top Up Funding Post 16,A52005,Payments to Other Local Authorities,30200210,01/01/2024,202312,811.67,1000918,Linkage Community Trust
Education and Inclusion,Revenue Budgets,Childrens Services,Sen/Inclusion,A1563,Top Up Funding Post 16,A52005,Payments to Other Local Authorities,30200214,01/01/2024,202312,483.33,1000918,Linkage Community Trust
Education and Inclusion,Revenue Budgets,Childrens Services,Sen/Inclusion,A1563,Top Up Funding Post 16,A52005,Payments to Other Local Authorities,30200219,01/01/2024,202312,"3,218.33",1000918,Linkage Community Trust
Education and Inclusion,Revenue Budgets,Childrens Services,Sen/Inclusion,A1563,Top Up Funding Post 16,A52005,Payments to Other Local Authorities,30200220,01/01/2024,202312,745.83,1000918,Linkage Community Trust
Education and Inclusion,Revenue Budgets,Childrens Services,Sen/Inclusion,A1563,Top Up Funding Post 16,A52005,Payments to Other Local Authorities,30200227,01/01/2024,202312,483.33,1000918,Linkage Community Trust
Education and Inclusion,Revenue Budgets,Childrens Services,Sen/Inclusion,A1783,Top-Up Non-Maintained & Indepe,A52005,Payments to Other Local Authorities,30194308,03/01/2024,202312,"29,003.69",100754,The William Henry Smith School
Education and Inclusion,Revenue Budgets,Childrens Services,Sen/Inclusion,A1783,Top-Up Non-Maintained & Indepe,A52005,Payments to Other Local Authorities,30194327,03/01/2024,202312,"33,611.19",100754,The William Henry Smith School
Education and Inclusion,Revenue Budgets,Childrens Services,Sen/Inclusion,A1783,Top-Up Non-Maintained & Indepe,A52005,Payments to Other Local Authorities,30194333,03/01/2024,202312,"30,582.94",100754,The William Henry Smith School
Education and Inclusion,Revenue Budgets,Childrens Services,Sen/Inclusion,A1783,Top-Up Non-Maintained & Indepe,A52005,Payments to Other Local Authorities,30194342,03/01/2024,202312,"33,611.19",100754,The William Henry Smith School
Education and Inclusion,Revenue Budgets,Childrens Services,Sen/Inclusion,A1783,Top-Up Non-Maintained & Indepe,A52005,Payments to Other Local Authorities,30194344,03/01/2024,202312,"29,003.69",100754,The William Henry Smith School
Education and Inclusion,Revenue Budgets,Childrens Services,Sen/Inclusion,A1783,Top-Up Non-Maintained & Indepe,A52005,Payments to Other Local Authorities,30194350,03/01/2024,202312,"33,611.19",100754,The William Henry Smith School
Education and Inclusion,Revenue Budgets,Childrens Services,Sen/Inclusion,A1783,Top-Up Non-Maintained & Indepe,A52005,Payments to Other Local Authorities,30194352,03/01/2024,202312,"33,611.19",100754,The William Henry Smith School
Education and Inclusion,Revenue Budgets,Childrens Services,Sen/Inclusion,A1783,Top-Up Non-Maintained & Indepe,A52005,Payments to Other Local Authorities,30194372,03/01/2024,202312,"29,003.69",100754,The William Henry Smith School
Education and Inclusion,Revenue Budgets,Childrens Services,Sen/Inclusion,A1783,Top-Up Non-Maintained & Indepe,A52005,Payments to Other Local Authorities,30194407,03/01/2024,202312,"33,611.19",100754,The William Henry Smith School
Education and Inclusion,Revenue Budgets,Childrens Services,Sen/Inclusion,A1896,Delivering Better Value,A56000,Other Establishments,30198600,10/01/2024,202312,"4,166.66",1008915,University College London
Education and Inclusion,Capital Spend,Childrens Services,Backlog Maintenance Schools,Y1756,Stalling Primary Remodelling,C01009,"New Construction, conversion & renovation",30193102,12/01/2024,202312,"1,420.49",100632,E S Rudkin Ltd
Education and Inclusion,Revenue Budgets,Childrens Services,Sen/Inclusion,A1784,Other La Top-Up,A52005,Payments to Other Local Authorities,30192465,15/01/2024,202312,"4,252.33",1000660,Woodlands Academy (Spilsby)
Education and Inclusion,Revenue Budgets,Childrens Services,Pupil Support Safeguard/Wellbeing,A0513,Lac Education,A46050,Conference Expenses,30193143,22/01/2024,202312,399.00,135553,National Association Of Virtual School Heads
Education and Inclusion,Revenue Budgets,Childrens Services,Sen/Inclusion,A1896,Delivering Better Value,A44942,Promotions and Events,30200237,26/01/2024,202312,625.00,1000424,Jon Corken Photography
Education and Inclusion,Revenue Budgets,Childrens Services,Sen/Inclusion,A1784,Other La Top-Up,A52005,Payments to Other Local Authorities,30194302,29/01/2024,202312,"33,865.01",100541,Kingston Upon Hull City Council
Education and Inclusion,Revenue Budgets,Childrens Services,Education Transport,A0254,Home To School Transport Sen,A32020,Home to School Transport,30191503,31/01/2024,202312,"1,928.00",101222,Aa Radio Cars Ltd
Education and Inclusion,Revenue Budgets,Childrens Services,Sen/Inclusion,A1784,Other La Top-Up,A52005,Payments to Other Local Authorities,30192478,31/01/2024,202312,"5,974.00",101186,North Lincolnshire Council
Education and Inclusion,Revenue Budgets,Childrens Services,Sen/Inclusion,A1784,Other La Top-Up,A52005,Payments to Other Local Authorities,30192504,31/01/2024,202312,"6,596.29",101186,North Lincolnshire Council
Education and Inclusion,Revenue Budgets,Childrens Services,Education Transport,A0247,Post 16 Sen,A32020,Home to School Transport,30191654,01/02/2024,202312,"3,895.00",1003562,WAT Specialist Transport LTD T/A WAT
Education and Inclusion,Revenue Budgets,Childrens Services,Education Transport,A0254,Home To School Transport Sen,A32020,Home to School Transport,30191655,01/02/2024,202312,"1,200.00",1003562,WAT Specialist Transport LTD T/A WAT
Education and Inclusion,Revenue Budgets,Childrens Services,Education Transport,A0254,Home To School Transport Sen,A32020,Home to School Transport,30191656,01/02/2024,202312,960.00,1003562,WAT Specialist Transport LTD T/A WAT
Education and Inclusion,Revenue Budgets,Childrens Services,Education Transport,A0254,Home To School Transport Sen,A32020,Home to School Transport,30191657,01/02/2024,202312,"1,280.00",1003562,WAT Specialist Transport LTD T/A WAT
Education and Inclusion,Revenue Budgets,Childrens Services,Education Transport,A0254,Home To School Transport Sen,A32020,Home to School Transport,30191658,01/02/2024,202312,"1,216.00",1003562,WAT Specialist Transport LTD T/A WAT
Education and Inclusion,Revenue Budgets,Childrens Services,Education Transport,A0254,Home To School Transport Sen,A32020,Home to School Transport,30191659,01/02/2024,202312,"1,600.00",1003562,WAT Specialist Transport LTD T/A WAT
Education and Inclusion,Revenue Budgets,Childrens Services,Education Transport,A0254,Home To School Transport Sen,A32020,Home to School Transport,30191660,01/02/2024,202312,"1,120.00",1003562,WAT Specialist Transport LTD T/A WAT
Education and Inclusion,Revenue Budgets,Childrens Services,Education Transport,A0247,Post 16 Sen,A32020,Home to School Transport,30191662,01/02/2024,202312,"1,440.00",1003562,WAT Specialist Transport LTD T/A WAT
Education and Inclusion,Revenue Budgets,Childrens Services,Education Transport,A0254,Home To School Transport Sen,A32020,Home to School Transport,30191662,01/02/2024,202312,"2,160.00",1003562,WAT Specialist Transport LTD T/A WAT
Education and Inclusion,Revenue Budgets,Childrens Services,Education Transport,A0247,Post 16 Sen,A32020,Home to School Transport,30191663,01/02/2024,202312,"1,300.00",1003562,WAT Specialist Transport LTD T/A WAT
Education and Inclusion,Revenue Budgets,Childrens Services,Education Transport,A0254,Home To School Transport Sen,A32020,Home to School Transport,30191665,01/02/2024,202312,"1,200.00",1003562,WAT Specialist Transport LTD T/A WAT
Education and Inclusion,Revenue Budgets,Childrens Services,Education Transport,A0254,Home To School Transport Sen,A32020,Home to School Transport,30191667,01/02/2024,202312,"1,600.00",1003562,WAT Specialist Transport LTD T/A WAT
Education and Inclusion,Revenue Budgets,Childrens Services,Education Transport,A0254,Home To School Transport Sen,A32020,Home to School Transport,30191770,01/02/2024,202312,960.00,1003562,WAT Specialist Transport LTD T/A WAT
Education and Inclusion,Revenue Budgets,Childrens Services,Education Transport,A0254,Home To School Transport Sen,A32020,Home to School Transport,30191777,01/02/2024,202312,427.50,1003562,WAT Specialist Transport LTD T/A WAT
Education and Inclusion,Revenue Budgets,Childrens Services,Education Transport,A0254,Home To School Transport Sen,A32020,Home to School Transport,30191792,01/02/2024,202312,840.00,1003562,WAT Specialist Transport LTD T/A WAT
Education and Inclusion,Revenue Budgets,Childrens Services,Education Transport,A0254,Home To School Transport Sen,A32020,Home to School Transport,30191797,01/02/2024,202312,580.00,1003562,WAT Specialist Transport LTD T/A WAT
Education and Inclusion,Revenue Budgets,Childrens Services,Education Transport,A0249,Excluded And Ap Transport,A32020,Home to School Transport,30191803,01/02/2024,202312,787.50,1003562,WAT Specialist Transport LTD T/A WAT
Education and Inclusion,Revenue Budgets,Childrens Services,Education Transport,A0254,Home To School Transport Sen,A32020,Home to School Transport,30191803,01/02/2024,202312,787.50,1003562,WAT Specialist Transport LTD T/A WAT
Education and Inclusion,Revenue Budgets,Childrens Services,Education Transport,A0254,Home To School Transport Sen,A32020,Home to School Transport,30191808,01/02/2024,202312,800.00,1003562,WAT Specialist Transport LTD T/A WAT
Education and Inclusion,Revenue Budgets,Childrens Services,Education Transport,A0254,Home To School Transport Sen,A32020,Home to School Transport,30191810,01/02/2024,202312,450.00,1003562,WAT Specialist Transport LTD T/A WAT
Education and Inclusion,Revenue Budgets,Childrens Services,Education Transport,A0254,Home To School Transport Sen,A32020,Home to School Transport,30191811,01/02/2024,202312,"2,080.00",1003562,WAT Specialist Transport LTD T/A WAT
Education and Inclusion,Revenue Budgets,Childrens Services,Education Transport,A0254,Home To School Transport Sen,A32020,Home to School Transport,30191813,01/02/2024,202312,"1,350.00",1003562,WAT Specialist Transport LTD T/A WAT
Education and Inclusion,Revenue Budgets,Childrens Services,Education Transport,A0254,Home To School Transport Sen,A32020,Home to School Transport,30191819,01/02/2024,202312,"1,120.00",1003562,WAT Specialist Transport LTD T/A WAT
Education and Inclusion,Revenue Budgets,Childrens Services,Education Transport,A0254,Home To School Transport Sen,A32020,Home to School Transport,30191841,01/02/2024,202312,"1,275.00",1003562,WAT Specialist Transport LTD T/A WAT
Education and Inclusion,Revenue Budgets,Childrens Services,Education Transport,A0254,Home To School Transport Sen,A32020,Home to School Transport,30191844,01/02/2024,202312,640.00,1003562,WAT Specialist Transport LTD T/A WAT
Education and Inclusion,Revenue Budgets,Childrens Services,Education Transport,A0254,Home To School Transport Sen,A32020,Home to School Transport,30191846,01/02/2024,202312,"1,200.00",1003562,WAT Specialist Transport LTD T/A WAT
Education and Inclusion,Revenue Budgets,Childrens Services,Education Transport,A0254,Home To School Transport Sen,A32020,Home to School Transport,30191895,01/02/2024,202312,"2,280.00",1003562,WAT Specialist Transport LTD T/A WAT
Education and Inclusion,Revenue Budgets,Childrens Services,Education Transport,A0254,Home To School Transport Sen,A32020,Home to School Transport,30192065,01/02/2024,202312,675.00,1003562,WAT Specialist Transport LTD T/A WAT
Education and Inclusion,Revenue Budgets,Childrens Services,Education Transport,A0254,Home To School Transport Sen,A32020,Home to School Transport,30192072,01/02/2024,202312,"3,125.00",1003562,WAT Specialist Transport LTD T/A WAT
Education and Inclusion,Revenue Budgets,Childrens Services,Education Transport,A0254,Home To School Transport Sen,A32020,Home to School Transport,30192075,01/02/2024,202312,930.00,1003562,WAT Specialist Transport LTD T/A WAT
Education and Inclusion,Revenue Budgets,Childrens Services,Education Transport,A0254,Home To School Transport Sen,A32020,Home to School Transport,30192093,01/02/2024,202312,"1,950.00",1003562,WAT Specialist Transport LTD T/A WAT
Education and Inclusion,Revenue Budgets,Childrens Services,Education Transport,A0254,Home To School Transport Sen,A32020,Home to School Transport,30192102,01/02/2024,202312,625.00,1003562,WAT Specialist Transport LTD T/A WAT
Education and Inclusion,Revenue Budgets,Childrens Services,Education Transport,A0254,Home To School Transport Sen,A32020,Home to School Transport,30192115,01/02/2024,202312,"1,860.00",1003562,WAT Specialist Transport LTD T/A WAT
Education and Inclusion,Revenue Budgets,Childrens Services,Education Transport,A0254,Home To School Transport Sen,A32020,Home to School Transport,30192123,01/02/2024,202312,"1,360.00",1003562,WAT Specialist Transport LTD T/A WAT
Education and Inclusion,Revenue Budgets,Childrens Services,Sen/Inclusion,A1783,Top-Up Non-Maintained & Indepe,A52005,Payments to Other Local Authorities,30192526,01/02/2024,202312,"69,944.47",109683,Demeter House (England) Ltd
Education and Inclusion,Revenue Budgets,Childrens Services,Education Transport,A0254,Home To School Transport Sen,A32020,Home to School Transport,30192831,01/02/2024,202312,"2,730.00",1003562,WAT Specialist Transport LTD T/A WAT
Education and Inclusion,Revenue Budgets,Childrens Services,Education Transport,A0254,Home To School Transport Sen,A32020,Home to School Transport,30193127,01/02/2024,202312,"2,250.00",1003562,WAT Specialist Transport LTD T/A WAT
Education and Inclusion,Revenue Budgets,Childrens Services,Education Transport,A0254,Home To School Transport Sen,A32020,Home to School Transport,30193184,01/02/2024,202312,"2,295.00",1003562,WAT Specialist Transport LTD T/A WAT
Education and Inclusion,Revenue Budgets,Childrens Services,Education Transport,A0254,Home To School Transport Sen,A32020,Home to School Transport,30193199,01/02/2024,202312,"2,550.00",1003562,WAT Specialist Transport LTD T/A WAT
Education and Inclusion,Revenue Budgets,Childrens Services,Education Transport,A0254,Home To School Transport Sen,A32020,Home to School Transport,30193303,01/02/2024,202312,"2,270.00",1003562,WAT Specialist Transport LTD T/A WAT
Education and Inclusion,Revenue Budgets,Childrens Services,Education Transport,A0247,Post 16 Sen,A32020,Home to School Transport,30194050,01/02/2024,202312,700.00,1003562,WAT Specialist Transport LTD T/A WAT
Education and Inclusion,Revenue Budgets,Childrens Services,Sen/Inclusion,A1783,Top-Up Non-Maintained & Indepe,A52005,Payments to Other Local Authorities,30195964,01/02/2024,202312,"35,595.84",128600,Best Futures Community Interest Company
Education and Inclusion,Revenue Budgets,Childrens Services,Sen/Inclusion,A1563,Top Up Funding Post 16,A52005,Payments to Other Local Authorities,30198912,01/02/2024,202312,985.44,1000918,Linkage Community Trust
Education and Inclusion,Revenue Budgets,Childrens Services,Sen/Inclusion,A1563,Top Up Funding Post 16,A52005,Payments to Other Local Authorities,30198919,01/02/2024,202312,985.44,1000918,Linkage Community Trust
Education and Inclusion,Revenue Budgets,Childrens Services,Sen/Inclusion,A1563,Top Up Funding Post 16,A52005,Payments to Other Local Authorities,30198945,01/02/2024,202312,804.30,1000918,Linkage Community Trust
Education and Inclusion,Revenue Budgets,Childrens Services,Sen/Inclusion,A1563,Top Up Funding Post 16,A52005,Payments to Other Local Authorities,30198946,01/02/2024,202312,"1,072.40",1000918,Linkage Community Trust
Education and Inclusion,Revenue Budgets,Childrens Services,Sen/Inclusion,A1783,Top-Up Non-Maintained & Indepe,A52005,Payments to Other Local Authorities,30192524,06/02/2024,202312,"1,333.63",1006807,Ganton School
Education and Inclusion,Revenue Budgets,Childrens Services,Sen/Inclusion,A1783,Top-Up Non-Maintained & Indepe,A52005,Payments to Other Local Authorities,30195970,06/02/2024,202312,"4,687.50",144120,Learning4life-Gy-Cic
Education and Inclusion,Revenue Budgets,Childrens Services,Sen/Inclusion,A0271,Sen Team Admin,A16015,Staff Training Expenses,30193796,07/02/2024,202312,"2,215.00",1003811,Sarah A Makaton Tutor
Education and Inclusion,Revenue Budgets,Childrens Services,Sen/Inclusion,A1784,Other La Top-Up,A52005,Payments to Other Local Authorities,30192486,08/02/2024,202312,"12,548.52",100389,Lincolnshire County Council
Education and Inclusion,Revenue Budgets,Childrens Services,Sen/Inclusion,A1896,Delivering Better Value,A16015,Staff Training Expenses,30195415,12/02/2024,202312,"6,965.00",106067,Humberston Academy
Education and Inclusion,Revenue Budgets,Childrens Services,Sen/Inclusion,A1858,Education Other than After Schools,A56000,Other Establishments,30192538,14/02/2024,202312,"2,365.00",145278,Prospero Recruitment Ltd
Education and Inclusion,Revenue Budgets,Childrens Services,Sen/Inclusion,A1563,Top Up Funding Post 16,A52005,Payments to Other Local Authorities,30194219,18/02/2024,202312,"1,600.00",1000918,Linkage Community Trust
Education and Inclusion,Revenue Budgets,Childrens Services,Sen/Inclusion,A1563,Top Up Funding Post 16,A52005,Payments to Other Local Authorities,30198922,18/02/2024,202312,"1,072.40",1000918,Linkage Community Trust
Education and Inclusion,Revenue Budgets,Childrens Services,Sen/Inclusion,A1563,Top Up Funding Post 16,A52005,Payments to Other Local Authorities,30200172,18/02/2024,202312,"2,400.00",1000918,Linkage Community Trust
Education and Inclusion,Capital Spend,Childrens Services,Sufficiency Of School Places,Y1868,Cleethorpes Academy,C01009,"New Construction, conversion & renovation",30191237,20/02/2024,202312,"5,117.97",100786,KES Building Maintenance Limited
Education and Inclusion,Revenue Budgets,Childrens Services,Attainment and Progress,A0595,Reynolds Cc Daycare,A42005,Clothing & Uniforms & Laundry,30192061,20/02/2024,202312,"1,500.00",1004820,The Uniform Hut
Education and Inclusion,Revenue Budgets,Childrens Services,Pupil Support Safeguard/Wellbeing,A0513,Lac Education,A60010,Tuition &/or Board Fees,30194053,20/02/2024,202312,"1,026.60",122184,Doncaster Metropolitan Borough Council
Education and Inclusion,Revenue Budgets,Childrens Services,Sen/Inclusion,A1858,Education Other than After Schools,A56000,Other Establishments,30194251,20/02/2024,202312,"1,257.00",1004750,Key to Achieving Therapy Services Ltd
Education and Inclusion,Revenue Budgets,Childrens Services,Pupil Support Safeguard/Wellbeing,A0513,Lac Education,A60010,Tuition &/or Board Fees,30195832,20/02/2024,202312,281.53,122184,Doncaster Metropolitan Borough Council
Education and Inclusion,Revenue Budgets,Childrens Services,Sen/Inclusion,A1858,Education Other than After Schools,A56000,Other Establishments,30194526,21/02/2024,202312,948.00,143856,Nunnys Farm Cic
Education and Inclusion,Revenue Budgets,Childrens Services,Sen/Inclusion,A1858,Education Other than After Schools,A56000,Other Establishments,30194539,21/02/2024,202312,600.00,143856,Nunnys Farm Cic
Education and Inclusion,Revenue Budgets,Childrens Services,Sen/Inclusion,A1858,Education Other than After Schools,A56000,Other Establishments,30194541,21/02/2024,202312,562.50,143856,Nunnys Farm Cic
Education and Inclusion,Revenue Budgets,Childrens Services,Sen/Inclusion,A1858,Education Other than After Schools,A56000,Other Establishments,30195177,21/02/2024,202312,"1,303.50",143856,Nunnys Farm Cic
Education and Inclusion,Revenue Budgets,Childrens Services,Sen/Inclusion,A1858,Education Other than After Schools,A56000,Other Establishments,30195182,21/02/2024,202312,"2,725.50",143856,Nunnys Farm Cic
Education and Inclusion,Revenue Budgets,Childrens Services,Sen/Inclusion,A1565,Top Up Funding Academies & Fre,A52005,Payments to Other Local Authorities,30199425,21/02/2024,202312,"58,000.00",107911,Humberston Park Special School
Education and Inclusion,Revenue Budgets,Childrens Services,Sen/Inclusion,A1766,Bursar Provision,A20011,Premises External Maintenance,30191094,22/02/2024,202312,"2,598.75",133267,Equans Services Ltd
Education and Inclusion,Capital Spend,Childrens Services,Sufficiency Of School Places,Y1098,Enfield Primary,C01011,External Professional Fees,30192822,22/02/2024,202312,"5,000.00",133267,Equans Services Ltd
Education and Inclusion,Capital Spend,Childrens Services,Sufficiency Of School Places,Y1867,Scartho Provision,C01011,External Professional Fees,30192838,22/02/2024,202312,"10,000.00",133267,Equans Services Ltd
Education and Inclusion,Capital Spend,Childrens Services,Sufficiency Of School Places,Y1866,New Waltham Primary,C01011,External Professional Fees,30192847,22/02/2024,202312,"10,000.00",133267,Equans Services Ltd
Education and Inclusion,Capital Spend,Childrens Services,Send Special Prov Fund,Y1675,Send Special Prov Fund,C01011,External Professional Fees,30192855,22/02/2024,202312,"8,333.33",133267,Equans Services Ltd
Education and Inclusion,Capital Spend,Childrens Services,Sufficiency Of School Places,Y1096,Stanford Primary,C01011,External Professional Fees,30192859,22/02/2024,202312,"12,000.00",133267,Equans Services Ltd
Education and Inclusion,Capital Spend,Childrens Services,Sufficiency Of School Places,Y1868,Cleethorpes Academy,C01011,External Professional Fees,30192861,22/02/2024,202312,"10,000.00",133267,Equans Services Ltd
Education and Inclusion,Capital Spend,Childrens Services,Sufficiency Of School Places,Y1869,Waltham Provision,C01011,External Professional Fees,30192869,22/02/2024,202312,"10,000.00",133267,Equans Services Ltd
Education and Inclusion,Revenue Budgets,Childrens Services,Sen/Inclusion,A1858,Education Other than After Schools,A56000,Other Establishments,30200468,22/02/2024,202312,"2,146.75",1006266,Communication and Learning Enterprises Ltd
Education and Inclusion,Revenue Budgets,Childrens Services,Education Transport,A0254,Home To School Transport Sen,A32020,Home to School Transport,30191653,23/02/2024,202312,"1,280.00",1003562,WAT Specialist Transport LTD T/A WAT
Education and Inclusion,Revenue Budgets,Childrens Services,Education Transport,A0247,Post 16 Sen,A32020,Home to School Transport,30192111,25/02/2024,202312,960.00,1002574,SL TAXI'S
Education and Inclusion,Revenue Budgets,Childrens Services,Sen/Inclusion,A1783,Top-Up Non-Maintained & Indepe,A52005,Payments to Other Local Authorities,30189834,26/02/2024,202312,"3,936.00",145195,Keys Pce Limited
Education and Inclusion,Revenue Budgets,Childrens Services,Sen/Inclusion,A1858,Education Other than After Schools,A56000,Other Establishments,30194166,26/02/2024,202312,"1,680.00",129154,Climb 4 Ltd
Education and Inclusion,Revenue Budgets,Childrens Services,Sen/Inclusion,A1858,Education Other than After Schools,A56000,Other Establishments,30194173,26/02/2024,202312,"2,340.00",129154,Climb 4 Ltd
Education and Inclusion,Revenue Budgets,Childrens Services,Sen/Inclusion,A1858,Education Other than After Schools,A56000,Other Establishments,30194175,26/02/2024,202312,"1,767.00",129154,Climb 4 Ltd
Education and Inclusion,Revenue Budgets,Childrens Services,Sen/Inclusion,A1784,Other La Top-Up,A52005,Payments to Other Local Authorities,30194493,26/02/2024,202312,"4,165.98",129673,Keelby Primary Academy
Education and Inclusion,Revenue Budgets,Childrens Services,Sen/Inclusion,A1858,Education Other than After Schools,A56000,Other Establishments,30195014,26/02/2024,202312,"3,960.00",129154,Climb 4 Ltd
Education and Inclusion,Revenue Budgets,Childrens Services,Sen/Inclusion,A1858,Education Other than After Schools,A56000,Other Establishments,30195019,26/02/2024,202312,"1,440.00",129154,Climb 4 Ltd
Education and Inclusion,Revenue Budgets,Childrens Services,Attainment and Progress,A0595,Reynolds Cc Daycare,A44030,Provisions,30198578,26/02/2024,202312,252.00,1007051,Poppins Morris Ltd T/A Poppins Cafe
Education and Inclusion,Revenue Budgets,Childrens Services,Sen/Inclusion,A1784,Other La Top-Up,A52005,Payments to Other Local Authorities,30194937,27/02/2024,202312,"9,433.44",100389,Lincolnshire County Council
Education and Inclusion,Capital Spend,Childrens Services,Sufficiency Of School Places,Y1098,Enfield Primary,C01009,"New Construction, conversion & renovation",30193103,28/02/2024,202312,"14,303.65",1001092,Unibuild Building Contractors Ltd
Education and Inclusion,Revenue Budgets,Childrens Services,Sen/Inclusion,A1783,Top-Up Non-Maintained & Indepe,A52005,Payments to Other Local Authorities,30193182,28/02/2024,202312,"5,105.60",146022,Act Fast Nl Ltd
Education and Inclusion,Revenue Budgets,Childrens Services,Sen/Inclusion,A1783,Top-Up Non-Maintained & Indepe,A52005,Payments to Other Local Authorities,30193194,28/02/2024,202312,"4,148.30",146022,Act Fast Nl Ltd
Education and Inclusion,Revenue Budgets,Childrens Services,Attainment and Progress,A1640,School Improvement,A56000,Other Establishments,30193862,28/02/2024,202312,"1,000.00",1007027,The St Lawrence Academies Trust
Education and Inclusion,Revenue Budgets,Childrens Services,Attainment and Progress,A1640,School Improvement,A56000,Other Establishments,30194257,28/02/2024,202312,"2,750.00",1000334,Sandie Holmes
Education and Inclusion,Revenue Budgets,Childrens Services,Education Transport,A0254,Home To School Transport Sen,A32020,Home to School Transport,30194579,28/02/2024,202312,960.00,1008462,A1 Cars North Lincs Ltd
Education and Inclusion,Revenue Budgets,Childrens Services,Education Transport,A0254,Home To School Transport Sen,A32020,Home to School Transport,30191217,29/02/2024,202312,"2,912.00",121524,Grimsby Minibuses Ltd
Education and Inclusion,Revenue Budgets,Childrens Services,Education Transport,A0253,Home To Sch Transport Sec-Gy,A32020,Home to School Transport,30191224,29/02/2024,202312,"3,038.40",121524,Grimsby Minibuses Ltd
Education and Inclusion,Revenue Budgets,Childrens Services,Education Transport,A0254,Home To School Transport Sen,A32020,Home to School Transport,30191378,29/02/2024,202312,"2,240.00",121524,Grimsby Minibuses Ltd
Education and Inclusion,Revenue Budgets,Childrens Services,Education Transport,A0254,Home To School Transport Sen,A32020,Home to School Transport,30191381,29/02/2024,202312,"3,064.00",121524,Grimsby Minibuses Ltd
Education and Inclusion,Revenue Budgets,Childrens Services,Education Transport,A0254,Home To School Transport Sen,A32020,Home to School Transport,30191493,29/02/2024,202312,"2,800.00",121524,Grimsby Minibuses Ltd
Education and Inclusion,Revenue Budgets,Childrens Services,Education Transport,A0254,Home To School Transport Sen,A32020,Home to School Transport,30191497,29/02/2024,202312,"2,313.60",121524,Grimsby Minibuses Ltd
Education and Inclusion,Revenue Budgets,Childrens Services,Education Transport,A0254,Home To School Transport Sen,A32020,Home to School Transport,30191530,29/02/2024,202312,823.00,147051,Ethical Recruitment Agency (Grimsby) Ltd
Education and Inclusion,Revenue Budgets,Childrens Services,Education Transport,A0254,Home To School Transport Sen,A32020,Home to School Transport,30192087,29/02/2024,202312,736.00,101222,Aa Radio Cars Ltd
Education and Inclusion,Revenue Budgets,Childrens Services,Education Transport,A0253,Home To Sch Transport Sec-Gy,A32020,Home to School Transport,30192090,29/02/2024,202312,960.00,100546,Links Taxis
Education and Inclusion,Revenue Budgets,Childrens Services,Education Transport,A0254,Home To School Transport Sen,A32020,Home to School Transport,30192095,29/02/2024,202312,"1,312.00",100546,Links Taxis
Education and Inclusion,Revenue Budgets,Childrens Services,Education Transport,A0254,Home To School Transport Sen,A32020,Home to School Transport,30192099,29/02/2024,202312,282.00,100546,Links Taxis
Education and Inclusion,Revenue Budgets,Childrens Services,Education Transport,A0254,Home To School Transport Sen,A32020,Home to School Transport,30192101,29/02/2024,202312,"2,272.00",100546,Links Taxis
Education and Inclusion,Revenue Budgets,Childrens Services,Education Transport,A0254,Home To School Transport Sen,A32020,Home to School Transport,30192104,29/02/2024,202312,736.00,100546,Links Taxis
Education and Inclusion,Revenue Budgets,Childrens Services,Education Transport,A0247,Post 16 Sen,A32020,Home to School Transport,30192105,29/02/2024,202312,294.00,101222,Aa Radio Cars Ltd
Education and Inclusion,Revenue Budgets,Childrens Services,Education Transport,A0254,Home To School Transport Sen,A32020,Home to School Transport,30192112,29/02/2024,202312,"1,736.00",100546,Links Taxis
Education and Inclusion,Revenue Budgets,Childrens Services,Education Transport,A0254,Home To School Transport Sen,A32020,Home to School Transport,30192114,29/02/2024,202312,700.00,101222,Aa Radio Cars Ltd
Education and Inclusion,Revenue Budgets,Childrens Services,Education Transport,A0254,Home To School Transport Sen,A32020,Home to School Transport,30192118,29/02/2024,202312,752.00,100546,Links Taxis
Education and Inclusion,Revenue Budgets,Childrens Services,Education Transport,A0254,Home To School Transport Sen,A32020,Home to School Transport,30192119,29/02/2024,202312,384.00,101222,Aa Radio Cars Ltd
Education and Inclusion,Revenue Budgets,Childrens Services,Education Transport,A0253,Home To Sch Transport Sec-Gy,A32020,Home to School Transport,30192121,29/02/2024,202312,912.00,100546,Links Taxis
Education and Inclusion,Revenue Budgets,Childrens Services,Education Transport,A0254,Home To School Transport Sen,A32020,Home to School Transport,30192124,29/02/2024,202312,"3,070.00",100546,Links Taxis
Education and Inclusion,Revenue Budgets,Childrens Services,Education Transport,A0254,Home To School Transport Sen,A32020,Home to School Transport,30192125,29/02/2024,202312,"2,592.00",100546,Links Taxis
Education and Inclusion,Revenue Budgets,Childrens Services,Education Transport,A0252,Home To Sch Transport Pri-Grim,A32020,Home to School Transport,30192128,29/02/2024,202312,"1,312.00",100546,Links Taxis
Education and Inclusion,Revenue Budgets,Childrens Services,Education Transport,A0254,Home To School Transport Sen,A32020,Home to School Transport,30192135,29/02/2024,202312,"1,950.00",101222,Aa Radio Cars Ltd
Education and Inclusion,Revenue Budgets,Childrens Services,Education Transport,A0254,Home To School Transport Sen,A32020,Home to School Transport,30192137,29/02/2024,202312,"1,472.00",101222,Aa Radio Cars Ltd
Education and Inclusion,Revenue Budgets,Childrens Services,Education Transport,A0254,Home To School Transport Sen,A32020,Home to School Transport,30192459,29/02/2024,202312,"1,544.00",100546,Links Taxis
Education and Inclusion,Revenue Budgets,Childrens Services,Education Transport,A0253,Home To Sch Transport Sec-Gy,A32020,Home to School Transport,30192460,29/02/2024,202312,"1,088.00",100546,Links Taxis
Education and Inclusion,Revenue Budgets,Childrens Services,Education Transport,A0254,Home To School Transport Sen,A32020,Home to School Transport,30192462,29/02/2024,202312,651.00,100546,Links Taxis
Education and Inclusion,Revenue Budgets,Childrens Services,Education Transport,A0248,Exceptional Circumstances,A32020,Home to School Transport,30192469,29/02/2024,202312,504.00,100546,Links Taxis
Education and Inclusion,Revenue Budgets,Childrens Services,Education Transport,A0254,Home To School Transport Sen,A32020,Home to School Transport,30192471,29/02/2024,202312,541.50,100546,Links Taxis
Education and Inclusion,Revenue Budgets,Childrens Services,Education Transport,A0254,Home To School Transport Sen,A32020,Home to School Transport,30192475,29/02/2024,202312,"1,472.00",100546,Links Taxis
Education and Inclusion,Revenue Budgets,Childrens Services,Education Transport,A0254,Home To School Transport Sen,A32020,Home to School Transport,30192487,29/02/2024,202312,912.00,100546,Links Taxis
Education and Inclusion,Revenue Budgets,Childrens Services,Education Transport,A0254,Home To School Transport Sen,A32020,Home to School Transport,30192491,29/02/2024,202312,"1,152.00",100546,Links Taxis
Education and Inclusion,Revenue Budgets,Childrens Services,Education Transport,A0254,Home To School Transport Sen,A32020,Home to School Transport,30192493,29/02/2024,202312,770.00,100546,Links Taxis
Education and Inclusion,Revenue Budgets,Childrens Services,Education Transport,A0254,Home To School Transport Sen,A32020,Home to School Transport,30192502,29/02/2024,202312,640.00,100546,Links Taxis
Education and Inclusion,Revenue Budgets,Childrens Services,Education Transport,A0254,Home To School Transport Sen,A32020,Home to School Transport,30192510,29/02/2024,202312,420.00,100546,Links Taxis
Education and Inclusion,Revenue Budgets,Childrens Services,Education Transport,A0254,Home To School Transport Sen,A32020,Home to School Transport,30192513,29/02/2024,202312,624.00,100546,Links Taxis
Education and Inclusion,Revenue Budgets,Childrens Services,Education Transport,A0254,Home To School Transport Sen,A32020,Home to School Transport,30192515,29/02/2024,202312,592.00,100546,Links Taxis
Education and Inclusion,Revenue Budgets,Childrens Services,Education Transport,A0254,Home To School Transport Sen,A32020,Home to School Transport,30192521,29/02/2024,202312,"1,302.00",100546,Links Taxis
Education and Inclusion,Revenue Budgets,Childrens Services,Education Transport,A0254,Home To School Transport Sen,A32020,Home to School Transport,30192522,29/02/2024,202312,585.60,100546,Links Taxis
Education and Inclusion,Revenue Budgets,Childrens Services,Education Transport,A0254,Home To School Transport Sen,A32020,Home to School Transport,30192699,29/02/2024,202312,525.00,100546,Links Taxis
Education and Inclusion,Revenue Budgets,Childrens Services,Education Transport,A0254,Home To School Transport Sen,A32020,Home to School Transport,30192701,29/02/2024,202312,"2,512.00",100546,Links Taxis
Education and Inclusion,Revenue Budgets,Childrens Services,Education Transport,A0254,Home To School Transport Sen,A32020,Home to School Transport,30192702,29/02/2024,202312,645.00,100546,Links Taxis
Education and Inclusion,Revenue Budgets,Childrens Services,Education Transport,A0254,Home To School Transport Sen,A32020,Home to School Transport,30192704,29/02/2024,202312,490.00,100546,Links Taxis
Education and Inclusion,Revenue Budgets,Childrens Services,Education Transport,A0254,Home To School Transport Sen,A32020,Home to School Transport,30192705,29/02/2024,202312,630.00,100546,Links Taxis
Education and Inclusion,Revenue Budgets,Childrens Services,Education Transport,A0254,Home To School Transport Sen,A32020,Home to School Transport,30192706,29/02/2024,202312,737.00,100546,Links Taxis
Education and Inclusion,Revenue Budgets,Childrens Services,Education Transport,A0254,Home To School Transport Sen,A32020,Home to School Transport,30192707,29/02/2024,202312,630.00,100546,Links Taxis
Education and Inclusion,Revenue Budgets,Childrens Services,Education Transport,A0254,Home To School Transport Sen,A32020,Home to School Transport,30192708,29/02/2024,202312,"1,792.00",100546,Links Taxis
Education and Inclusion,Revenue Budgets,Childrens Services,Education Transport,A0247,Post 16 Sen,A32020,Home to School Transport,30192709,29/02/2024,202312,"1,001.00",100546,Links Taxis
Education and Inclusion,Revenue Budgets,Childrens Services,Education Transport,A0249,Excluded And Ap Transport,A32020,Home to School Transport,30192710,29/02/2024,202312,364.00,100546,Links Taxis
Education and Inclusion,Revenue Budgets,Childrens Services,Education Transport,A0254,Home To School Transport Sen,A32020,Home to School Transport,30192710,29/02/2024,202312,364.00,100546,Links Taxis
Education and Inclusion,Revenue Budgets,Childrens Services,Education Transport,A0254,Home To School Transport Sen,A32020,Home to School Transport,30192717,29/02/2024,202312,692.00,100546,Links Taxis
Education and Inclusion,Revenue Budgets,Childrens Services,Education Transport,A0247,Post 16 Sen,A32020,Home to School Transport,30192718,29/02/2024,202312,"1,425.00",100546,Links Taxis
Education and Inclusion,Revenue Budgets,Childrens Services,Education Transport,A0254,Home To School Transport Sen,A32020,Home to School Transport,30192719,29/02/2024,202312,259.00,100546,Links Taxis
Education and Inclusion,Revenue Budgets,Childrens Services,Education Transport,A0254,Home To School Transport Sen,A32020,Home to School Transport,30192722,29/02/2024,202312,"2,280.00",100546,Links Taxis
Education and Inclusion,Revenue Budgets,Childrens Services,Education Transport,A0254,Home To School Transport Sen,A32020,Home to School Transport,30192723,29/02/2024,202312,832.00,100546,Links Taxis
Education and Inclusion,Revenue Budgets,Childrens Services,Education Transport,A0254,Home To School Transport Sen,A32020,Home to School Transport,30192725,29/02/2024,202312,752.00,100546,Links Taxis
Education and Inclusion,Revenue Budgets,Childrens Services,Education Transport,A0254,Home To School Transport Sen,A32020,Home to School Transport,30192726,29/02/2024,202312,"2,815.00",100546,Links Taxis
Education and Inclusion,Revenue Budgets,Childrens Services,Education Transport,A0254,Home To School Transport Sen,A32020,Home to School Transport,30192727,29/02/2024,202312,"1,256.00",100546,Links Taxis
Education and Inclusion,Revenue Budgets,Childrens Services,Education Transport,A0254,Home To School Transport Sen,A32020,Home to School Transport,30192731,29/02/2024,202312,"1,312.00",100546,Links Taxis
Education and Inclusion,Revenue Budgets,Childrens Services,Education Transport,A0254,Home To School Transport Sen,A32020,Home to School Transport,30192734,29/02/2024,202312,741.00,100546,Links Taxis
Education and Inclusion,Revenue Budgets,Childrens Services,Education Transport,A0247,Post 16 Sen,A32020,Home to School Transport,30192735,29/02/2024,202312,460.50,100546,Links Taxis
Education and Inclusion,Revenue Budgets,Childrens Services,Education Transport,A0254,Home To School Transport Sen,A32020,Home to School Transport,30192736,29/02/2024,202312,944.00,100546,Links Taxis
Education and Inclusion,Revenue Budgets,Childrens Services,Education Transport,A0254,Home To School Transport Sen,A32020,Home to School Transport,30192737,29/02/2024,202312,"2,272.00",100546,Links Taxis
Education and Inclusion,Revenue Budgets,Childrens Services,Education Transport,A0247,Post 16 Sen,A32020,Home to School Transport,30192818,29/02/2024,202312,315.00,100546,Links Taxis
Education and Inclusion,Revenue Budgets,Childrens Services,Education Transport,A0254,Home To School Transport Sen,A32020,Home to School Transport,30192820,29/02/2024,202312,"1,152.00",100546,Links Taxis
Education and Inclusion,Revenue Budgets,Childrens Services,Education Transport,A0254,Home To School Transport Sen,A32020,Home to School Transport,30192826,29/02/2024,202312,672.00,100546,Links Taxis
Education and Inclusion,Revenue Budgets,Childrens Services,Education Transport,A0254,Home To School Transport Sen,A32020,Home to School Transport,30192827,29/02/2024,202312,270.00,100546,Links Taxis
Education and Inclusion,Revenue Budgets,Childrens Services,Education Transport,A0254,Home To School Transport Sen,A32020,Home to School Transport,30192829,29/02/2024,202312,672.00,100546,Links Taxis
Education and Inclusion,Revenue Budgets,Childrens Services,Education Transport,A0254,Home To School Transport Sen,A32020,Home to School Transport,30192836,29/02/2024,202312,"1,024.90",100546,Links Taxis
Education and Inclusion,Revenue Budgets,Childrens Services,Education Transport,A0247,Post 16 Sen,A32020,Home to School Transport,30192840,29/02/2024,202312,940.00,100546,Links Taxis
Education and Inclusion,Revenue Budgets,Childrens Services,Education Transport,A0254,Home To School Transport Sen,A32020,Home to School Transport,30192842,29/02/2024,202312,"1,382.40",100546,Links Taxis
Education and Inclusion,Revenue Budgets,Childrens Services,Education Transport,A0254,Home To School Transport Sen,A32020,Home to School Transport,30192843,29/02/2024,202312,"2,272.50",100546,Links Taxis
Education and Inclusion,Revenue Budgets,Childrens Services,Education Transport,A0254,Home To School Transport Sen,A32020,Home to School Transport,30192848,29/02/2024,202312,"1,805.60",100546,Links Taxis
Education and Inclusion,Revenue Budgets,Childrens Services,Education Transport,A0247,Post 16 Sen,A32020,Home to School Transport,30192850,29/02/2024,202312,"1,120.00",100546,Links Taxis
Education and Inclusion,Revenue Budgets,Childrens Services,Education Transport,A0248,Exceptional Circumstances,A32020,Home to School Transport,30192852,29/02/2024,202312,320.00,100546,Links Taxis
Education and Inclusion,Revenue Budgets,Childrens Services,Education Transport,A0254,Home To School Transport Sen,A32020,Home to School Transport,30192852,29/02/2024,202312,320.00,100546,Links Taxis
Education and Inclusion,Revenue Budgets,Childrens Services,Education Transport,A0254,Home To School Transport Sen,A32020,Home to School Transport,30192854,29/02/2024,202312,418.00,100546,Links Taxis
Education and Inclusion,Revenue Budgets,Childrens Services,Education Transport,A0254,Home To School Transport Sen,A32020,Home to School Transport,30192857,29/02/2024,202312,"1,805.00",100546,Links Taxis
Education and Inclusion,Revenue Budgets,Childrens Services,Education Transport,A0254,Home To School Transport Sen,A32020,Home to School Transport,30192865,29/02/2024,202312,360.00,100546,Links Taxis
